Workbook

Sheet RAW
B1: Risk Assessment Worksheet | O1: Project # : | P1: R-2553
B2: Risk Identification | G2: Risk Assessment | K2: Response Strategy | O2: Management & Monitoring Plan | Q2: Additional Notes
B3: Risk # | C3: Risk Description IF | D3: Risk Description THEN | E3: Threat / Opp. | F3: Status | G3: Probability | H3: Impact | I3: Score Value | J3: Score | K3: Strategy | L3: Action Plan | M3: Risk Owner | N3: Follow-up Date | O3: Update Frequency | P3: Update & Comments | Q3: Notes on risk location, log of risk related decisions, etc.
B4: Example | C4: If 4f properties are involved in the project area, | D4: then delays to the project schedule may occur if potential impacts and avoidance options are not proactively and realistically identified and assessed. | E4: T | F4: Active | G4: Moderate | H4: Moderate | I4: =IFERROR(VLOOKUP(G4,Reference!$C$7:$I$11,2,FALSE)*HLOOKUP(H4, Reference!$E$5:$I$11,2,FALSE),"") -> 9 | J4: =IF(I4="","","n") -> n
B5: Long Range Planning | I5: =IFERROR(VLOOKUP(G5,Reference!$C$7:$I$11,2,FALSE)*HLOOKUP(H5, Reference!$E$5:$I$11,2,FALSE),"") ->  | J5: =IF(I5="","","n") -> 
I6: =IFERROR(VLOOKUP(G6,Reference!$C$7:$I$11,2,FALSE)*HLOOKUP(H6, Reference!$E$5:$I$11,2,FALSE),"") -> 
I7: =IFERROR(VLOOKUP(G7,Reference!$C$7:$I$11,2,FALSE)*HLOOKUP(H7, Reference!$E$5:$I$11,2,FALSE),"") -> 
I8: =IFERROR(VLOOKUP(G8,Reference!$C$7:$I$11,2,FALSE)*HLOOKUP(H8, Reference!$E$5:$I$11,2,FALSE),"") -> 
I9: =IFERROR(VLOOKUP(G9,Reference!$C$7:$I$11,2,FALSE)*HLOOKUP(H9, Reference!$E$5:$I$11,2,FALSE),"") ->  | J9: =IF(I9="","","n") -> 
I10: =IFERROR(VLOOKUP(G10,Reference!$C$7:$I$11,2,FALSE)*HLOOKUP(H10, Reference!$E$5:$I$11,2,FALSE),"") ->  | J10: =IF(I10="","","n") -> 
B11: Environmental | I11: =IFERROR(VLOOKUP(G11,Reference!$C$7:$I$11,2,FALSE)*HLOOKUP(H11, Reference!$E$5:$I$11,2,FALSE),"") -> 
I12: =IFERROR(VLOOKUP(G12,Reference!$C$7:$I$11,2,FALSE)*HLOOKUP(H12, Reference!$E$5:$I$11,2,FALSE),"") -> 
I13: =IFERROR(VLOOKUP(G13,Reference!$C$7:$I$11,2,FALSE)*HLOOKUP(H13, Reference!$E$5:$I$11,2,FALSE),"") -> 
I14: =IFERROR(VLOOKUP(G14,Reference!$C$7:$I$11,2,FALSE)*HLOOKUP(H14, Reference!$E$5:$I$11,2,FALSE),"") -> 
I15: =IFERROR(VLOOKUP(G15,Reference!$C$7:$I$11,2,FALSE)*HLOOKUP(H15, Reference!$E$5:$I$11,2,FALSE),"") -> 
I16: =IFERROR(VLOOKUP(G16,Reference!$C$7:$I$11,2,FALSE)*HLOOKUP(H16, Reference!$E$5:$I$11,2,FALSE),"") -> 
B17: Regulatory | I17: =IFERROR(VLOOKUP(G17,Reference!$C$7:$I$11,2,FALSE)*HLOOKUP(H17, Reference!$E$5:$I$11,2,FALSE),"") -> 
I18: =IFERROR(VLOOKUP(G18,Reference!$C$7:$I$11,2,FALSE)*HLOOKUP(H18, Reference!$E$5:$I$11,2,FALSE),"") -> 
I19: =IFERROR(VLOOKUP(G19,Reference!$C$7:$I$11,2,FALSE)*HLOOKUP(H19, Reference!$E$5:$I$11,2,FALSE),"") -> 
I20: =IFERROR(VLOOKUP(G20,Reference!$C$7:$I$11,2,FALSE)*HLOOKUP(H20, Reference!$E$5:$I$11,2,FALSE),"") -> 
I21: =IFERROR(VLOOKUP(G21,Reference!$C$7:$I$11,2,FALSE)*HLOOKUP(H21, Reference!$E$5:$I$11,2,FALSE),"") -> 
I22: =IFERROR(VLOOKUP(G22,Reference!$C$7:$I$11,2,FALSE)*HLOOKUP(H22, Reference!$E$5:$I$11,2,FALSE),"") -> 
B23: Organizational Risks | I23: =IFERROR(VLOOKUP(G23,Reference!$C$7:$I$11,2,FALSE)*HLOOKUP(H23, Reference!$E$5:$I$11,2,FALSE),"") -> 
I24: =IFERROR(VLOOKUP(G24,Reference!$C$7:$I$11,2,FALSE)*HLOOKUP(H24, Reference!$E$5:$I$11,2,FALSE),"") -> 
I25: =IFERROR(VLOOKUP(G25,Reference!$C$7:$I$11,2,FALSE)*HLOOKUP(H25, Reference!$E$5:$I$11,2,FALSE),"") -> 
I26: =IFERROR(VLOOKUP(G26,Reference!$C$7:$I$11,2,FALSE)*HLOOKUP(H26, Reference!$E$5:$I$11,2,FALSE),"") -> 
I27: =IFERROR(VLOOKUP(G27,Reference!$C$7:$I$11,2,FALSE)*HLOOKUP(H27, Reference!$E$5:$I$11,2,FALSE),"") -> 
I28: =IFERROR(VLOOKUP(G28,Reference!$C$7:$I$11,2,FALSE)*HLOOKUP(H28, Reference!$E$5:$I$11,2,FALSE),"") -> 
B29: Project Management | I29: =IFERROR(VLOOKUP(G29,Reference!$C$7:$I$11,2,FALSE)*HLOOKUP(H29, Reference!$E$5:$I$11,2,FALSE),"") -> 
I30: =IFERROR(VLOOKUP(G30,Reference!$C$7:$I$11,2,FALSE)*HLOOKUP(H30, Reference!$E$5:$I$11,2,FALSE),"") -> 
I31: =IFERROR(VLOOKUP(G31,Reference!$C$7:$I$11,2,FALSE)*HLOOKUP(H31, Reference!$E$5:$I$11,2,FALSE),"") -> 
I32: =IFERROR(VLOOKUP(G32,Reference!$C$7:$I$11,2,FALSE)*HLOOKUP(H32, Reference!$E$5:$I$11,2,FALSE),"") -> 
I33: =IFERROR(VLOOKUP(G33,Reference!$C$7:$I$11,2,FALSE)*HLOOKUP(H33, Reference!$E$5:$I$11,2,FALSE),"") -> 
I34: =IFERROR(VLOOKUP(G34,Reference!$C$7:$I$11,2,FALSE)*HLOOKUP(H34, Reference!$E$5:$I$11,2,FALSE),"") -> 
B35: External Risks | I35: =IFERROR(VLOOKUP(G35,Reference!$C$7:$I$11,2,FALSE)*HLOOKUP(H35, Reference!$E$5:$I$11,2,FALSE),"") -> 
I36: =IFERROR(VLOOKUP(G36,Reference!$C$7:$I$11,2,FALSE)*HLOOKUP(H36, Reference!$E$5:$I$11,2,FALSE),"") -> 
I37: =IFERROR(VLOOKUP(G37,Reference!$C$7:$I$11,2,FALSE)*HLOOKUP(H37, Reference!$E$5:$I$11,2,FALSE),"") -> 
I38: =IFERROR(VLOOKUP(G38,Reference!$C$7:$I$11,2,FALSE)*HLOOKUP(H38, Reference!$E$5:$I$11,2,FALSE),"") -> 
I39: =IFERROR(VLOOKUP(G39,Reference!$C$7:$I$11,2,FALSE)*HLOOKUP(H39, Reference!$E$5:$I$11,2,FALSE),"") -> 
I40: =IFERROR(VLOOKUP(G40,Reference!$C$7:$I$11,2,FALSE)*HLOOKUP(H40, Reference!$E$5:$I$11,2,FALSE),"") -> 
B41: Right of Way / Utilities / Railroad | I41: =IFERROR(VLOOKUP(G41,Reference!$C$7:$I$11,2,FALSE)*HLOOKUP(H41, Reference!$E$5:$I$11,2,FALSE),"") -> 
I42: =IFERROR(VLOOKUP(G42,Reference!$C$7:$I$11,2,FALSE)*HLOOKUP(H42, Reference!$E$5:$I$11,2,FALSE),"") -> 
I43: =IFERROR(VLOOKUP(G43,Reference!$C$7:$I$11,2,FALSE)*HLOOKUP(H43, Reference!$E$5:$I$11,2,FALSE),"") -> 
I44: =IFERROR(VLOOKUP(G44,Reference!$C$7:$I$11,2,FALSE)*HLOOKUP(H44, Reference!$E$5:$I$11,2,FALSE),"") -> 
I45: =IFERROR(VLOOKUP(G45,Reference!$C$7:$I$11,2,FALSE)*HLOOKUP(H45, Reference!$E$5:$I$11,2,FALSE),"") -> 
I46: =IFERROR(VLOOKUP(G46,Reference!$C$7:$I$11,2,FALSE)*HLOOKUP(H46, Reference!$E$5:$I$11,2,FALSE),"") -> 
B47: Technical | I47: =IFERROR(VLOOKUP(G47,Reference!$C$7:$I$11,2,FALSE)*HLOOKUP(H47, Reference!$E$5:$I$11,2,FALSE),"") -> 
I48: =IFERROR(VLOOKUP(G48,Reference!$C$7:$I$11,2,FALSE)*HLOOKUP(H48, Reference!$E$5:$I$11,2,FALSE),"") -> 
I49: =IFERROR(VLOOKUP(G49,Reference!$C$7:$I$11,2,FALSE)*HLOOKUP(H49, Reference!$E$5:$I$11,2,FALSE),"") -> 
I50: =IFERROR(VLOOKUP(G50,Reference!$C$7:$I$11,2,FALSE)*HLOOKUP(H50, Reference!$E$5:$I$11,2,FALSE),"") -> 
I51: =IFERROR(VLOOKUP(G51,Reference!$C$7:$I$11,2,FALSE)*HLOOKUP(H51, Reference!$E$5:$I$11,2,FALSE),"") -> 
I52: =IFERROR(VLOOKUP(G52,Reference!$C$7:$I$11,2,FALSE)*HLOOKUP(H52, Reference!$E$5:$I$11,2,FALSE),"") -> 
B53: Procurement | I53: =IFERROR(VLOOKUP(G53,Reference!$C$7:$I$11,2,FALSE)*HLOOKUP(H53, Reference!$E$5:$I$11,2,FALSE),"") -> 
I54: =IFERROR(VLOOKUP(G54,Reference!$C$7:$I$11,2,FALSE)*HLOOKUP(H54, Reference!$E$5:$I$11,2,FALSE),"") -> 
I55: =IFERROR(VLOOKUP(G55,Reference!$C$7:$I$11,2,FALSE)*HLOOKUP(H55, Reference!$E$5:$I$11,2,FALSE),"") -> 
I56: =IFERROR(VLOOKUP(G56,Reference!$C$7:$I$11,2,FALSE)*HLOOKUP(H56, Reference!$E$5:$I$11,2,FALSE),"") -> 
I57: =IFERROR(VLOOKUP(G57,Reference!$C$7:$I$11,2,FALSE)*HLOOKUP(H57, Reference!$E$5:$I$11,2,FALSE),"") -> 
I58: =IFERROR(VLOOKUP(G58,Reference!$C$7:$I$11,2,FALSE)*HLOOKUP(H58, Reference!$E$5:$I$11,2,FALSE),"") -> 
B59: Construction/Constructability | I59: =IFERROR(VLOOKUP(G59,Reference!$C$7:$I$11,2,FALSE)*HLOOKUP(H59, Reference!$E$5:$I$11,2,FALSE),"") -> 
I60: =IFERROR(VLOOKUP(G60,Reference!$C$7:$I$11,2,FALSE)*HLOOKUP(H60, Reference!$E$5:$I$11,2,FALSE),"") -> 
I61: =IFERROR(VLOOKUP(G61,Reference!$C$7:$I$11,2,FALSE)*HLOOKUP(H61, Reference!$E$5:$I$11,2,FALSE),"") -> 
I62: =IFERROR(VLOOKUP(G62,Reference!$C$7:$I$11,2,FALSE)*HLOOKUP(H62, Reference!$E$5:$I$11,2,FALSE),"") -> 
I63: =IFERROR(VLOOKUP(G63,Reference!$C$7:$I$11,2,FALSE)*HLOOKUP(H63, Reference!$E$5:$I$11,2,FALSE),"") -> 
I64: =IFERROR(VLOOKUP(G64,Reference!$C$7:$I$11,2,FALSE)*HLOOKUP(H64, Reference!$E$5:$I$11,2,FALSE),"") -> 

Sheet How to fill out RAW
A1: How to use the Risk Assessment Worksheet (RAW)
A3: General
A4: Please use online/digital version of the RAW for Projects! As of May 2023, NCDOT project teams are encouraged to use the online/digital version of the RAW which can be found on the project's Connect Preconstruction project site and the related Preconstruction Dashboard. For instructions on how to access and use the online/digital RAW, see guidance posted to the VMO Risk Management Program website: https://connect.ncdot.gov/projects/Value-Management/Risk-Assessment/Pages/default.aspx This Excel workbook version can be used for initiatives and department efforts that do NOT have a Connect Preconstruction project site. The below instructions shall serve as a guide for use of this Excel workbook.
A6: Risk Identification
A7: Risks are identified by the following three characteristics and there is a column for each one:
B8: 1. Risk Number | C8: Identifier for each risk. This column should consist of a number. (1,2,3…)
B9: 2. Risk Description | C9: Identify the risk/uncertainty and the effect it has on the project objective (scope, schedule, budget or quality). This has been broken out into two columns to help describe the risk using an if, then statement.
C10: - "if" describes the risk event and - "then" describes the potential impact to the project objective (the consequence) The "Risk Example" tab provides some examples risk events to help identify risks
B11: 3. Threat / Opp. | C11: Drop down to select either T (threat) or O (Opportunity)
C12: T: Indicates the risk poses a threat to the project objectives
C13: O: Indicates the risk poses an opportunity to improve the project objectives (decrease project costs, advance project schedule, etc…)
B14: 4. Status | C14: Drop down to select either Active, Dormant, or Closed Out.
C15: Active: the risk is an uncertainty the project team is managing and monitoring.
C16: Dormant: the risk has been mitigated as much as possible and there has been no activity for a long period of time.
C17: Closed Out: the risk/uncertainty no longer exists - the impact or the probability of occurrence no longer exists.
A19: Risk Assessment
A20: A risk assessment is needed on each risk and requires the probability and impact to be evaluated. Once these two columns are filled out, the "score" column automatically populates based on the following graph.
A25: Probability
A26: The probability of occurrence describes the likelihood that the risk will be realized/accepted. This is a drop down field that records probability on a scale from very low to very high. The table below describes each of these in more detail. Typically, 0% and 100% are not referred to because 0% means the risk has no chance of ever occurring and 100% means the risk is certain to occur.
C27: Probability Ranking
C28: Ranking | D28: Probability
C29: Very Low | D29: Remote (14% or less)
C30: Low | D30: Unlikely (15% - 39%)
C31: Moderate | D31: Likely (40% - 59%)
C32: High | D32: Highly Likely (60% - 84%)
C33: Very High | D33: Near Certainty (85% or more)
A35: Impact
A36: Impact measures the effect or consequence the risk will have on the project objective if the risk is realized/accepted. This is a drop down field that records impact on a scale from very low to very high. The table below describes each of these in more detail; however, keep in mind that the Project Manager and Project Team must use their judgement and expertise in selecting the ultimate ranking.
B37: Impact Rating
B38: Ranking | C38: Impact to Project Objective
C39: Cost | D39: Schedule | E39: Scope | F39: Quality*
D40: (Critical Path)
B41: Very Low | C41: Almost no cost impact | D41: Almost no schedule impact | E41: Negligible modifications to project scope | F41: Negligible impact to quality
B42: Low | C42: 5 - 10% cost increase | D42: 2-4 week impact on PS&E Milestone | E42: Minor modifications to project limits | F42: Minor impact to quality
B43: Moderate | C43: 10 - 25% cost increase | D43: 1-2 month impact on PS&E Milestone | E43: Moderate modifications to project limits | F43: Moderate impact to quality
B44: High | C44: 25 - 35% cost increase | D44: 3-6 month impact on PS&E Milestone | E44: Major modifications to project limits | F44: Major impact to quality
B45: Very High | C45: >35% or $25M cost increase | D45: >6 month impact on PS&E Milestone | E45: Scope does not match original purpose & need | F45: Severe impact to quality
B46: * Impact to Quality is measured by the ability to deliver an accurate Letting package without deficiencies, maintain stakeholder satisfaction and fulfill the applicable policies and standards.
A48: Response Strategy
A49: A response strategy identifies an actionable approach to mitigate the risk. There are four sections that make up the Response Strategy:
B50: 1. Strategy | C50: The approach the team will take to effectively reduce negative impacts or take advantage of opportunities. This is a drop down field to select either:
C51: a. Avoid: | D51: Eliminate the uncertainty by removing its cause
C52: b. Mitigate: | D52: Reduce the uncertainty by reducing the probability or the impact. Make sure the costs/impacts of mitigating the risk do not outweigh the cost/impacts of accepting the risk.
C53: c. Transfer: | D53: Giving the impact and management of the risk to an external organization such as a local entity or contractor.
C54: d. Accept: | D54: Accept the uncertainty and the impacts associated with it.
C55: e. Enhance: | D55: Align the project in the best position to be able to take advantage of an opportunity.
C56: f. Share: | D56: Impact and management of the risk is shared between NCDOT and an external organization.
B58: 2. Action Plan | C58: The steps an individual(s) will take to by when to avoid, mitigate or enhance the uncertainty (how, who and by when). These may require coordination with the Department’s partners such as FHWA, USACE, SHPO, etc. to adequately execute the strategy. Possible risk mitigation strategies to consider are available for teams to review on the Risk Examples tab of this workbook.
B60: 3. Risk Owner | C60: This individual is typically a team member whose area of expertise relates to a specific risk. They are responsible for implementing the action items, monitoring the progress and updating the Project Manager and Project Team on the status of the risk. If the risk owner and risk reporter are different people, please note both individuals.
B62: 4. Follow-up Date | C62: The date the Project Manager will check in with the Risk Owner to obtain a progress update on the action items. This value is related to the “update frequency” (Management & Monitoring). For example, if the follow-up date is 4/3 and the update frequency is monthly, then after discussions occur on 4/3, the next follow-up date would be 5/3.
A64: Management & Monitoring Plan
A65: There are two sections within the Management and Monitoring plan:
B66: 1. Update Frequency | C66: Identifies how frequently the Risk Owner should provide an update to the Project Manager (e.g., weekly, bi-monthly, monthly, quarterly, annually). The frequency will depend on the risk and may change throughout the life of the project. This is directly connected to the “follow-up date” under the Response Strategy Section.
B67: 2. Update & Comments | C67: An area for the Project Manager and/or Risk Owner to track the progress and work that has been completed to mitigate, avoid, or enhance the risk. If, for example, someone asks what work has been done to mitigate a risk, someone could go to this section to provide that information. Below is an example of the updates and comments that can be provided for a risk:
A89: Additional Notes
A90: This space should be used to log additional details about risk discussions and updates throughout the course of the project that are not captured in other columns. It is also suggested that the risk location be noted in this column. For example, note if the risk applies to the entire project, a specific section, or intersection.

Sheet Reference
C2: Assessment Score Matrix/Reference | M2: Dropdown Lists
M3: Threat / Opport. | O3: Status | Q3: Strategy | S3: Impact | U3: Probability
C4: Assessment Score | E4: Impact | M4: T | O4: Active | Q4: Avoid | S4: Very Low | U4: Very Low
E5: Very Low | F5: Low | G5: Moderate | H5: High | I5: Very High | M5: O | O5: Dormant | Q5: Mitigate | S5: Low | U5: Low
C6: Probability | E6: 1 | F6: 2 | G6: 3 | H6: 4 | I6: 5 | O6: Closed Out | Q6: Transfer | S6: Moderate | U6: Moderate
C7: Very High | D7: 5 | E7: =E6*$D$7 -> 5 | F7: =$F$6*D7 -> 10 | G7: =$G$6*D7 -> 15 | H7: =$H$6*D7 -> 20 | I7: =$I$6*E7 -> 25 | Q7: Accept | S7: High | U7: High
C8: High | D8: 4 | E8: =$E$6*D8 -> 4 | F8: =$F$6*D8 -> 8 | G8: =$G$6*D8 -> 12 | H8: =$H$6*D8 -> 16 | I8: =$I$6*D8 -> 20 | Q8: Enhance | S8: Very High | U8: Very High
C9: Moderate | D9: 3 | E9: 3 | F9: 6 | G9: 9 | H9: 12 | I9: =$I$6*D9 -> 15 | Q9: Share
C10: Low | D10: 2 | E10: 2 | F10: 4 | G10: 6 | H10: 8 | I10: 10
C11: Very Low | D11: 1 | E11: 1 | F11: 2 | G11: 3 | H11: 4 | I11: 5
G18: Risk Assessment Worksheet Change History
G19: Version | H19: Change Description | P19: When
G20: v1 | H20: Original posting
G21: v2 | H21: Added mitigation strategies macro to Risk Examples tab; added Additional Notes to the RAW tab; added Share option as a option to Strategy dropdown | P21: 2022-11-01
G22: v3 | H22: Removed risk examples and mitigation strategies to their own workbook to be posted to the VMO Risk Management Program website separtately; updates made to align with the new online version of the RAW for projects | P22: 2023-04-01

Sheet Safe Routes to School (hidden)
B2: Safe Routes to School Projects (Based on Generic Cause) | I2: Safe Routes to School Projects (Based on Generic Cause)
B3: 1 | C3: =B3/$F$3 -> 1 | D3: natural disaster (hurricane) | E3: Natural Disasters (All types of natural disasters that can affect budget and schedule) | F3: =SUM(B3:B9) -> 1 | G3: =F3/$F$134 -> 0.05882352941 | I3: Natural Disasters | J3: =G3 -> 0.05882352941
B4: 0 | C4: =B4/$F$3 -> 0 | D4: natural disaster (drought condition) | I4: Design/Plan Issues | J4: =G10 -> 0.05882352941
B5: 0 | C5: 0 | D5: natural disaster (slide) | I5: Planning Issues (Except Start of Work and/or projecy closeout) | J5: =G22 -> 0
B6: 0 | C6: 0 | D6: natural disaster (flood) | I6: Project Closeout Issues | J6: =G30 -> 0.05882352941
B7: 0 | C7: 0 | D7: natural disaster (sinkhole) | I7: Constructability Issues (Except for underground conflicts) | J7: =G33 -> 0
B8: 0 | C8: 0 | D8: natural disaster (thunderstorm) | I8: Corrective Work | J8: =G36 -> 0
B9: 0 | C9: 0 | D9: natural disaster (tropical depression) | I9: Delay in Start of Work | J9: =G39 -> 0
B10: 1 | C10: =B10/$F$10 -> 1 | D10: Design/plan change | E10: Design/Plan Issues (Change or error in roadway, structure, geotechnical, hydraulics, traffic, utility, and environmental design) | F10: =SUM(B10:B21) -> 1 | G10: =F10/$F$134 -> 0.05882352941 | I10: Design Approval Waiting Period/Indecision/Negotiation | J10: =G46 -> 0
B11: 0 | C11: =B11/$F$10 -> 0 | D11: Elimination of contract line item | I11: Differing Site Conditions/Discoveries (Except Utilities) | J11: =G57 -> 0
B12: 0 | C12: 0 | D12: Design change due to safety concerns | I12: Environmental Concerns | J12: =G65 -> 0
B13: 0 | C13: 0 | D13: Change requests | I13: Contract Issues | J13: =G69 -> 0.1176470588
B14: 0 | C14: 0 | D14: Design/plan error | I14: Funding Issues | J14: =G72 -> 0
B15: 0 | C15: 0 | D15: Design modifications impact utility relocation | I15: Incomplete Vegetation Establishment | J15: =G75 -> 0.05882352941
B16: 0 | C16: 0 | D16: Design/plan revision | I16: Maintenance/Replacement Required | J16: =G77 -> 0
B17: 0 | C17: 0 | D17: Design/plan omission | I17: Administrative/Paperwork Issues | J17: =G80 -> 0.1176470588
B18: 0 | C18: 0 | D18: Sight distance concerns | I18: Permit Issues | J18: =G82 -> 0
B19: 0 | C19: 0 | D19: Surveys late and/or surveys in error | I19: Procurement Issues | J19: =G88 -> 0
B20: 0 | C20: 0 | D20: Compliance with special technical specifications | I20: Quantities Overrun/Underrun | J20: =G95 -> 0.05882352941
B21: 0 | C21: 0 | D21: Misinterpretation of plans | I21: ROW/Easement Issues | J21: =G96 -> 0.05882352941
B22: 0 | D22: Pressure to deliver project on an accelerated schedule | E22: Planning Issues (Except Start of Work and/or projecy closeout) (Delays to schedule due to insufficient planning and coordination within project team, and between project team and other stakeholders) | F22: =SUM(B22:B29) -> 0 | G22: 0 | I22: Seasonal Limitations (Weather) | J22: =G103 -> 0.05882352941
B23: 0 | D23: Purposeful limited work schedule | I23: Survey Issues | J23: =G104 -> 0
B24: 0 | D24: Waiting for other entities/projects to perform work | I24: Unavailability of Workforce/Personnel | J24: =G106 -> 0
B25: 0 | D25: Project Schedule - delays to project delivery | I25: Discovery of Unsuitable Materials (Geotechnical) | J25: =G110 -> 0
B26: 0 | D26: Consistency and coordination with adjacent projects required | I26: Utility Conflict | J26: =G111 -> 0.2941176471
B27: 0 | D27: Lack of coordination/communication with project team | I27: Utility Relocation Issues | J27: =G114 -> 0.05882352941
B28: 0 | D28: Scheduling conflicts - late inspection | I28: Work Restriction | J28: =G115 -> 0
B29: 0 | D29: Limited availability of specialized staff | I29: Stakeholders Request Late Changes | J29: =G122 -> 0
B30: 0 | C30: =B30/$F$30 -> 0 | D30: Extra work required after final inspection | E30: Project Closeout Issues (Problems during project closeout) | F30: =SUM(B30:B32) -> 1 | G30: 0.05882352941 | I30: Other | J30: =G125 -> 0
B31: 1 | C31: =B31/$F$30 -> 1 | D31: Scheduling conflicts - late final inspection
B32: 0 | C32: 0 | D32: Delay in receipt of final punchlist items | I32: Safe Routes to School Projects (Based on Design/Plan Issues)
B33: 0 | D33: Conflict with existing structures | E33: Constructability Issues (Except for underground conflicts) (Conflicts and clashes with surface objects that makes the design be unconstructable) | F33: =SUM(B33:B35) -> 0 | G33: 0
B34: 0 | D34: Conflict with surface objects | I34: Roadway Design (Vertical/horizontal alignment, earthwork, pavement, grade, etc.) | J34: 1
B35: 0 | D35: Constructability issues | I35: Structure Design (Bridge superstructure, retaining walls, etc.) | J35: 0
B36: 0 | D36: Corrective work required | E36: Corrective Work (Corrective work or re-work as a result of problems in construction, poor quality of construction, or incorrect instructions that were gave to contractor) | F36: =SUM(B36:B38) -> 0 | G36: 0 | I36: Geotechnical Design (Foundations, ground improvements, unsuitable materials, pile driving, etc.) | J36: 0
B37: 0 | D37: Incorrect instruction by DOT personnel required corrective work | I37: Hydraulic Design (drainage, irrigation, lines, etc.) | J37: 0
B38: 0 | D38: Delay in critical decision making on required corrective actions | I38: Traffic Design (ITS, signals, intersections, signs, guardrail, safety) | J38: 0
B39: 0 | D39: Scheduling conflicts - late preconstruction meeting | E39: Delay in Start of Work (Planning, scheduling, or administrative problems that delayed start of work) | F39: =SUM(B39:B45) -> 0 | G39: 0 | I39: Other (NCDOT/RE initiated change, maintenance/replacement, special provisions, etc) | J39: 0
B40: 0 | D40: Delay in execution of contract
B41: 0 | D41: Delay in availability of project and/or start date
B42: 0 | D42: Administrative review of low bid packages
B43: 0 | D43: Late receipt of contrcat information
B44: 0 | D44: Delay in project award
B45: 0 | D45: Unavailability of Funds
B46: 0 | D46: Untimely review and return of submittals | E46: Design Approval Waiting Period/Indecision/Negotiation (Time spent waiting for approval of submittals, critical decisions from NCDOT, and reaching agreement with stakeholders) | F46: =SUM(B46:B56) -> 0 | G46: 0
B47: 0 | D47: Delay in critical decision making
B48: 0 | D48: Negotiation delays
B49: 0 | D49: Delays in reaching agreement with property owners
B50: 0 | D50: Delays in reaching agreement with stakeholders
B51: 0 | D51: Delays in reaching utility agreement
B52: 0 | D52: Delay in critical decision making on required corrective actions
B53: 0 | D53: Untimelty receipt of design/plan
B54: 0 | D54: Delays in reaching agreement with other entities
B55: 0 | D55: Delays in reaching agreement with railroad
B56: 0 | D56: Delay in receipt of (land) quality control approvals
B57: 0 | D57: Conflict with unknown underground obstructions/structures | E57: Differing Site Conditions/Discoveries (Except Utilities) (Subsurface situations that were different than anticipated) | F57: =SUM(B57:B64) -> 0 | G57: 0
B58: 0 | D58: Discovery of underground water flow
B59: 0 | D59: Excess surface water issues
B60: 0 | D60: Discovery of contaminated ground water
B61: 0 | D61: Differing site conditions
B62: 0 | D62: Wetland discovery
B63: 0 | D63: Discovery of contaminated soil
B64: 0 | D64: Discovery of hazardous underground materials
B65: 0 | D65: Wetland and/or endandered species survey | E65: Environmental Concerns (Extra work of surveys and investigations due to environmental related concerns) | F65: =SUM(B65:B68) -> 0 | G65: 0
B66: 0 | D66: Erosion control issues
B67: 0 | D67: Historic site investgations
B68: 0 | D68: Endangered species issues
B69: 2 | C69: =B69/$F$69 -> 1 | D69: Contract error | E69: Contract Issues (Errors, omissions, and unclarity of contract clauses) | F69: =SUM(B69:B71) -> 2 | G69: =F69/$F$134 -> 0.1176470588
B70: 0 | C70: =B70/$F$69 -> 0 | D70: Contract omission
B71: 0 | C71: 0 | D71: Unclear contract items
B72: 0 | C72: 0 | D72: Cash flow restriction | E72: Funding Issues (budget concerns, unavailability of funds, and cash flow restrictions) | F72: =SUM(B72:B74) -> 0 | G72: 0
B73: 0 | C73: 0 | D73: Unavailability of Funds
B74: 0 | C74: 0 | D74: Budget concerns and layoffs
B75: 1 | C75: =B75/$F$75 -> 1 | D75: Incomplete vegetation establishment | E75: Incomplete Vegetation Establishment (Extra time that was required for the vegetation to fully establish (mainly 80 percent) throughout the project) | F75: =SUM(B75:B76) -> 1 | G75: 0.05882352941
B76: 0 | C76: =B76/$F$75 -> 0 | D76: Incomplete planting establishment
B77: 0 | D77: Maintenance/replacement required | E77: Maintenance/Replacement Required (Maintanance or replacement request to constructed or existing parts as a result of damages during construction or failure) | F77: =SUM(B77:B79) -> 0 | G77: 0
B78: 0 | D78: Maintenance/replacement required (damaged objects)
B79: 0 | D79: Maintenance/replacement required (existing parts failure)
B80: 2 | C80: =B80/$F$80 -> 1 | D80: Error in entering previous claim time extension/compensation in HiCAMS | E80: Administrative/Paperwork Issues (Administrative or paperwork issues during construction) | F80: =SUM(B80:B81) -> 2 | G80: 0.1176470588
B81: 0 | C81: =B81/$F$80 -> 0 | D81: Document misplacement
B82: 0 | D82: Permit acquisition waiting period | E82: Permit Issues (Environmental, construction, and all other type of permit issues) | F82: =SUM(B82:B87) -> 0 | G82: 0
B83: 0 | D83: Permit modification waiting period
B84: 0 | D84: Lack of required permit
B85: 0 | D85: Expired permits
B86: 0 | D86: Permit limitations
B87: 0 | D87: Permit violations
B88: 0 | D88: Delay in power supply | E88: Procurement Issues (Delays to project due to problems in procuring materials and equipment) | F88: =SUM(B88:B94) -> 0 | G88: 0
B89: 0 | D89: Procurement delays
B90: 0 | D90: Material shortage
B91: 0 | D91: Department furnished material/equipment delays
B92: 0 | D92: Wrong order placement
B93: 0 | D93: Fabrication delays
B94: 0 | D94: Material cost fluctuations
B95: 1 | C95: =B95/$F$95 -> 1 | D95: Quantities overrun/underrun | E95: Quantities Overrun/Underrun (Errors in budget, schedule, or items estimates) | F95: =SUM(B95) -> 1 | G95: 0.05882352941
B96: 0 | C96: =B96/$F$96 -> 0 | D96: ROW acquisition delays | E96: ROW/Easement Issues (Problems related to Right of Way or easement) | F96: =SUM(B96:B102) -> 1 | G96: 0.05882352941
B97: 0 | C97: =B97/$F$96 -> 0 | D97: RR right of entery issues
B98: 0 | C98: 0 | D98: Insufficient ROW
B99: 0 | C99: 0 | D99: Landowner(s) unwilling to sell, may need to condemn
B100: 0 | C100: 0 | D100: Additional work required per Right of Way agreement - relocations, grading, etc.
B101: 1 | C101: 1 | D101: ROW approval delays (utility encroachment)
B102: 0 | C102: 0 | D102: ROW approval delays (railroad encroachment)
B103: 1 | C103: =B103/$F$103 -> 1 | D103: Seasonal limitations (weather) | E103: Seasonal Limitations (Weather) (Adverse weather conditions like extreme temperatures and precipitation that suspend the construction) | F103: =SUM(B103) -> 1 | G103: 0.05882352941
B104: 0 | D104: Survey error | E104: Survey Issues (Waiting for test results or errpneous surveys and tests that require corrective action) | F104: =SUM(B104:B105) -> 0 | G104: 0
B105: 0 | D105: Survery results delayed
B106: 0 | D106: Unavailability of DOT personnel | E106: Unavailability of Workforce/Personnel (Insufficient workforce or personnel that suspend or delay the construction) | F106: =SUM(B106:B109) -> 0 | G106: 0
B107: 0 | D107: Unavailability of railroad flaggers
B108: 0 | D108: Unavailability of workforce
B109: 0 | D109: Unavailability of DOT specialized staff
B110: 0 | D110: Discovery of unsuitable materials (geotechnical) | E110: Discovery of Unsuitable Materials (Geotechnical) (Materials, soil in specific, that expected to be used found to be unsuitable and required removal) | F110: =SUM(B110) -> 0 | G110: 0
B111: 2 | C111: =B111/$F$111 -> 0.4 | D111: Utility conflict | E111: Utility Conflict (Conflicts and clashed with underground and overhead utilities that require utility relocation) | F111: =SUM(B111:B113) -> 5 | G111: 0.2941176471
B112: 1 | C112: =B112/$F$111 -> 0.2 | D112: Discovery of unknown underground utilities
B113: 2 | C113: 0.4 | D113: Utility conflict
B114: 1 | C114: =B114/$F$114 -> 1 | D114: Utility relocation not happen in time | E114: Utility Relocation Issues (Utility relocation not happen in time) | F114: =SUM(B114) -> 1 | G114: 0.05882352941
B115: 0 | D115: Work restrictions due to traffic | E115: Work Restriction (Work restrictions due to traffic considerations, or due to public/local agencies during social events or moratoriums) | F115: =SUM(B115:B121) -> 0 | G115: 0
B116: 0 | D116: Work restriction request by public/local agencies
B117: 0 | D117: Work restrictions due to traffic
B118: 0 | D118: Work restriction request by school
B119: 0 | D119: Work restriction request by DOT
B120: 0 | D120: Limited working space
B121: 0 | D121: Work restrictions due to traffic (road closure restrictions)
B122: 0 | D122: Extra tests required | E122: Stakeholders Request Late Changes (Change request or change in scope of project by stakeholders that require extra work) | F122: =SUM(B122:B124) -> 0 | G122: 0
B123: 0 | D123: Interagency issues - cities, counties, departments, etc. request change
B124: 0 | D124: Document preparation request by DOT
B125: 0 | D125: Payment agreement issues | E125: Other | F125: =SUM(B125:B133) -> 0 | G125: 0
B126: 0 | D126: Completion incentive
B127: 0 | D127: Termination of contract
B128: 0 | D128: Lawsuit costs
B129: 0 | D129: Covid impact
B130: 0 | D130: Unforeseen problems (unexpected death)
B131: 0 | D131: Vehicle accident
B132: 0 | D132: work not in conformance with contract and directive
B133: 0 | D133: Contractor/subcontractor replacement
F134: =SUM(F3:F133) -> 17

Sheet Other (hidden)
B2: Other Projects (Based on Generic Cause) | I2: Other Projects (Based on Generic Cause)
B3: 1 | C3: =B3/$F$3 -> 0.3333333333 | D3: natural disaster (hurricane) | E3: Natural Disasters (All types of natural disasters that can affect budget and schedule) | F3: =SUM(B3:B9) -> 3 | G3: =F3/$F$134 -> 0.05084745763 | I3: Natural Disasters | J3: =G3 -> 0.05084745763
B4: 1 | C4: =B4/$F$3 -> 0.3333333333 | D4: natural disaster (drought condition) | I4: Design/Plan Issues | J4: =G10 -> 0.1186440678
B5: 0 | C5: 0 | D5: natural disaster (slide) | I5: Planning Issues (Except Start of Work and/or projecy closeout) | J5: =G22 -> 0.01694915254
B6: 1 | C6: 0.3333333333 | D6: natural disaster (flood) | I6: Project Closeout Issues | J6: =G30 -> 0.1186440678
B7: 0 | C7: 0 | D7: natural disaster (sinkhole) | I7: Constructability Issues (Except for underground conflicts) | J7: =G33 -> 0
B8: 0 | C8: 0 | D8: natural disaster (thunderstorm) | I8: Corrective Work | J8: =G36 -> 0
B9: 0 | C9: 0 | D9: natural disaster (tropical depression) | I9: Delay in Start of Work | J9: =G39 -> 0.1016949153
B10: 4 | C10: =B10/$F$10 -> 0.5714285714 | D10: Design/plan change | E10: Design/Plan Issues (Change or error in roadway, structure, geotechnical, hydraulics, traffic, utility, and environmental design) | F10: =SUM(B10:B21) -> 7 | G10: =F10/$F$134 -> 0.1186440678 | I10: Design Approval Waiting Period/Indecision/Negotiation | J10: =G46 -> 0.05084745763
B11: 0 | C11: =B11/$F$10 -> 0 | D11: Elimination of contract line item | I11: Differing Site Conditions/Discoveries (Except Utilities) | J11: =G57 -> 0.01694915254
B12: 0 | C12: 0 | D12: Design change due to safety concerns | I12: Environmental Concerns | J12: =G65 -> 0
B13: 0 | C13: 0 | D13: Change requests | I13: Contract Issues | J13: =G69 -> 0.01694915254
B14: 2 | C14: 0.2857142857 | D14: Design/plan error | I14: Funding Issues | J14: =G72 -> 0
B15: 0 | C15: 0 | D15: Design modifications impact utility relocation | I15: Incomplete Vegetation Establishment | J15: =G75 -> 0.05084745763
B16: 1 | C16: 0.1428571429 | D16: Design/plan revision | I16: Maintenance/Replacement Required | J16: =G77 -> 0.03389830508
B17: 0 | C17: 0 | D17: Design/plan omission | I17: Administrative/Paperwork Issues | J17: =G80 -> 0.05084745763
B18: 0 | C18: 0 | D18: Sight distance concerns | I18: Permit Issues | J18: =G82 -> 0
B19: 0 | C19: 0 | D19: Surveys late and/or surveys in error | I19: Procurement Issues | J19: =G88 -> 0.05084745763
B20: 0 | C20: 0 | D20: Compliance with special technical specifications | I20: Quantities Overrun/Underrun | J20: =G95 -> 0
B21: 0 | C21: 0 | D21: Misinterpretation of plans | I21: ROW/Easement Issues | J21: =G96 -> 0
B22: 0 | C22: =B22/$F$22 -> 0 | D22: Pressure to deliver project on an accelerated schedule | E22: Planning Issues (Except Start of Work and/or projecy closeout) (Delays to schedule due to insufficient planning and coordination within project team, and between project team and other stakeholders) | F22: =SUM(B22:B29) -> 1 | G22: 0.01694915254 | I22: Seasonal Limitations (Weather) | J22: =G103 -> 0.03389830508
B23: 0 | C23: =B23/$F$22 -> 0 | D23: Purposeful limited work schedule | I23: Survey Issues | J23: =G104 -> 0
B24: 0 | C24: 0 | D24: Waiting for other entities/projects to perform work | I24: Unavailability of Workforce/Personnel | J24: =G106 -> 0.01694915254
B25: 0 | C25: 0 | D25: Project Schedule - delays to project delivery | I25: Discovery of Unsuitable Materials (Geotechnical) | J25: =G110 -> 0.01694915254
B26: 1 | C26: 1 | D26: Consistency and coordination with adjacent projects required | I26: Utility Conflict | J26: =G111 -> 0.2203389831
B27: 0 | C27: 0 | D27: Lack of coordination/communication with project team | I27: Utility Relocation Issues | J27: =G114 -> 0
B28: 0 | C28: 0 | D28: Scheduling conflicts - late inspection | I28: Work Restriction | J28: =G115 -> 0.01694915254
B29: 0 | C29: 0 | D29: Limited availability of specialized staff | I29: Stakeholders Request Late Changes | J29: =G122 -> 0
B30: 0 | C30: =B30/$F$30 -> 0 | D30: Extra work required after final inspection | E30: Project Closeout Issues (Problems during project closeout) | F30: =SUM(B30:B32) -> 7 | G30: 0.1186440678 | I30: Other | J30: =G125 -> 0.01694915254
B31: 7 | C31: =B31/$F$30 -> 1 | D31: Scheduling conflicts - late final inspection
B32: 0 | C32: 0 | D32: Delay in receipt of final punchlist items | I32: Other Projects (Based on Design/Plan Issues)
B33: 0 | D33: Conflict with existing structures | E33: Constructability Issues (Except for underground conflicts) (Conflicts and clashes with surface objects that makes the design be unconstructable) | F33: =SUM(B33:B35) -> 0 | G33: 0
B34: 0 | D34: Conflict with surface objects | I34: Roadway Design (Vertical/horizontal alignment, earthwork, pavement, grade, etc.) | J34: 0
B35: 0 | D35: Constructability issues | I35: Structure Design (Bridge superstructure, retaining walls, etc.) | J35: 0.5
B36: 0 | D36: Corrective work required | E36: Corrective Work (Corrective work or re-work as a result of problems in construction, poor quality of construction, or incorrect instructions that were gave to contractor) | F36: =SUM(B36:B38) -> 0 | G36: 0 | I36: Geotechnical Design (Foundations, ground improvements, unsuitable materials, pile driving, etc.) | J36: 0
B37: 0 | D37: Incorrect instruction by DOT personnel required corrective work | I37: Hydraulic Design (drainage, irrigation, lines, etc.) | J37: 0.25
B38: 0 | D38: Delay in critical decision making on required corrective actions | I38: Traffic Design (ITS, signals, intersections, signs, guardrail, safety) | J38: 0
B39: 2 | C39: =B39/$F$39 -> 0.3333333333 | D39: Scheduling conflicts - late preconstruction meeting | E39: Delay in Start of Work (Planning, scheduling, or administrative problems that delayed start of work) | F39: =SUM(B39:B45) -> 6 | G39: 0.1016949153 | I39: Other (NCDOT/RE initiated change, maintenance/replacement, special provisions, etc) | J39: 0.25
B40: 4 | C40: =B40/$F$39 -> 0.6666666667 | D40: Delay in execution of contract
B41: 0 | C41: 0 | D41: Delay in availability of project and/or start date
B42: 0 | C42: 0 | D42: Administrative review of low bid packages
B43: 0 | C43: 0 | D43: Late receipt of contrcat information
B44: 0 | C44: 0 | D44: Delay in project award
B45: 0 | C45: 0 | D45: Unavailability of Funds
B46: 1 | C46: =B46/$F$46 -> 0.3333333333 | D46: Untimely review and return of submittals | E46: Design Approval Waiting Period/Indecision/Negotiation (Time spent waiting for approval of submittals, critical decisions from NCDOT, and reaching agreement with stakeholders) | F46: =SUM(B46:B56) -> 3 | G46: 0.05084745763
B47: 2 | C47: =B47/$F$46 -> 0.6666666667 | D47: Delay in critical decision making
B48: 0 | C48: 0 | D48: Negotiation delays
B49: 0 | C49: 0 | D49: Delays in reaching agreement with property owners
B50: 0 | C50: 0 | D50: Delays in reaching agreement with stakeholders
B51: 0 | C51: 0 | D51: Delays in reaching utility agreement
B52: 0 | C52: 0 | D52: Delay in critical decision making on required corrective actions
B53: 0 | C53: 0 | D53: Untimelty receipt of design/plan
B54: 0 | C54: 0 | D54: Delays in reaching agreement with other entities
B55: 0 | C55: 0 | D55: Delays in reaching agreement with railroad
B56: 0 | C56: 0 | D56: Delay in receipt of (land) quality control approvals
B57: 0 | C57: =B57/$F$57 -> 0 | D57: Conflict with unknown underground obstructions/structures | E57: Differing Site Conditions/Discoveries (Except Utilities) (Subsurface situations that were different than anticipated) | F57: =SUM(B57:B64) -> 1 | G57: 0.01694915254
B58: 1 | C58: =B58/$F$57 -> 1 | D58: Discovery of underground water flow
B59: 0 | C59: 0 | D59: Excess surface water issues
B60: 0 | C60: 0 | D60: Discovery of contaminated ground water
B61: 0 | C61: 0 | D61: Differing site conditions
B62: 0 | C62: 0 | D62: Wetland discovery
B63: 0 | C63: 0 | D63: Discovery of contaminated soil
B64: 0 | C64: 0 | D64: Discovery of hazardous underground materials
B65: 0 | D65: Wetland and/or endandered species survey | E65: Environmental Concerns (Extra work of surveys and investigations due to environmental related concerns) | F65: =SUM(B65:B68) -> 0 | G65: 0
B66: 0 | D66: Erosion control issues
B67: 0 | D67: Historic site investgations
B68: 0 | D68: Endangered species issues
B69: 1 | C69: =B69/$F$69 -> 1 | D69: Contract error | E69: Contract Issues (Errors, omissions, and unclarity of contract clauses) | F69: =SUM(B69:B71) -> 1 | G69: =F69/$F$134 -> 0.01694915254
B70: 0 | C70: =B70/$F$69 -> 0 | D70: Contract omission
B71: 0 | C71: 0 | D71: Unclear contract items
B72: 0 | C72: 0 | D72: Cash flow restriction | E72: Funding Issues (budget concerns, unavailability of funds, and cash flow restrictions) | F72: =SUM(B72:B74) -> 0 | G72: 0
B73: 0 | C73: 0 | D73: Unavailability of Funds
B74: 0 | C74: 0 | D74: Budget concerns and layoffs
B75: 2 | C75: =B75/$F$75 -> 0.6666666667 | D75: Incomplete vegetation establishment | E75: Incomplete Vegetation Establishment (Extra time that was required for the vegetation to fully establish (mainly 80 percent) throughout the project) | F75: =SUM(B75:B76) -> 3 | G75: 0.05084745763
B76: 1 | C76: =B76/$F$75 -> 0.3333333333 | D76: Incomplete planting establishment
B77: 2 | C77: =B77/$F$77 -> 1 | D77: Maintenance/replacement required | E77: Maintenance/Replacement Required (Maintanance or replacement request to constructed or existing parts as a result of damages during construction or failure) | F77: =SUM(B77:B79) -> 2 | G77: 0.03389830508
B78: 0 | C78: =B78/$F$77 -> 0 | D78: Maintenance/replacement required (damaged objects)
B79: 0 | C79: 0 | D79: Maintenance/replacement required (existing parts failure)
B80: 3 | C80: =B80/$F$80 -> 1 | D80: Error in entering previous claim time extension/compensation in HiCAMS | E80: Administrative/Paperwork Issues (Administrative or paperwork issues during construction) | F80: =SUM(B80:B81) -> 3 | G80: 0.05084745763
B81: 0 | C81: =B81/$F$80 -> 0 | D81: Document misplacement
B82: 0 | D82: Permit acquisition waiting period | E82: Permit Issues (Environmental, construction, and all other type of permit issues) | F82: =SUM(B82:B87) -> 0 | G82: 0
B83: 0 | D83: Permit modification waiting period
B84: 0 | D84: Lack of required permit
B85: 0 | D85: Expired permits
B86: 0 | D86: Permit limitations
B87: 0 | D87: Permit violations
B88: 0 | C88: =B88/$F$88 -> 0 | D88: Delay in power supply | E88: Procurement Issues (Delays to project due to problems in procuring materials and equipment) | F88: =SUM(B88:B94) -> 3 | G88: 0.05084745763
B89: 1 | C89: =B89/$F$88 -> 0.3333333333 | D89: Procurement delays
B90: 2 | C90: 0.6666666667 | D90: Material shortage
B91: 0 | C91: 0 | D91: Department furnished material/equipment delays
B92: 0 | C92: 0 | D92: Wrong order placement
B93: 0 | C93: 0 | D93: Fabrication delays
B94: 0 | C94: 0 | D94: Material cost fluctuations
B95: 0 | D95: Quantities overrun/underrun | E95: Quantities Overrun/Underrun (Errors in budget, schedule, or items estimates) | F95: =SUM(B95) -> 0 | G95: 0
B96: 0 | D96: ROW acquisition delays | E96: ROW/Easement Issues (Problems related to Right of Way or easement) | F96: =SUM(B96:B102) -> 0 | G96: 0
B97: 0 | D97: RR right of entery issues
B98: 0 | D98: Insufficient ROW
B99: 0 | D99: Landowner(s) unwilling to sell, may need to condemn
B100: 0 | D100: Additional work required per Right of Way agreement - relocations, grading, etc.
B101: 0 | D101: ROW approval delays (utility encroachment)
B102: 0 | D102: ROW approval delays (railroad encroachment)
B103: 2 | C103: =B103/$F$103 -> 1 | D103: Seasonal limitations (weather) | E103: Seasonal Limitations (Weather) (Adverse weather conditions like extreme temperatures and precipitation that suspend the construction) | F103: =SUM(B103) -> 2 | G103: 0.03389830508
B104: 0 | D104: Survey error | E104: Survey Issues (Waiting for test results or errpneous surveys and tests that require corrective action) | F104: =SUM(B104:B105) -> 0 | G104: 0
B105: 0 | D105: Survery results delayed
B106: 1 | C106: =B106/$F$106 -> 1 | D106: Unavailability of DOT personnel | E106: Unavailability of Workforce/Personnel (Insufficient workforce or personnel that suspend or delay the construction) | F106: =SUM(B106:B109) -> 1 | G106: 0.01694915254
B107: 0 | C107: =B107/$F$106 -> 0 | D107: Unavailability of railroad flaggers
B108: 0 | C108: 0 | D108: Unavailability of workforce
B109: 0 | C109: 0 | D109: Unavailability of DOT specialized staff
B110: 1 | C110: =B110/$F$110 -> 1 | D110: Discovery of unsuitable materials (geotechnical) | E110: Discovery of Unsuitable Materials (Geotechnical) (Materials, soil in specific, that expected to be used found to be unsuitable and required removal) | F110: =SUM(B110) -> 1 | G110: 0.01694915254
B111: 6 | C111: =B111/$F$111 -> 0.4615384615 | D111: Utility conflict | E111: Utility Conflict (Conflicts and clashed with underground and overhead utilities that require utility relocation) | F111: =SUM(B111:B113) -> 13 | G111: 0.2203389831
B112: 1 | C112: =B112/$F$111 -> 0.07692307692 | D112: Discovery of unknown underground utilities
B113: 6 | C113: 0.4615384615 | D113: Utility conflict
B114: 0 | D114: Utility relocation not happen in time | E114: Utility Relocation Issues (Utility relocation not happen in time) | F114: =SUM(B114) -> 0 | G114: 0
B115: 0 | C115: =B115/$F$115 -> 0 | D115: Work restrictions due to traffic | E115: Work Restriction (Work restrictions due to traffic considerations, or due to public/local agencies during social events or moratoriums) | F115: =SUM(B115:B121) -> 1 | G115: 0.01694915254
B116: 1 | C116: =B116/$F$115 -> 1 | D116: Work restriction request by public/local agencies
B117: 0 | C117: 0 | D117: Work restrictions due to traffic
B118: 0 | C118: 0 | D118: Work restriction request by school
B119: 0 | C119: 0 | D119: Work restriction request by DOT
B120: 0 | C120: 0 | D120: Limited working space
B121: 0 | C121: 0 | D121: Work restrictions due to traffic (road closure restrictions)
B122: 0 | D122: Extra tests required | E122: Stakeholders Request Late Changes (Change request or change in scope of project by stakeholders that require extra work) | F122: =SUM(B122:B124) -> 0 | G122: 0
B123: 0 | D123: Interagency issues - cities, counties, departments, etc. request change
B124: 0 | D124: Document preparation request by DOT
B125: 0 | C125: =B125/$F$125 -> 0 | D125: Payment agreement issues | E125: Other | F125: =SUM(B125:B133) -> 1 | G125: 0.01694915254
B126: 0 | C126: =B126/$F$125 -> 0 | D126: Completion incentive
B127: 0 | C127: 0 | D127: Termination of contract
B128: 0 | C128: 0 | D128: Lawsuit costs
B129: 1 | C129: 1 | D129: Covid impact
B130: 0 | C130: 0 | D130: Unforeseen problems (unexpected death)
B131: 0 | C131: 0 | D131: Vehicle accident
B132: 0 | C132: 0 | D132: work not in conformance with contract and directive
B133: 0 | C133: 0 | D133: Contractor/subcontractor replacement
F134: =SUM(F3:F133) -> 59

Sheet Rest Area (hidden)
B2: Rest Area Projects (Based on Generic Cause) | I2: Rest Area Projects (Based on Generic Cause)
B3: 4 | C3: =B3/$F$3 -> 1 | D3: natural disaster (hurricane) | E3: Natural Disasters (All types of natural disasters that can affect budget and schedule) | F3: =SUM(B3:B9) -> 4 | G3: =F3/$F$134 -> 0.1081081081 | I3: Natural Disasters | J3: =G3 -> 0.1081081081
B4: 0 | C4: =B4/$F$3 -> 0 | D4: natural disaster (drought condition) | I4: Design/Plan Issues | J4: =G10 -> 0.2432432432
B5: 0 | C5: 0 | D5: natural disaster (slide) | I5: Planning Issues (Except Start of Work and/or projecy closeout) | J5: =G22 -> 0.08108108108
B6: 0 | C6: 0 | D6: natural disaster (flood) | I6: Project Closeout Issues | J6: =G30 -> 0.08108108108
B7: 0 | C7: 0 | D7: natural disaster (sinkhole) | I7: Constructability Issues (Except for underground conflicts) | J7: =G33 -> 0
B8: 0 | C8: 0 | D8: natural disaster (thunderstorm) | I8: Corrective Work | J8: =G36 -> 0
B9: 0 | C9: 0 | D9: natural disaster (tropical depression) | I9: Delay in Start of Work | J9: =G39 -> 0.08108108108
B10: 5 | C10: =B10/$F$10 -> 0.5555555556 | D10: Design/plan change | E10: Design/Plan Issues (Change or error in roadway, structure, geotechnical, hydraulics, traffic, utility, and environmental design) | F10: =SUM(B10:B21) -> 9 | G10: =F10/$F$134 -> 0.2432432432 | I10: Design Approval Waiting Period/Indecision/Negotiation | J10: =G46 -> 0.02702702703
B11: 0 | C11: =B11/$F$10 -> 0 | D11: Elimination of contract line item | I11: Differing Site Conditions/Discoveries (Except Utilities) | J11: =G57 -> 0
B12: 0 | C12: 0 | D12: Design change due to safety concerns | I12: Environmental Concerns | J12: =G65 -> 0.02702702703
B13: 0 | C13: 0 | D13: Change requests | I13: Contract Issues | J13: =G69 -> 0
B14: 1 | C14: 0.1111111111 | D14: Design/plan error | I14: Funding Issues | J14: =G72 -> 0
B15: 0 | C15: 0 | D15: Design modifications impact utility relocation | I15: Incomplete Vegetation Establishment | J15: =G75 -> 0
B16: 2 | C16: 0.2222222222 | D16: Design/plan revision | I16: Maintenance/Replacement Required | J16: =G77 -> 0.02702702703
B17: 1 | C17: 0.1111111111 | D17: Design/plan omission | I17: Administrative/Paperwork Issues | J17: =G80 -> 0.08108108108
B18: 0 | C18: 0 | D18: Sight distance concerns | I18: Permit Issues | J18: =G82 -> 0.02702702703
B19: 0 | C19: 0 | D19: Surveys late and/or surveys in error | I19: Procurement Issues | J19: =G88 -> 0.1081081081
B20: 0 | C20: 0 | D20: Compliance with special technical specifications | I20: Quantities Overrun/Underrun | J20: =G95 -> 0
B21: 0 | C21: 0 | D21: Misinterpretation of plans | I21: ROW/Easement Issues | J21: =G96 -> 0
B22: 0 | C22: =B22/$F$22 -> 0 | D22: Pressure to deliver project on an accelerated schedule | E22: Planning Issues (Except Start of Work and/or projecy closeout) (Delays to schedule due to insufficient planning and coordination within project team, and between project team and other stakeholders) | F22: =SUM(B22:B29) -> 3 | G22: 0.08108108108 | I22: Seasonal Limitations (Weather) | J22: =G103 -> 0.02702702703
B23: 0 | C23: =B23/$F$22 -> 0 | D23: Purposeful limited work schedule | I23: Survey Issues | J23: =G104 -> 0
B24: 0 | C24: 0 | D24: Waiting for other entities/projects to perform work | I24: Unavailability of Workforce/Personnel | J24: =G106 -> 0
B25: 0 | C25: 0 | D25: Project Schedule - delays to project delivery | I25: Discovery of Unsuitable Materials (Geotechnical) | J25: =G110 -> 0
B26: 2 | C26: 0.6666666667 | D26: Consistency and coordination with adjacent projects required | I26: Utility Conflict | J26: =G111 -> 0.05405405405
B27: 1 | C27: 0.3333333333 | D27: Lack of coordination/communication with project team | I27: Utility Relocation Issues | J27: =G114 -> 0
B28: 0 | C28: 0 | D28: Scheduling conflicts - late inspection | I28: Work Restriction | J28: =G115 -> 0.02702702703
B29: 0 | C29: 0 | D29: Limited availability of specialized staff | I29: Stakeholders Request Late Changes | J29: =G122 -> 0
B30: 0 | C30: =B30/$F$30 -> 0 | D30: Extra work required after final inspection | E30: Project Closeout Issues (Problems during project closeout) | F30: =SUM(B30:B32) -> 3 | G30: 0.08108108108 | I30: Other | J30: =G125 -> 0
B31: 3 | C31: =B31/$F$30 -> 1 | D31: Scheduling conflicts - late final inspection
B32: 0 | C32: 0 | D32: Delay in receipt of final punchlist items | I32: Rest Area Projects (Based on Design/Plan Issues)
B33: 0 | D33: Conflict with existing structures | E33: Constructability Issues (Except for underground conflicts) (Conflicts and clashes with surface objects that makes the design be unconstructable) | F33: =SUM(B33:B35) -> 0 | G33: 0
B34: 0 | D34: Conflict with surface objects | I34: Roadway Design (Vertical/horizontal alignment, earthwork, pavement, grade, etc.) | J34: 0
B35: 0 | D35: Constructability issues | I35: Structure Design (Bridge superstructure, retaining walls, etc.) | J35: 0.2222222222
B36: 0 | D36: Corrective work required | E36: Corrective Work (Corrective work or re-work as a result of problems in construction, poor quality of construction, or incorrect instructions that were gave to contractor) | F36: =SUM(B36:B38) -> 0 | G36: 0 | I36: Geotechnical Design (Foundations, ground improvements, unsuitable materials, pile driving, etc.) | J36: 0
B37: 0 | D37: Incorrect instruction by DOT personnel required corrective work | I37: Hydraulic Design (drainage, irrigation, lines, etc.) | J37: 0.2222222222
B38: 0 | D38: Delay in critical decision making on required corrective actions | I38: Traffic Design (ITS, signals, intersections, signs, guardrail, safety) | J38: 0.2222222222
B39: 0 | C39: =B39/$F$39 -> 0 | D39: Scheduling conflicts - late preconstruction meeting | E39: Delay in Start of Work (Planning, scheduling, or administrative problems that delayed start of work) | F39: =SUM(B39:B45) -> 3 | G39: 0.08108108108 | I39: Other (NCDOT/RE initiated change, maintenance/replacement, special provisions, etc) | J39: 0.3333333333
B40: 2 | C40: =B40/$F$39 -> 0.6666666667 | D40: Delay in execution of contract
B41: 0 | C41: 0 | D41: Delay in availability of project and/or start date
B42: 1 | C42: 0.3333333333 | D42: Administrative review of low bid packages
B43: 0 | C43: 0 | D43: Late receipt of contrcat information
B44: 0 | C44: 0 | D44: Delay in project award
B45: 0 | C45: 0 | D45: Unavailability of Funds
B46: 0 | C46: =B46/$F$46 -> 0 | D46: Untimely review and return of submittals | E46: Design Approval Waiting Period/Indecision/Negotiation (Time spent waiting for approval of submittals, critical decisions from NCDOT, and reaching agreement with stakeholders) | F46: =SUM(B46:B56) -> 1 | G46: 0.02702702703
B47: 0 | C47: =B47/$F$46 -> 0 | D47: Delay in critical decision making
B48: 0 | C48: 0 | D48: Negotiation delays
B49: 0 | C49: 0 | D49: Delays in reaching agreement with property owners
B50: 0 | C50: 0 | D50: Delays in reaching agreement with stakeholders
B51: 0 | C51: 0 | D51: Delays in reaching utility agreement
B52: 0 | C52: 0 | D52: Delay in critical decision making on required corrective actions
B53: 0 | C53: 0 | D53: Untimelty receipt of design/plan
B54: 0 | C54: 0 | D54: Delays in reaching agreement with other entities
B55: 0 | C55: 0 | D55: Delays in reaching agreement with railroad
B56: 1 | C56: 1 | D56: Delay in receipt of (land) quality control approvals
B57: 0 | D57: Conflict with unknown underground obstructions/structures | E57: Differing Site Conditions/Discoveries (Except Utilities) (Subsurface situations that were different than anticipated) | F57: =SUM(B57:B64) -> 0 | G57: 0
B58: 0 | D58: Discovery of underground water flow
B59: 0 | D59: Excess surface water issues
B60: 0 | D60: Discovery of contaminated ground water
B61: 0 | D61: Differing site conditions
B62: 0 | D62: Wetland discovery
B63: 0 | D63: Discovery of contaminated soil
B64: 0 | D64: Discovery of hazardous underground materials
B65: 0 | C65: =B65/$F$65 -> 0 | D65: Wetland and/or endandered species survey | E65: Environmental Concerns (Extra work of surveys and investigations due to environmental related concerns) | F65: =SUM(B65:B68) -> 1 | G65: 0.02702702703
B66: 1 | C66: =B66/$F$65 -> 1 | D66: Erosion control issues
B67: 0 | C67: 0 | D67: Historic site investgations
B68: 0 | C68: 0 | D68: Endangered species issues
B69: 0 | D69: Contract error | E69: Contract Issues (Errors, omissions, and unclarity of contract clauses) | F69: =SUM(B69:B71) -> 0 | G69: =F69/$F$134 -> 0
B70: 0 | D70: Contract omission
B71: 0 | D71: Unclear contract items
B72: 0 | C72: 0 | D72: Cash flow restriction | E72: Funding Issues (budget concerns, unavailability of funds, and cash flow restrictions) | F72: =SUM(B72:B74) -> 0 | G72: 0
B73: 0 | C73: 0 | D73: Unavailability of Funds
B74: 0 | C74: 0 | D74: Budget concerns and layoffs
B75: 0 | D75: Incomplete vegetation establishment | E75: Incomplete Vegetation Establishment (Extra time that was required for the vegetation to fully establish (mainly 80 percent) throughout the project) | F75: =SUM(B75:B76) -> 0 | G75: 0
B76: 0 | D76: Incomplete planting establishment
B77: 1 | C77: =B77/$F$77 -> 1 | D77: Maintenance/replacement required | E77: Maintenance/Replacement Required (Maintanance or replacement request to constructed or existing parts as a result of damages during construction or failure) | F77: =SUM(B77:B79) -> 1 | G77: 0.02702702703
B78: 0 | C78: =B78/$F$77 -> 0 | D78: Maintenance/replacement required (damaged objects)
B79: 0 | C79: 0 | D79: Maintenance/replacement required (existing parts failure)
B80: 3 | C80: =B80/$F$80 -> 1 | D80: Error in entering previous claim time extension/compensation in HiCAMS | E80: Administrative/Paperwork Issues (Administrative or paperwork issues during construction) | F80: =SUM(B80:B81) -> 3 | G80: 0.08108108108
B81: 0 | C81: =B81/$F$80 -> 0 | D81: Document misplacement
B82: 0 | C82: =B82/$F$82 -> 0 | D82: Permit acquisition waiting period | E82: Permit Issues (Environmental, construction, and all other type of permit issues) | F82: =SUM(B82:B87) -> 1 | G82: 0.02702702703
B83: 0 | C83: =B83/$F$82 -> 0 | D83: Permit modification waiting period
B84: 1 | C84: 1 | D84: Lack of required permit
B85: 0 | C85: 0 | D85: Expired permits
B86: 0 | C86: 0 | D86: Permit limitations
B87: 0 | C87: 0 | D87: Permit violations
B88: 0 | C88: =B88/$F$88 -> 0 | D88: Delay in power supply | E88: Procurement Issues (Delays to project due to problems in procuring materials and equipment) | F88: =SUM(B88:B94) -> 4 | G88: 0.1081081081
B89: 1 | C89: =B89/$F$88 -> 0.25 | D89: Procurement delays
B90: 1 | C90: 0.25 | D90: Material shortage
B91: 0 | C91: 0 | D91: Department furnished material/equipment delays
B92: 1 | C92: 0.25 | D92: Wrong order placement
B93: 0 | C93: 0 | D93: Fabrication delays
B94: 1 | C94: 0.25 | D94: Material cost fluctuations
B95: 0 | D95: Quantities overrun/underrun | E95: Quantities Overrun/Underrun (Errors in budget, schedule, or items estimates) | F95: =SUM(B95) -> 0 | G95: 0
B96: 0 | D96: ROW acquisition delays | E96: ROW/Easement Issues (Problems related to Right of Way or easement) | F96: =SUM(B96:B102) -> 0 | G96: 0
B97: 0 | D97: RR right of entery issues
B98: 0 | D98: Insufficient ROW
B99: 0 | D99: Landowner(s) unwilling to sell, may need to condemn
B100: 0 | D100: Additional work required per Right of Way agreement - relocations, grading, etc.
B101: 0 | D101: ROW approval delays (utility encroachment)
B102: 0 | D102: ROW approval delays (railroad encroachment)
B103: 1 | C103: =B103/$F$103 -> 1 | D103: Seasonal limitations (weather) | E103: Seasonal Limitations (Weather) (Adverse weather conditions like extreme temperatures and precipitation that suspend the construction) | F103: =SUM(B103) -> 1 | G103: 0.02702702703
B104: 0 | D104: Survey error | E104: Survey Issues (Waiting for test results or errpneous surveys and tests that require corrective action) | F104: =SUM(B104:B105) -> 0 | G104: 0
B105: 0 | D105: Survery results delayed
B106: 0 | D106: Unavailability of DOT personnel | E106: Unavailability of Workforce/Personnel (Insufficient workforce or personnel that suspend or delay the construction) | F106: =SUM(B106:B109) -> 0 | G106: 0
B107: 0 | D107: Unavailability of railroad flaggers
B108: 0 | D108: Unavailability of workforce
B109: 0 | D109: Unavailability of DOT specialized staff
B110: 0 | D110: Discovery of unsuitable materials (geotechnical) | E110: Discovery of Unsuitable Materials (Geotechnical) (Materials, soil in specific, that expected to be used found to be unsuitable and required removal) | F110: =SUM(B110) -> 0 | G110: 0
B111: 1 | C111: =B111/$F$111 -> 0.5 | D111: Utility conflict | E111: Utility Conflict (Conflicts and clashed with underground and overhead utilities that require utility relocation) | F111: =SUM(B111:B113) -> 2 | G111: 0.05405405405
B112: 0 | C112: =B112/$F$111 -> 0 | D112: Discovery of unknown underground utilities
B113: 1 | C113: 0.5 | D113: Utility conflict
B114: 0 | D114: Utility relocation not happen in time | E114: Utility Relocation Issues (Utility relocation not happen in time) | F114: =SUM(B114) -> 0 | G114: 0
B115: 0 | C115: =B115/$F$115 -> 0 | D115: Work restrictions due to traffic | E115: Work Restriction (Work restrictions due to traffic considerations, or due to public/local agencies during social events or moratoriums) | F115: =SUM(B115:B121) -> 1 | G115: 0.02702702703
B116: 0 | C116: =B116/$F$115 -> 0 | D116: Work restriction request by public/local agencies
B117: 0 | C117: 0 | D117: Work restrictions due to traffic
B118: 0 | C118: 0 | D118: Work restriction request by school
B119: 1 | C119: 1 | D119: Work restriction request by DOT
B120: 0 | C120: 0 | D120: Limited working space
B121: 0 | C121: 0 | D121: Work restrictions due to traffic (road closure restrictions)
B122: 0 | D122: Extra tests required | E122: Stakeholders Request Late Changes (Change request or change in scope of project by stakeholders that require extra work) | F122: =SUM(B122:B124) -> 0 | G122: 0
B123: 0 | D123: Interagency issues - cities, counties, departments, etc. request change
B124: 0 | D124: Document preparation request by DOT
B125: 0 | D125: Payment agreement issues | E125: Other | F125: =SUM(B125:B133) -> 0 | G125: 0
B126: 0 | D126: Completion incentive
B127: 0 | D127: Termination of contract
B128: 0 | D128: Lawsuit costs
B129: 0 | D129: Covid impact
B130: 0 | D130: Unforeseen problems (unexpected death)
B131: 0 | D131: Vehicle accident
B132: 0 | D132: work not in conformance with contract and directive
B133: 0 | D133: Contractor/subcontractor replacement
F134: =SUM(F3:F133) -> 37

Sheet Railroad-Highway Crossings (hidden)
B2: Railroad - Highway Crossings Projects (Based on Generic Cause) | I2: Railroad - Highway Crossings Projects (Based on Generic Cause)
B3: 0 | D3: natural disaster (hurricane) | E3: Natural Disasters (All types of natural disasters that can affect budget and schedule) | F3: =SUM(B3:B9) -> 0 | G3: =F3/$F$134 -> 0 | I3: Natural Disasters | J3: =G3 -> 0
B4: 0 | D4: natural disaster (drought condition) | I4: Design/Plan Issues | J4: =G10 -> 0
B5: 0 | D5: natural disaster (slide) | I5: Planning Issues (Except Start of Work and/or projecy closeout) | J5: =G22 -> 0.1111111111
B6: 0 | D6: natural disaster (flood) | I6: Project Closeout Issues | J6: =G30 -> 0.1111111111
B7: 0 | D7: natural disaster (sinkhole) | I7: Constructability Issues (Except for underground conflicts) | J7: =G33 -> 0
B8: 0 | D8: natural disaster (thunderstorm) | I8: Corrective Work | J8: =G36 -> 0
B9: 0 | D9: natural disaster (tropical depression) | I9: Delay in Start of Work | J9: =G39 -> 0
B10: 0 | D10: Design/plan change | E10: Design/Plan Issues (Change or error in roadway, structure, geotechnical, hydraulics, traffic, utility, and environmental design) | F10: =SUM(B10:B21) -> 0 | G10: =F10/$F$134 -> 0 | I10: Design Approval Waiting Period/Indecision/Negotiation | J10: =G46 -> 0
B11: 0 | D11: Elimination of contract line item | I11: Differing Site Conditions/Discoveries (Except Utilities) | J11: =G57 -> 0
B12: 0 | D12: Design change due to safety concerns | I12: Environmental Concerns | J12: =G65 -> 0
B13: 0 | D13: Change requests | I13: Contract Issues | J13: =G69 -> 0
B14: 0 | D14: Design/plan error | I14: Funding Issues | J14: =G72 -> 0
B15: 0 | D15: Design modifications impact utility relocation | I15: Incomplete Vegetation Establishment | J15: =G75 -> 0
B16: 0 | D16: Design/plan revision | I16: Maintenance/Replacement Required | J16: =G77 -> 0
B17: 0 | D17: Design/plan omission | I17: Administrative/Paperwork Issues | J17: =G80 -> 0
B18: 0 | D18: Sight distance concerns | I18: Permit Issues | J18: =G82 -> 0
B19: 0 | D19: Surveys late and/or surveys in error | I19: Procurement Issues | J19: =G88 -> 0
B20: 0 | D20: Compliance with special technical specifications | I20: Quantities Overrun/Underrun | J20: =G95 -> 0
B21: 0 | D21: Misinterpretation of plans | I21: ROW/Easement Issues | J21: =G96 -> 0
B22: 0 | C22: =B22/$F$22 -> 0 | D22: Pressure to deliver project on an accelerated schedule | E22: Planning Issues (Except Start of Work and/or projecy closeout) (Delays to schedule due to insufficient planning and coordination within project team, and between project team and other stakeholders) | F22: =SUM(B22:B29) -> 1 | G22: 0.1111111111 | I22: Seasonal Limitations (Weather) | J22: =G103 -> 0
B23: 0 | C23: =B23/$F$22 -> 0 | D23: Purposeful limited work schedule | I23: Survey Issues | J23: =G104 -> 0
B24: 1 | C24: 1 | D24: Waiting for other entities/projects to perform work | I24: Unavailability of Workforce/Personnel | J24: =G106 -> 0
B25: 0 | C25: 0 | D25: Project Schedule - delays to project delivery | I25: Discovery of Unsuitable Materials (Geotechnical) | J25: =G110 -> 0
B26: 0 | C26: 0 | D26: Consistency and coordination with adjacent projects required | I26: Utility Conflict | J26: =G111 -> 0.4444444444
B27: 0 | C27: 0 | D27: Lack of coordination/communication with project team | I27: Utility Relocation Issues | J27: =G114 -> 0.1111111111
B28: 0 | C28: 0 | D28: Scheduling conflicts - late inspection | I28: Work Restriction | J28: =G115 -> 0.2222222222
B29: 0 | C29: 0 | D29: Limited availability of specialized staff | I29: Stakeholders Request Late Changes | J29: =G122 -> 0
B30: 0 | C30: =B30/$F$30 -> 0 | D30: Extra work required after final inspection | E30: Project Closeout Issues (Problems during project closeout) | F30: =SUM(B30:B32) -> 1 | G30: 0.1111111111 | I30: Other | J30: =G125 -> 0
B31: 1 | C31: =B31/$F$30 -> 1 | D31: Scheduling conflicts - late final inspection
B32: 0 | C32: 0 | D32: Delay in receipt of final punchlist items | I32: Railroad - Highway Crossings Projects (Based on Design/Plan Issues)
B33: 0 | D33: Conflict with existing structures | E33: Constructability Issues (Except for underground conflicts) (Conflicts and clashes with surface objects that makes the design be unconstructable) | F33: =SUM(B33:B35) -> 0 | G33: 0
B34: 0 | D34: Conflict with surface objects | I34: Roadway Design (Vertical/horizontal alignment, earthwork, pavement, grade, etc.) | J34: 0
B35: 0 | D35: Constructability issues | I35: Structure Design (Bridge superstructure, retaining walls, etc.) | J35: 0
B36: 0 | D36: Corrective work required | E36: Corrective Work (Corrective work or re-work as a result of problems in construction, poor quality of construction, or incorrect instructions that were gave to contractor) | F36: =SUM(B36:B38) -> 0 | G36: 0 | I36: Geotechnical Design (Foundations, ground improvements, unsuitable materials, pile driving, etc.) | J36: 0
B37: 0 | D37: Incorrect instruction by DOT personnel required corrective work | I37: Hydraulic Design (drainage, irrigation, lines, etc.) | J37: 0
B38: 0 | D38: Delay in critical decision making on required corrective actions | I38: Traffic Design (ITS, signals, intersections, signs, guardrail, safety) | J38: 0
B39: 0 | D39: Scheduling conflicts - late preconstruction meeting | E39: Delay in Start of Work (Planning, scheduling, or administrative problems that delayed start of work) | F39: =SUM(B39:B45) -> 0 | G39: 0 | I39: Other (NCDOT/RE initiated change, maintenance/replacement, special provisions, etc) | J39: 0
B40: 0 | D40: Delay in execution of contract
B41: 0 | D41: Delay in availability of project and/or start date
B42: 0 | D42: Administrative review of low bid packages
B43: 0 | D43: Late receipt of contrcat information
B44: 0 | D44: Delay in project award
B45: 0 | D45: Unavailability of Funds
B46: 0 | D46: Untimely review and return of submittals | E46: Design Approval Waiting Period/Indecision/Negotiation (Time spent waiting for approval of submittals, critical decisions from NCDOT, and reaching agreement with stakeholders) | F46: =SUM(B46:B56) -> 0 | G46: 0
B47: 0 | D47: Delay in critical decision making
B48: 0 | D48: Negotiation delays
B49: 0 | D49: Delays in reaching agreement with property owners
B50: 0 | D50: Delays in reaching agreement with stakeholders
B51: 0 | D51: Delays in reaching utility agreement
B52: 0 | D52: Delay in critical decision making on required corrective actions
B53: 0 | D53: Untimelty receipt of design/plan
B54: 0 | D54: Delays in reaching agreement with other entities
B55: 0 | D55: Delays in reaching agreement with railroad
B56: 0 | D56: Delay in receipt of (land) quality control approvals
B57: 0 | D57: Conflict with unknown underground obstructions/structures | E57: Differing Site Conditions/Discoveries (Except Utilities) (Subsurface situations that were different than anticipated) | F57: =SUM(B57:B64) -> 0 | G57: 0
B58: 0 | D58: Discovery of underground water flow
B59: 0 | D59: Excess surface water issues
B60: 0 | D60: Discovery of contaminated ground water
B61: 0 | D61: Differing site conditions
B62: 0 | D62: Wetland discovery
B63: 0 | D63: Discovery of contaminated soil
B64: 0 | D64: Discovery of hazardous underground materials
B65: 0 | D65: Wetland and/or endandered species survey | E65: Environmental Concerns (Extra work of surveys and investigations due to environmental related concerns) | F65: =SUM(B65:B68) -> 0 | G65: 0
B66: 0 | D66: Erosion control issues
B67: 0 | D67: Historic site investgations
B68: 0 | D68: Endangered species issues
B69: 0 | D69: Contract error | E69: Contract Issues (Errors, omissions, and unclarity of contract clauses) | F69: =SUM(B69:B71) -> 0 | G69: =F69/$F$134 -> 0
B70: 0 | D70: Contract omission
B71: 0 | D71: Unclear contract items
B72: 0 | C72: 0 | D72: Cash flow restriction | E72: Funding Issues (budget concerns, unavailability of funds, and cash flow restrictions) | F72: =SUM(B72:B74) -> 0 | G72: 0
B73: 0 | C73: 0 | D73: Unavailability of Funds
B74: 0 | C74: 0 | D74: Budget concerns and layoffs
B75: 0 | D75: Incomplete vegetation establishment | E75: Incomplete Vegetation Establishment (Extra time that was required for the vegetation to fully establish (mainly 80 percent) throughout the project) | F75: =SUM(B75:B76) -> 0 | G75: 0
B76: 0 | D76: Incomplete planting establishment
B77: 0 | D77: Maintenance/replacement required | E77: Maintenance/Replacement Required (Maintanance or replacement request to constructed or existing parts as a result of damages during construction or failure) | F77: =SUM(B77:B79) -> 0 | G77: 0
B78: 0 | D78: Maintenance/replacement required (damaged objects)
B79: 0 | D79: Maintenance/replacement required (existing parts failure)
B80: 0 | D80: Error in entering previous claim time extension/compensation in HiCAMS | E80: Administrative/Paperwork Issues (Administrative or paperwork issues during construction) | F80: =SUM(B80:B81) -> 0 | G80: 0
B81: 0 | D81: Document misplacement
B82: 0 | D82: Permit acquisition waiting period | E82: Permit Issues (Environmental, construction, and all other type of permit issues) | F82: =SUM(B82:B87) -> 0 | G82: 0
B83: 0 | D83: Permit modification waiting period
B84: 0 | D84: Lack of required permit
B85: 0 | D85: Expired permits
B86: 0 | D86: Permit limitations
B87: 0 | D87: Permit violations
B88: 0 | D88: Delay in power supply | E88: Procurement Issues (Delays to project due to problems in procuring materials and equipment) | F88: =SUM(B88:B94) -> 0 | G88: 0
B89: 0 | D89: Procurement delays
B90: 0 | D90: Material shortage
B91: 0 | D91: Department furnished material/equipment delays
B92: 0 | D92: Wrong order placement
B93: 0 | D93: Fabrication delays
B94: 0 | D94: Material cost fluctuations
B95: 0 | D95: Quantities overrun/underrun | E95: Quantities Overrun/Underrun (Errors in budget, schedule, or items estimates) | F95: =SUM(B95) -> 0 | G95: 0
B96: 0 | D96: ROW acquisition delays | E96: ROW/Easement Issues (Problems related to Right of Way or easement) | F96: =SUM(B96:B102) -> 0 | G96: 0
B97: 0 | D97: RR right of entery issues
B98: 0 | D98: Insufficient ROW
B99: 0 | D99: Landowner(s) unwilling to sell, may need to condemn
B100: 0 | D100: Additional work required per Right of Way agreement - relocations, grading, etc.
B101: 0 | D101: ROW approval delays (utility encroachment)
B102: 0 | D102: ROW approval delays (railroad encroachment)
B103: 0 | D103: Seasonal limitations (weather) | E103: Seasonal Limitations (Weather) (Adverse weather conditions like extreme temperatures and precipitation that suspend the construction) | F103: =SUM(B103) -> 0 | G103: 0
B104: 0 | D104: Survey error | E104: Survey Issues (Waiting for test results or errpneous surveys and tests that require corrective action) | F104: =SUM(B104:B105) -> 0 | G104: 0
B105: 0 | D105: Survery results delayed
B106: 0 | D106: Unavailability of DOT personnel | E106: Unavailability of Workforce/Personnel (Insufficient workforce or personnel that suspend or delay the construction) | F106: =SUM(B106:B109) -> 0 | G106: 0
B107: 0 | D107: Unavailability of railroad flaggers
B108: 0 | D108: Unavailability of workforce
B109: 0 | D109: Unavailability of DOT specialized staff
B110: 0 | D110: Discovery of unsuitable materials (geotechnical) | E110: Discovery of Unsuitable Materials (Geotechnical) (Materials, soil in specific, that expected to be used found to be unsuitable and required removal) | F110: =SUM(B110) -> 0 | G110: 0
B111: 2 | C111: =B111/$F$111 -> 0.5 | D111: Utility conflict | E111: Utility Conflict (Conflicts and clashed with underground and overhead utilities that require utility relocation) | F111: =SUM(B111:B113) -> 4 | G111: 0.4444444444
B112: 0 | C112: =B112/$F$111 -> 0 | D112: Discovery of unknown underground utilities
B113: 2 | C113: 0.5 | D113: Utility conflict
B114: 1 | C114: =B114/$F$114 -> 1 | D114: Utility relocation not happen in time | E114: Utility Relocation Issues (Utility relocation not happen in time) | F114: =SUM(B114) -> 1 | G114: 0.1111111111
B115: 0 | C115: =B115/$F$115 -> 0 | D115: Work restrictions due to traffic | E115: Work Restriction (Work restrictions due to traffic considerations, or due to public/local agencies during social events or moratoriums) | F115: =SUM(B115:B121) -> 2 | G115: 0.2222222222
B116: 1 | C116: =B116/$F$115 -> 0.5 | D116: Work restriction request by public/local agencies
B117: 0 | C117: 0 | D117: Work restrictions due to traffic
B118: 1 | C118: 0.5 | D118: Work restriction request by school
B119: 0 | C119: 0 | D119: Work restriction request by DOT
B120: 0 | C120: 0 | D120: Limited working space
B121: 0 | C121: 0 | D121: Work restrictions due to traffic (road closure restrictions)
B122: 0 | D122: Extra tests required | E122: Stakeholders Request Late Changes (Change request or change in scope of project by stakeholders that require extra work) | F122: =SUM(B122:B124) -> 0 | G122: 0
B123: 0 | D123: Interagency issues - cities, counties, departments, etc. request change
B124: 0 | D124: Document preparation request by DOT
B125: 0 | D125: Payment agreement issues | E125: Other | F125: =SUM(B125:B133) -> 0 | G125: 0
B126: 0 | D126: Completion incentive
B127: 0 | D127: Termination of contract
B128: 0 | D128: Lawsuit costs
B129: 0 | D129: Covid impact
B130: 0 | D130: Unforeseen problems (unexpected death)
B131: 0 | D131: Vehicle accident
B132: 0 | D132: work not in conformance with contract and directive
B133: 0 | D133: Contractor/subcontractor replacement
F134: =SUM(F3:F133) -> 9

Sheet Rail (hidden)
B2: Rail Projects (Based on Generic Cause) | I2: Rail Projects (Based on Generic Cause)
B3: 0 | D3: natural disaster (hurricane) | E3: Natural Disasters (All types of natural disasters that can affect budget and schedule) | F3: =SUM(B3:B9) -> 0 | G3: =F3/$F$134 -> 0 | I3: Natural Disasters | J3: =G3 -> 0
B4: 0 | D4: natural disaster (drought condition) | I4: Design/Plan Issues | J4: =G10 -> 0.07777777778
B5: 0 | D5: natural disaster (slide) | I5: Planning Issues (Except Start of Work and/or projecy closeout) | J5: =G22 -> 0.03333333333
B6: 0 | D6: natural disaster (flood) | I6: Project Closeout Issues | J6: =G30 -> 0.01111111111
B7: 0 | D7: natural disaster (sinkhole) | I7: Constructability Issues (Except for underground conflicts) | J7: =G33 -> 0.01111111111
B8: 0 | D8: natural disaster (thunderstorm) | I8: Corrective Work | J8: =G36 -> 0
B9: 0 | D9: natural disaster (tropical depression) | I9: Delay in Start of Work | J9: =G39 -> 0
B10: 1 | C10: =B10/$F$10 -> 0.1428571429 | D10: Design/plan change | E10: Design/Plan Issues (Change or error in roadway, structure, geotechnical, hydraulics, traffic, utility, and environmental design) | F10: =SUM(B10:B21) -> 7 | G10: =F10/$F$134 -> 0.07777777778 | I10: Design Approval Waiting Period/Indecision/Negotiation | J10: =G46 -> 0.01111111111
B11: 0 | C11: =B11/$F$10 -> 0 | D11: Elimination of contract line item | I11: Differing Site Conditions/Discoveries (Except Utilities) | J11: =G57 -> 0
B12: 0 | C12: 0 | D12: Design change due to safety concerns | I12: Environmental Concerns | J12: =G65 -> 0
B13: 1 | C13: 0.1428571429 | D13: Change requests | I13: Contract Issues | J13: =G69 -> 0.03333333333
B14: 2 | C14: 0.2857142857 | D14: Design/plan error | I14: Funding Issues | J14: =G72 -> 0.01111111111
B15: 0 | C15: 0 | D15: Design modifications impact utility relocation | I15: Incomplete Vegetation Establishment | J15: =G75 -> 0
B16: 2 | C16: 0.2857142857 | D16: Design/plan revision | I16: Maintenance/Replacement Required | J16: =G77 -> 0.02222222222
B17: 0 | C17: 0 | D17: Design/plan omission | I17: Administrative/Paperwork Issues | J17: =G80 -> 0.01111111111
B18: 0 | C18: 0 | D18: Sight distance concerns | I18: Permit Issues | J18: =G82 -> 0
B19: 0 | C19: 0 | D19: Surveys late and/or surveys in error | I19: Procurement Issues | J19: =G88 -> 0.01111111111
B20: 0 | C20: 0 | D20: Compliance with special technical specifications | I20: Quantities Overrun/Underrun | J20: =G95 -> 0.08888888889
B21: 1 | C21: 0.1428571429 | D21: Misinterpretation of plans | I21: ROW/Easement Issues | J21: =G96 -> 0.07777777778
B22: 0 | C22: =B22/$F$22 -> 0 | D22: Pressure to deliver project on an accelerated schedule | E22: Planning Issues (Except Start of Work and/or projecy closeout) (Delays to schedule due to insufficient planning and coordination within project team, and between project team and other stakeholders) | F22: =SUM(B22:B29) -> 3 | G22: 0.03333333333 | I22: Seasonal Limitations (Weather) | J22: =G103 -> 0.04444444444
B23: 0 | C23: =B23/$F$22 -> 0 | D23: Purposeful limited work schedule | I23: Survey Issues | J23: =G104 -> 0
B24: 2 | C24: 0.6666666667 | D24: Waiting for other entities/projects to perform work | I24: Unavailability of Workforce/Personnel | J24: =G106 -> 0.02222222222
B25: 0 | C25: 0 | D25: Project Schedule - delays to project delivery | I25: Discovery of Unsuitable Materials (Geotechnical) | J25: =G110 -> 0
B26: 0 | C26: 0 | D26: Consistency and coordination with adjacent projects required | I26: Utility Conflict | J26: =G111 -> 0.4666666667
B27: 1 | C27: 0.3333333333 | D27: Lack of coordination/communication with project team | I27: Utility Relocation Issues | J27: =G114 -> 0.04444444444
B28: 0 | C28: 0 | D28: Scheduling conflicts - late inspection | I28: Work Restriction | J28: =G115 -> 0
B29: 0 | C29: 0 | D29: Limited availability of specialized staff | I29: Stakeholders Request Late Changes | J29: =G122 -> 0.02222222222
B30: 0 | C30: =B30/$F$30 -> 0 | D30: Extra work required after final inspection | E30: Project Closeout Issues (Problems during project closeout) | F30: =SUM(B30:B32) -> 1 | G30: 0.01111111111 | I30: Other | J30: =G125 -> 0
B31: 1 | C31: =B31/$F$30 -> 1 | D31: Scheduling conflicts - late final inspection
B32: 0 | C32: 0 | D32: Delay in receipt of final punchlist items | I32: Rail Projects (Based on Design/Plan Issues)
B33: 1 | C33: =B33/$F$33 -> 1 | D33: Conflict with existing structures | E33: Constructability Issues (Except for underground conflicts) (Conflicts and clashes with surface objects that makes the design be unconstructable) | F33: =SUM(B33:B35) -> 1 | G33: 0.01111111111
B34: 0 | C34: =B34/$F$33 -> 0 | D34: Conflict with surface objects | I34: Roadway Design (Vertical/horizontal alignment, earthwork, pavement, grade, etc.) | J34: 0
B35: 0 | C35: 0 | D35: Constructability issues | I35: Structure Design (Bridge superstructure, retaining walls, etc.) | J35: 0
B36: 0 | D36: Corrective work required | E36: Corrective Work (Corrective work or re-work as a result of problems in construction, poor quality of construction, or incorrect instructions that were gave to contractor) | F36: =SUM(B36:B38) -> 0 | G36: 0 | I36: Geotechnical Design (Foundations, ground improvements, unsuitable materials, pile driving, etc.) | J36: 0.1666666667
B37: 0 | D37: Incorrect instruction by DOT personnel required corrective work | I37: Hydraulic Design (drainage, irrigation, lines, etc.) | J37: 0.3333333333
B38: 0 | D38: Delay in critical decision making on required corrective actions | I38: Traffic Design (ITS, signals, intersections, signs, guardrail, safety) | J38: 0.5
B39: 0 | D39: Scheduling conflicts - late preconstruction meeting | E39: Delay in Start of Work (Planning, scheduling, or administrative problems that delayed start of work) | F39: =SUM(B39:B45) -> 0 | G39: 0 | I39: Other (NCDOT/RE initiated change, maintenance/replacement, special provisions, etc) | J39: 0
B40: 0 | D40: Delay in execution of contract
B41: 0 | D41: Delay in availability of project and/or start date
B42: 0 | D42: Administrative review of low bid packages
B43: 0 | D43: Late receipt of contrcat information
B44: 0 | D44: Delay in project award
B45: 0 | D45: Unavailability of Funds
B46: 0 | C46: =B46/$F$46 -> 0 | D46: Untimely review and return of submittals | E46: Design Approval Waiting Period/Indecision/Negotiation (Time spent waiting for approval of submittals, critical decisions from NCDOT, and reaching agreement with stakeholders) | F46: =SUM(B46:B56) -> 1 | G46: 0.01111111111
B47: 1 | C47: =B47/$F$46 -> 1 | D47: Delay in critical decision making
B48: 0 | C48: 0 | D48: Negotiation delays
B49: 0 | C49: 0 | D49: Delays in reaching agreement with property owners
B50: 0 | C50: 0 | D50: Delays in reaching agreement with stakeholders
B51: 0 | C51: 0 | D51: Delays in reaching utility agreement
B52: 0 | C52: 0 | D52: Delay in critical decision making on required corrective actions
B53: 0 | C53: 0 | D53: Untimelty receipt of design/plan
B54: 0 | C54: 0 | D54: Delays in reaching agreement with other entities
B55: 0 | C55: 0 | D55: Delays in reaching agreement with railroad
B56: 0 | C56: 0 | D56: Delay in receipt of (land) quality control approvals
B57: 0 | D57: Conflict with unknown underground obstructions/structures | E57: Differing Site Conditions/Discoveries (Except Utilities) (Subsurface situations that were different than anticipated) | F57: =SUM(B57:B64) -> 0 | G57: 0
B58: 0 | D58: Discovery of underground water flow
B59: 0 | D59: Excess surface water issues
B60: 0 | D60: Discovery of contaminated ground water
B61: 0 | D61: Differing site conditions
B62: 0 | D62: Wetland discovery
B63: 0 | D63: Discovery of contaminated soil
B64: 0 | D64: Discovery of hazardous underground materials
B65: 0 | D65: Wetland and/or endandered species survey | E65: Environmental Concerns (Extra work of surveys and investigations due to environmental related concerns) | F65: =SUM(B65:B68) -> 0 | G65: 0
B66: 0 | D66: Erosion control issues
B67: 0 | D67: Historic site investgations
B68: 0 | D68: Endangered species issues
B69: 2 | C69: =B69/$F$69 -> 0.6666666667 | D69: Contract error | E69: Contract Issues (Errors, omissions, and unclarity of contract clauses) | F69: =SUM(B69:B71) -> 3 | G69: =F69/$F$134 -> 0.03333333333
B70: 0 | C70: =B70/$F$69 -> 0 | D70: Contract omission
B71: 1 | C71: 0.3333333333 | D71: Unclear contract items
B72: 1 | C72: 0 | D72: Cash flow restriction | E72: Funding Issues (budget concerns, unavailability of funds, and cash flow restrictions) | F72: =SUM(B72:B74) -> 1 | G72: 0.01111111111
B73: 0 | C73: 0 | D73: Unavailability of Funds
B74: 0 | C74: 0 | D74: Budget concerns and layoffs
B75: 0 | D75: Incomplete vegetation establishment | E75: Incomplete Vegetation Establishment (Extra time that was required for the vegetation to fully establish (mainly 80 percent) throughout the project) | F75: =SUM(B75:B76) -> 0 | G75: 0
B76: 0 | D76: Incomplete planting establishment
B77: 2 | C77: =B77/$F$77 -> 1 | D77: Maintenance/replacement required | E77: Maintenance/Replacement Required (Maintanance or replacement request to constructed or existing parts as a result of damages during construction or failure) | F77: =SUM(B77:B79) -> 2 | G77: 0.02222222222
B78: 0 | C78: =B78/$F$77 -> 0 | D78: Maintenance/replacement required (damaged objects)
B79: 0 | C79: 0 | D79: Maintenance/replacement required (existing parts failure)
B80: 1 | C80: =B80/$F$80 -> 1 | D80: Error in entering previous claim time extension/compensation in HiCAMS | E80: Administrative/Paperwork Issues (Administrative or paperwork issues during construction) | F80: =SUM(B80:B81) -> 1 | G80: 0.01111111111
B81: 0 | C81: =B81/$F$80 -> 0 | D81: Document misplacement
B82: 0 | D82: Permit acquisition waiting period | E82: Permit Issues (Environmental, construction, and all other type of permit issues) | F82: =SUM(B82:B87) -> 0 | G82: 0
B83: 0 | D83: Permit modification waiting period
B84: 0 | D84: Lack of required permit
B85: 0 | D85: Expired permits
B86: 0 | D86: Permit limitations
B87: 0 | D87: Permit violations
B88: 1 | C88: =B88/$F$88 -> 1 | D88: Delay in power supply | E88: Procurement Issues (Delays to project due to problems in procuring materials and equipment) | F88: =SUM(B88:B94) -> 1 | G88: 0.01111111111
B89: 0 | C89: =B89/$F$88 -> 0 | D89: Procurement delays
B90: 0 | C90: 0 | D90: Material shortage
B91: 0 | C91: 0 | D91: Department furnished material/equipment delays
B92: 0 | C92: 0 | D92: Wrong order placement
B93: 0 | C93: 0 | D93: Fabrication delays
B94: 0 | C94: 0 | D94: Material cost fluctuations
B95: 8 | C95: =B95/$F$95 -> 1 | D95: Quantities overrun/underrun | E95: Quantities Overrun/Underrun (Errors in budget, schedule, or items estimates) | F95: =SUM(B95) -> 8 | G95: 0.08888888889
B96: 0 | C96: =B96/$F$96 -> 0 | D96: ROW acquisition delays | E96: ROW/Easement Issues (Problems related to Right of Way or easement) | F96: =SUM(B96:B102) -> 7 | G96: 0.07777777778
B97: 6 | C97: =B97/$F$96 -> 0.8571428571 | D97: RR right of entery issues
B98: 1 | C98: 0.1428571429 | D98: Insufficient ROW
B99: 0 | C99: 0 | D99: Landowner(s) unwilling to sell, may need to condemn
B100: 0 | C100: 0 | D100: Additional work required per Right of Way agreement - relocations, grading, etc.
B101: 0 | C101: 0 | D101: ROW approval delays (utility encroachment)
B102: 0 | C102: 0 | D102: ROW approval delays (railroad encroachment)
B103: 4 | C103: =B103/$F$103 -> 1 | D103: Seasonal limitations (weather) | E103: Seasonal Limitations (Weather) (Adverse weather conditions like extreme temperatures and precipitation that suspend the construction) | F103: =SUM(B103) -> 4 | G103: 0.04444444444
B104: 0 | D104: Survey error | E104: Survey Issues (Waiting for test results or errpneous surveys and tests that require corrective action) | F104: =SUM(B104:B105) -> 0 | G104: 0
B105: 0 | D105: Survery results delayed
B106: 0 | C106: =B106/$F$106 -> 0 | D106: Unavailability of DOT personnel | E106: Unavailability of Workforce/Personnel (Insufficient workforce or personnel that suspend or delay the construction) | F106: =SUM(B106:B109) -> 2 | G106: 0.02222222222
B107: 0 | C107: =B107/$F$106 -> 0 | D107: Unavailability of railroad flaggers
B108: 2 | C108: 1 | D108: Unavailability of workforce
B109: 0 | C109: 0 | D109: Unavailability of DOT specialized staff
B110: 0 | C110: =B110/$F$110 ->  | D110: Discovery of unsuitable materials (geotechnical) | E110: Discovery of Unsuitable Materials (Geotechnical) (Materials, soil in specific, that expected to be used found to be unsuitable and required removal) | F110: =SUM(B110) -> 0 | G110: 0
B111: 21 | C111: =B111/$F$111 -> 0.5 | D111: Utility conflict | E111: Utility Conflict (Conflicts and clashed with underground and overhead utilities that require utility relocation) | F111: =SUM(B111:B113) -> 42 | G111: 0.4666666667
B112: 0 | C112: =B112/$F$111 -> 0 | D112: Discovery of unknown underground utilities
B113: 21 | C113: 0.5 | D113: Utility conflict
B114: 4 | C114: =B114/$F$114 -> 1 | D114: Utility relocation not happen in time | E114: Utility Relocation Issues (Utility relocation not happen in time) | F114: =SUM(B114) -> 4 | G114: 0.04444444444
B115: 0 | D115: Work restrictions due to traffic | E115: Work Restriction (Work restrictions due to traffic considerations, or due to public/local agencies during social events or moratoriums) | F115: =SUM(B115:B121) -> 0 | G115: 0
B116: 0 | D116: Work restriction request by public/local agencies
B117: 0 | D117: Work restrictions due to traffic
B118: 0 | D118: Work restriction request by school
B119: 0 | D119: Work restriction request by DOT
B120: 0 | D120: Limited working space
B121: 0 | D121: Work restrictions due to traffic (road closure restrictions)
B122: 0 | C122: =B122/$F$122 -> 0 | D122: Extra tests required | E122: Stakeholders Request Late Changes (Change request or change in scope of project by stakeholders that require extra work) | F122: =SUM(B122:B124) -> 2 | G122: 0.02222222222
B123: 2 | C123: =B123/$F$122 -> 1 | D123: Interagency issues - cities, counties, departments, etc. request change
B124: 0 | C124: 0 | D124: Document preparation request by DOT
B125: 0 | D125: Payment agreement issues | E125: Other | F125: =SUM(B125:B133) -> 0 | G125: 0
B126: 0 | D126: Completion incentive
B127: 0 | D127: Termination of contract
B128: 0 | D128: Lawsuit costs
B129: 0 | D129: Covid impact
B130: 0 | D130: Unforeseen problems (unexpected death)
B131: 0 | D131: Vehicle accident
B132: 0 | D132: work not in conformance with contract and directive
B133: 0 | D133: Contractor/subcontractor replacement
F134: =SUM(F3:F133) -> 90

Sheet Ferry (hidden)
B2: Ferry Projects (Based on Generic Cause) | I2: Ferry Projects (Based on Generic Cause)
B3: 4 | C3: =B3/$F$3 -> 1 | D3: natural disaster (hurricane) | E3: Natural Disasters (All types of natural disasters that can affect budget and schedule) | F3: =SUM(B3:B9) -> 4 | G3: =F3/$F$134 -> 0.2857142857 | I3: Natural Disasters | J3: =G3 -> 0.2857142857
B4: 0 | C4: =B4/$F$3 -> 0 | D4: natural disaster (drought condition) | I4: Design/Plan Issues | J4: =G10 -> 0.2142857143
B5: 0 | C5: 0 | D5: natural disaster (slide) | I5: Planning Issues (Except Start of Work and/or projecy closeout) | J5: =G22 -> 0.1428571429
B6: 0 | C6: 0 | D6: natural disaster (flood) | I6: Project Closeout Issues | J6: =G30 -> 0
B7: 0 | C7: 0 | D7: natural disaster (sinkhole) | I7: Constructability Issues (Except for underground conflicts) | J7: =G33 -> 0
B8: 0 | C8: 0 | D8: natural disaster (thunderstorm) | I8: Corrective Work | J8: =G36 -> 0
B9: 0 | C9: 0 | D9: natural disaster (tropical depression) | I9: Delay in Start of Work | J9: =G39 -> 0
B10: 1 | C10: =B10/$F$10 -> 0.3333333333 | D10: Design/plan change | E10: Design/Plan Issues (Change or error in roadway, structure, geotechnical, hydraulics, traffic, utility, and environmental design) | F10: =SUM(B10:B21) -> 3 | G10: =F10/$F$134 -> 0.2142857143 | I10: Design Approval Waiting Period/Indecision/Negotiation | J10: =G46 -> 0.07142857143
B11: 0 | C11: =B11/$F$10 -> 0 | D11: Elimination of contract line item | I11: Differing Site Conditions/Discoveries (Except Utilities) | J11: =G57 -> 0.07142857143
B12: 0 | C12: 0 | D12: Design change due to safety concerns | I12: Environmental Concerns | J12: =G65 -> 0
B13: 0 | C13: 0 | D13: Change requests | I13: Contract Issues | J13: =G69 -> 0
B14: 1 | C14: 0.3333333333 | D14: Design/plan error | I14: Funding Issues | J14: =G72 -> 0
B15: 0 | C15: 0 | D15: Design modifications impact utility relocation | I15: Incomplete Vegetation Establishment | J15: =G75 -> 0
B16: 0 | C16: 0 | D16: Design/plan revision | I16: Maintenance/Replacement Required | J16: =G77 -> 0.07142857143
B17: 1 | C17: 0.3333333333 | D17: Design/plan omission | I17: Administrative/Paperwork Issues | J17: =G80 -> 0
B18: 0 | C18: 0 | D18: Sight distance concerns | I18: Permit Issues | J18: =G82 -> 0
B19: 0 | C19: 0 | D19: Surveys late and/or surveys in error | I19: Procurement Issues | J19: =G88 -> 0.07142857143
B20: 0 | C20: 0 | D20: Compliance with special technical specifications | I20: Quantities Overrun/Underrun | J20: =G95 -> 0
B21: 0 | C21: 0 | D21: Misinterpretation of plans | I21: ROW/Easement Issues | J21: =G96 -> 0
B22: 1 | C22: =B22/$F$22 -> 0.5 | D22: Pressure to deliver project on an accelerated schedule | E22: Planning Issues (Except Start of Work and/or projecy closeout) (Delays to schedule due to insufficient planning and coordination within project team, and between project team and other stakeholders) | F22: =SUM(B22:B29) -> 2 | G22: 0.1428571429 | I22: Seasonal Limitations (Weather) | J22: =G103 -> 0
B23: 0 | C23: =B23/$F$22 -> 0 | D23: Purposeful limited work schedule | I23: Survey Issues | J23: =G104 -> 0
B24: 0 | C24: 0 | D24: Waiting for other entities/projects to perform work | I24: Unavailability of Workforce/Personnel | J24: =G106 -> 0
B25: 0 | C25: 0 | D25: Project Schedule - delays to project delivery | I25: Discovery of Unsuitable Materials (Geotechnical) | J25: =G110 -> 0
B26: 0 | C26: 0 | D26: Consistency and coordination with adjacent projects required | I26: Utility Conflict | J26: =G111 -> 0
B27: 0 | C27: 0 | D27: Lack of coordination/communication with project team | I27: Utility Relocation Issues | J27: =G114 -> 0.07142857143
B28: 1 | C28: 0.5 | D28: Scheduling conflicts - late inspection | I28: Work Restriction | J28: =G115 -> 0
B29: 0 | C29: 0 | D29: Limited availability of specialized staff | I29: Stakeholders Request Late Changes | J29: =G122 -> 0
B30: 0 | D30: Extra work required after final inspection | E30: Project Closeout Issues (Problems during project closeout) | F30: =SUM(B30:B32) -> 0 | G30: 0 | I30: Other | J30: =G125 -> 0
B31: 0 | D31: Scheduling conflicts - late final inspection
B32: 0 | D32: Delay in receipt of final punchlist items | I32: Ferry Projects (Based on Design/Plan Issues)
B33: 0 | D33: Conflict with existing structures | E33: Constructability Issues (Except for underground conflicts) (Conflicts and clashes with surface objects that makes the design be unconstructable) | F33: =SUM(B33:B35) -> 0 | G33: 0
B34: 0 | D34: Conflict with surface objects | I34: Roadway Design (Vertical/horizontal alignment, earthwork, pavement, grade, etc.) | J34: 0
B35: 0 | D35: Constructability issues | I35: Structure Design (Bridge superstructure, retaining walls, etc.) | J35: 0.6666666667
B36: 0 | D36: Corrective work required | E36: Corrective Work (Corrective work or re-work as a result of problems in construction, poor quality of construction, or incorrect instructions that were gave to contractor) | F36: =SUM(B36:B38) -> 0 | G36: 0 | I36: Geotechnical Design (Foundations, ground improvements, unsuitable materials, pile driving, etc.) | J36: 0
B37: 0 | D37: Incorrect instruction by DOT personnel required corrective work | I37: Hydraulic Design (drainage, irrigation, lines, etc.) | J37: 0
B38: 0 | D38: Delay in critical decision making on required corrective actions | I38: Traffic Design (ITS, signals, intersections, signs, guardrail, safety) | J38: 0
B39: 0 | D39: Scheduling conflicts - late preconstruction meeting | E39: Delay in Start of Work (Planning, scheduling, or administrative problems that delayed start of work) | F39: =SUM(B39:B45) -> 0 | G39: 0 | I39: Other (NCDOT/RE initiated change, maintenance/replacement, special provisions, etc) | J39: 0.3333333333
B40: 0 | D40: Delay in execution of contract
B41: 0 | D41: Delay in availability of project and/or start date
B42: 0 | D42: Administrative review of low bid packages
B43: 0 | D43: Late receipt of contrcat information
B44: 0 | D44: Delay in project award
B45: 0 | D45: Unavailability of Funds
B46: 0 | C46: =B46/$F$46 -> 0 | D46: Untimely review and return of submittals | E46: Design Approval Waiting Period/Indecision/Negotiation (Time spent waiting for approval of submittals, critical decisions from NCDOT, and reaching agreement with stakeholders) | F46: =SUM(B46:B56) -> 1 | G46: 0.07142857143
B47: 1 | C47: =B47/$F$46 -> 1 | D47: Delay in critical decision making
B48: 0 | C48: 0 | D48: Negotiation delays
B49: 0 | C49: 0 | D49: Delays in reaching agreement with property owners
B50: 0 | C50: 0 | D50: Delays in reaching agreement with stakeholders
B51: 0 | C51: 0 | D51: Delays in reaching utility agreement
B52: 0 | C52: 0 | D52: Delay in critical decision making on required corrective actions
B53: 0 | C53: 0 | D53: Untimelty receipt of design/plan
B54: 0 | C54: 0 | D54: Delays in reaching agreement with other entities
B55: 0 | C55: 0 | D55: Delays in reaching agreement with railroad
B56: 0 | C56: 0 | D56: Delay in receipt of (land) quality control approvals
B57: 1 | C57: =B57/$F$57 -> 1 | D57: Conflict with unknown underground obstructions/structures | E57: Differing Site Conditions/Discoveries (Except Utilities) (Subsurface situations that were different than anticipated) | F57: =SUM(B57:B64) -> 1 | G57: 0.07142857143
B58: 0 | C58: =B58/$F$57 -> 0 | D58: Discovery of underground water flow
B59: 0 | C59: 0 | D59: Excess surface water issues
B60: 0 | C60: 0 | D60: Discovery of contaminated ground water
B61: 0 | C61: 0 | D61: Differing site conditions
B62: 0 | C62: 0 | D62: Wetland discovery
B63: 0 | C63: 0 | D63: Discovery of contaminated soil
B64: 0 | C64: 0 | D64: Discovery of hazardous underground materials
B65: 0 | D65: Wetland and/or endandered species survey | E65: Environmental Concerns (Extra work of surveys and investigations due to environmental related concerns) | F65: =SUM(B65:B68) -> 0 | G65: 0
B66: 0 | D66: Erosion control issues
B67: 0 | D67: Historic site investgations
B68: 0 | D68: Endangered species issues
B69: 0 | D69: Contract error | E69: Contract Issues (Errors, omissions, and unclarity of contract clauses) | F69: =SUM(B69:B71) -> 0 | G69: =F69/$F$134 -> 0
B70: 0 | D70: Contract omission
B71: 0 | D71: Unclear contract items
B72: 0 | C72: 0 | D72: Cash flow restriction | E72: Funding Issues (budget concerns, unavailability of funds, and cash flow restrictions) | F72: =SUM(B72:B74) -> 0 | G72: 0
B73: 0 | C73: 0 | D73: Unavailability of Funds
B74: 0 | C74: 0 | D74: Budget concerns and layoffs
B75: 0 | D75: Incomplete vegetation establishment | E75: Incomplete Vegetation Establishment (Extra time that was required for the vegetation to fully establish (mainly 80 percent) throughout the project) | F75: =SUM(B75:B76) -> 0 | G75: 0
B76: 0 | D76: Incomplete planting establishment
B77: 1 | C77: =B77/$F$77 -> 1 | D77: Maintenance/replacement required | E77: Maintenance/Replacement Required (Maintanance or replacement request to constructed or existing parts as a result of damages during construction or failure) | F77: =SUM(B77:B79) -> 1 | G77: 0.07142857143
B78: 0 | C78: =B78/$F$77 -> 0 | D78: Maintenance/replacement required (damaged objects)
B79: 0 | C79: 0 | D79: Maintenance/replacement required (existing parts failure)
B80: 0 | D80: Error in entering previous claim time extension/compensation in HiCAMS | E80: Administrative/Paperwork Issues (Administrative or paperwork issues during construction) | F80: =SUM(B80:B81) -> 0 | G80: 0
B81: 0 | D81: Document misplacement
B82: 0 | D82: Permit acquisition waiting period | E82: Permit Issues (Environmental, construction, and all other type of permit issues) | F82: =SUM(B82:B87) -> 0 | G82: 0
B83: 0 | D83: Permit modification waiting period
B84: 0 | D84: Lack of required permit
B85: 0 | D85: Expired permits
B86: 0 | D86: Permit limitations
B87: 0 | D87: Permit violations
B88: 0 | C88: =B88/$F$88 -> 0 | D88: Delay in power supply | E88: Procurement Issues (Delays to project due to problems in procuring materials and equipment) | F88: =SUM(B88:B94) -> 1 | G88: 0.07142857143
B89: 0 | C89: =B89/$F$88 -> 0 | D89: Procurement delays
B90: 0 | C90: 0 | D90: Material shortage
B91: 1 | C91: 1 | D91: Department furnished material/equipment delays
B92: 0 | C92: 0 | D92: Wrong order placement
B93: 0 | C93: 0 | D93: Fabrication delays
B94: 0 | C94: 0 | D94: Material cost fluctuations
B95: 0 | D95: Quantities overrun/underrun | E95: Quantities Overrun/Underrun (Errors in budget, schedule, or items estimates) | F95: =SUM(B95) -> 0 | G95: 0
B96: 0 | D96: ROW acquisition delays | E96: ROW/Easement Issues (Problems related to Right of Way or easement) | F96: =SUM(B96:B102) -> 0 | G96: 0
B97: 0 | D97: RR right of entery issues
B98: 0 | D98: Insufficient ROW
B99: 0 | D99: Landowner(s) unwilling to sell, may need to condemn
B100: 0 | D100: Additional work required per Right of Way agreement - relocations, grading, etc.
B101: 0 | D101: ROW approval delays (utility encroachment)
B102: 0 | D102: ROW approval delays (railroad encroachment)
B103: 0 | D103: Seasonal limitations (weather) | E103: Seasonal Limitations (Weather) (Adverse weather conditions like extreme temperatures and precipitation that suspend the construction) | F103: =SUM(B103) -> 0 | G103: 0
B104: 0 | D104: Survey error | E104: Survey Issues (Waiting for test results or errpneous surveys and tests that require corrective action) | F104: =SUM(B104:B105) -> 0 | G104: 0
B105: 0 | D105: Survery results delayed
B106: 0 | D106: Unavailability of DOT personnel | E106: Unavailability of Workforce/Personnel (Insufficient workforce or personnel that suspend or delay the construction) | F106: =SUM(B106:B109) -> 0 | G106: 0
B107: 0 | D107: Unavailability of railroad flaggers
B108: 0 | D108: Unavailability of workforce
B109: 0 | D109: Unavailability of DOT specialized staff
B110: 0 | D110: Discovery of unsuitable materials (geotechnical) | E110: Discovery of Unsuitable Materials (Geotechnical) (Materials, soil in specific, that expected to be used found to be unsuitable and required removal) | F110: =SUM(B110) -> 0 | G110: 0
B111: 0 | D111: Utility conflict | E111: Utility Conflict (Conflicts and clashed with underground and overhead utilities that require utility relocation) | F111: =SUM(B111:B113) -> 0 | G111: 0
B112: 0 | D112: Discovery of unknown underground utilities
B113: 0 | D113: Utility conflict
B114: 1 | C114: =B114/$F$114 -> 1 | D114: Utility relocation not happen in time | E114: Utility Relocation Issues (Utility relocation not happen in time) | F114: =SUM(B114) -> 1 | G114: 0.07142857143
B115: 0 | D115: Work restrictions due to traffic | E115: Work Restriction (Work restrictions due to traffic considerations, or due to public/local agencies during social events or moratoriums) | F115: =SUM(B115:B121) -> 0 | G115: 0
B116: 0 | D116: Work restriction request by public/local agencies
B117: 0 | D117: Work restrictions due to traffic
B118: 0 | D118: Work restriction request by school
B119: 0 | D119: Work restriction request by DOT
B120: 0 | D120: Limited working space
B121: 0 | D121: Work restrictions due to traffic (road closure restrictions)
B122: 0 | D122: Extra tests required | E122: Stakeholders Request Late Changes (Change request or change in scope of project by stakeholders that require extra work) | F122: =SUM(B122:B124) -> 0 | G122: 0
B123: 0 | D123: Interagency issues - cities, counties, departments, etc. request change
B124: 0 | D124: Document preparation request by DOT
B125: 0 | D125: Payment agreement issues | E125: Other | F125: =SUM(B125:B133) -> 0 | G125: 0
B126: 0 | D126: Completion incentive
B127: 0 | D127: Termination of contract
B128: 0 | D128: Lawsuit costs
B129: 0 | D129: Covid impact
B130: 0 | D130: Unforeseen problems (unexpected death)
B131: 0 | D131: Vehicle accident
B132: 0 | D132: work not in conformance with contract and directive
B133: 0 | D133: Contractor/subcontractor replacement
F134: =SUM(F3:F133) -> 14

Sheet Appalachain Reg. Commission (hidden)
B2: Appalachian Regional Commission (Based on Generic Cause) | I2: Appalachian Regional Commission (Based on Generic Cause)
B3: 0 | C3: =B3/$F$3 -> 0 | D3: natural disaster (hurricane) | E3: Natural Disasters (All types of natural disasters that can affect budget and schedule) | F3: =SUM(B3:B9) -> 2 | G3: =F3/$F$134 -> 0.09523809524 | I3: Natural Disasters | J3: =G3 -> 0.09523809524
B4: 0 | C4: 0 | D4: natural disaster (drought condition) | I4: Design/Plan Issues | J4: =G10 -> 0.4285714286
B5: 2 | C5: 1 | D5: natural disaster (slide) | I5: Planning Issues (Except Start of Work and/or projecy closeout) | J5: =G22 -> 0
B6: 0 | C6: 0 | D6: natural disaster (flood) | I6: Project Closeout Issues | J6: =G30 -> 0
B7: 0 | C7: 0 | D7: natural disaster (sinkhole) | I7: Constructability Issues (Except for underground conflicts) | J7: =G33 -> 0
B8: 0 | C8: 0 | D8: natural disaster (thunderstorm) | I8: Corrective Work | J8: =G36 -> 0
B9: 0 | C9: 0 | D9: natural disaster (tropical depression) | I9: Delay in Start of Work | J9: =G39 -> 0.04761904762
B10: 7 | C10: =B10/$F$10 -> 0.7777777778 | D10: Design/plan change | E10: Design/Plan Issues (Change or error in roadway, structure, geotechnical, hydraulics, traffic, utility, and environmental design) | F10: =SUM(B10:B21) -> 9 | G10: =F10/$F$134 -> 0.4285714286 | I10: Design Approval Waiting Period/Indecision/Negotiation | J10: =G46 -> 0.04761904762
B11: 0 | C11: 0 | D11: Elimination of contract line item | I11: Differing Site Conditions/Discoveries (Except Utilities) | J11: =G57 -> 0
B12: 0 | C12: 0 | D12: Design change due to safety concerns | I12: Environmental Concerns | J12: =G65 -> 0.04761904762
B13: 0 | C13: 0 | D13: Change requests | I13: Contract Issues | J13: =G69 -> 0
B14: 2 | C14: 0.2222222222 | D14: Design/plan error | I14: Funding Issues | J14: =G72 -> 0.04761904762
B15: 0 | C15: 0 | D15: Design modifications impact utility relocation | I15: Incomplete Vegetation Establishment | J15: =G75 -> 0
B16: 0 | C16: 0 | D16: Design/plan revision | I16: Maintenance/Replacement Required | J16: =G77 -> 0
B17: 0 | C17: 0 | D17: Design/plan omission | I17: Administrative/Paperwork Issues | J17: =G80 -> 0
B18: 0 | C18: 0 | D18: Sight distance concerns | I18: Permit Issues | J18: =G82 -> 0
B19: 0 | C19: 0 | D19: Surveys late and/or surveys in error | I19: Procurement Issues | J19: =G88 -> 0
B20: 0 | C20: 0 | D20: Compliance with special technical specifications | I20: Quantities Overrun/Underrun | J20: =G95 -> 0.04761904762
B21: 0 | C21: 0 | D21: Misinterpretation of plans | I21: ROW/Easement Issues | J21: =G96 -> 0
B22: 0 | D22: Pressure to deliver project on an accelerated schedule | E22: Planning Issues (Except Start of Work and/or projecy closeout) (Delays to schedule due to insufficient planning and coordination within project team, and between project team and other stakeholders) | F22: =SUM(B22:B29) -> 0 | G22: 0 | I22: Seasonal Limitations (Weather) | J22: =G103 -> 0.04761904762
B23: 0 | D23: Purposeful limited work schedule | I23: Survey Issues | J23: =G104 -> 0
B24: 0 | D24: Waiting for other entities/projects to perform work | I24: Unavailability of Workforce/Personnel | J24: =G106 -> 0
B25: 0 | D25: Project Schedule - delays to project delivery | I25: Discovery of Unsuitable Materials (Geotechnical) | J25: =G110 -> 0
B26: 0 | D26: Consistency and coordination with adjacent projects required | I26: Utility Conflict | J26: =G111 -> 0
B27: 0 | D27: Lack of coordination/communication with project team | I27: Utility Relocation Issues | J27: =G114 -> 0.04761904762
B28: 0 | D28: Scheduling conflicts - late inspection | I28: Work Restriction | J28: =G115 -> 0.1428571429
B29: 0 | D29: Limited availability of specialized staff | I29: Stakeholders Request Late Changes | J29: =G122 -> 0
B30: 0 | D30: Extra work required after final inspection | E30: Project Closeout Issues (Problems during project closeout) | F30: =SUM(B30:B32) -> 0 | G30: 0 | I30: Other | J30: =G125 -> 0
B31: 0 | D31: Scheduling conflicts - late final inspection
B32: 0 | D32: Delay in receipt of final punchlist items | I32: Appalachian Regional Commission (Based on Design/Plan Issues)
B33: 0 | D33: Conflict with existing structures | E33: Constructability Issues (Except for underground conflicts) (Conflicts and clashes with surface objects that makes the design be unconstructable) | F33: =SUM(B33:B35) -> 0 | G33: 0
B34: 0 | D34: Conflict with surface objects | I34: Roadway Design (Vertical/horizontal alignment, earthwork, pavement, grade, etc.) | J34: 0.5
B35: 0 | D35: Constructability issues | I35: Structure Design (Bridge superstructure, retaining walls, etc.) | J35: 0
B36: 0 | D36: Corrective work required | E36: Corrective Work (Corrective work or re-work as a result of problems in construction, poor quality of construction, or incorrect instructions that were gave to contractor) | F36: =SUM(B36:B38) -> 0 | G36: 0 | I36: Geotechnical Design (Foundations, ground improvements, unsuitable materials, pile driving, etc.) | J36: 0
B37: 0 | D37: Incorrect instruction by DOT personnel required corrective work | I37: Hydraulic Design (drainage, irrigation, lines, etc.) | J37: 0.375
B38: 0 | D38: Delay in critical decision making on required corrective actions | I38: Traffic Design (ITS, signals, intersections, signs, guardrail, safety) | J38: 0
B39: 0 | C39: =B39/$F$39 -> 0 | D39: Scheduling conflicts - late preconstruction meeting | E39: Delay in Start of Work (Planning, scheduling, or administrative problems that delayed start of work) | F39: =SUM(B39:B45) -> 1 | G39: 0.04761904762 | I39: Other (NCDOT/RE initiated change, maintenance/replacement, special provisions, etc) | J39: 0.125
B40: 0 | C40: 0 | D40: Delay in execution of contract
B41: 0 | C41: 0 | D41: Delay in availability of project and/or start date
B42: 0 | C42: 0 | D42: Administrative review of low bid packages
B43: 0 | C43: 0 | D43: Late receipt of contrcat information
B44: 0 | C44: 0 | D44: Delay in project award
B45: 1 | C45: 1 | D45: Unavailability of Funds
B46: 0 | C46: =B46/$F$46 -> 0 | D46: Untimely review and return of submittals | E46: Design Approval Waiting Period/Indecision/Negotiation (Time spent waiting for approval of submittals, critical decisions from NCDOT, and reaching agreement with stakeholders) | F46: =SUM(B46:B56) -> 1 | G46: 0.04761904762
B47: 0 | C47: 0 | D47: Delay in critical decision making
B48: 0 | C48: 0 | D48: Negotiation delays
B49: 0 | C49: 0 | D49: Delays in reaching agreement with property owners
B50: 0 | C50: 0 | D50: Delays in reaching agreement with stakeholders
B51: 0 | C51: 0 | D51: Delays in reaching utility agreement
B52: 0 | C52: 0 | D52: Delay in critical decision making on required corrective actions
B53: 0 | C53: 0 | D53: Untimelty receipt of design/plan
B54: 0 | C54: 0 | D54: Delays in reaching agreement with other entities
B55: 0 | C55: 0 | D55: Delays in reaching agreement with railroad
B56: 1 | C56: 1 | D56: Delay in receipt of (land) quality control approvals
B57: 0 | D57: Conflict with unknown underground obstructions/structures | E57: Differing Site Conditions/Discoveries (Except Utilities) (Subsurface situations that were different than anticipated) | F57: =SUM(B57:B64) -> 0 | G57: 0
B58: 0 | D58: Discovery of underground water flow
B59: 0 | D59: Excess surface water issues
B60: 0 | D60: Discovery of contaminated ground water
B61: 0 | D61: Differing site conditions
B62: 0 | D62: Wetland discovery
B63: 0 | D63: Discovery of contaminated soil
B64: 0 | D64: Discovery of hazardous underground materials
B65: 0 | C65: =B65/$F$65 -> 0 | D65: Wetland and/or endandered species survey | E65: Environmental Concerns (Extra work of surveys and investigations due to environmental related concerns) | F65: =SUM(B65:B68) -> 1 | G65: 0.04761904762
B66: 0 | C66: =B66/$F$65 -> 0 | D66: Erosion control issues
B67: 0 | C67: =B67/$F$65 -> 0 | D67: Historic site investgations
B68: 1 | C68: =B68/$F$65 -> 1 | D68: Endangered species issues
B69: 0 | D69: Contract error | E69: Contract Issues (Errors, omissions, and unclarity of contract clauses) | F69: =SUM(B69:B71) -> 0 | G69: =F69/$F$134 -> 0
B70: 0 | D70: Contract omission
B71: 0 | D71: Unclear contract items
B72: 0 | C72: 0 | D72: Cash flow restriction | E72: Funding Issues (budget concerns, unavailability of funds, and cash flow restrictions) | F72: =SUM(B72:B74) -> 1 | G72: 0.04761904762
B73: 1 | C73: 0 | D73: Unavailability of Funds
B74: 0 | C74: 0 | D74: Budget concerns and layoffs
B75: 0 | D75: Incomplete vegetation establishment | E75: Incomplete Vegetation Establishment (Extra time that was required for the vegetation to fully establish (mainly 80 percent) throughout the project) | F75: =SUM(B75:B76) -> 0 | G75: 0
B76: 0 | D76: Incomplete planting establishment
B77: 0 | D77: Maintenance/replacement required | E77: Maintenance/Replacement Required (Maintanance or replacement request to constructed or existing parts as a result of damages during construction or failure) | F77: =SUM(B77:B79) -> 0 | G77: 0
B78: 0 | D78: Maintenance/replacement required (damaged objects)
B79: 0 | D79: Maintenance/replacement required (existing parts failure)
B80: 0 | D80: Error in entering previous claim time extension/compensation in HiCAMS | E80: Administrative/Paperwork Issues (Administrative or paperwork issues during construction) | F80: =SUM(B80:B81) -> 0 | G80: 0
B81: 0 | D81: Document misplacement
B82: 0 | D82: Permit acquisition waiting period | E82: Permit Issues (Environmental, construction, and all other type of permit issues) | F82: =SUM(B82:B87) -> 0 | G82: 0
B83: 0 | D83: Permit modification waiting period
B84: 0 | D84: Lack of required permit
B85: 0 | D85: Expired permits
B86: 0 | D86: Permit limitations
B87: 0 | D87: Permit violations
B88: 0 | D88: Delay in power supply | E88: Procurement Issues (Delays to project due to problems in procuring materials and equipment) | F88: =SUM(B88:B94) -> 0 | G88: 0
B89: 0 | D89: Procurement delays
B90: 0 | D90: Material shortage
B91: 0 | D91: Department furnished material/equipment delays
B92: 0 | D92: Wrong order placement
B93: 0 | D93: Fabrication delays
B94: 0 | D94: Material cost fluctuations
B95: 1 | C95: =B95/$F$95 -> 1 | D95: Quantities overrun/underrun | E95: Quantities Overrun/Underrun (Errors in budget, schedule, or items estimates) | F95: =SUM(B95) -> 1 | G95: 0.04761904762
B96: 0 | D96: ROW acquisition delays | E96: ROW/Easement Issues (Problems related to Right of Way or easement) | F96: =SUM(B96:B102) -> 0 | G96: 0
B97: 0 | D97: RR right of entery issues
B98: 0 | D98: Insufficient ROW
B99: 0 | D99: Landowner(s) unwilling to sell, may need to condemn
B100: 0 | D100: Additional work required per Right of Way agreement - relocations, grading, etc.
B101: 0 | D101: ROW approval delays (utility encroachment)
B102: 0 | D102: ROW approval delays (railroad encroachment)
B103: 1 | C103: =B103/$F$103 -> 1 | D103: Seasonal limitations (weather) | E103: Seasonal Limitations (Weather) (Adverse weather conditions like extreme temperatures and precipitation that suspend the construction) | F103: =SUM(B103) -> 1 | G103: 0.04761904762
B104: 0 | D104: Survey error | E104: Survey Issues (Waiting for test results or errpneous surveys and tests that require corrective action) | F104: =SUM(B104:B105) -> 0 | G104: 0
B105: 0 | D105: Survery results delayed
B106: 0 | D106: Unavailability of DOT personnel | E106: Unavailability of Workforce/Personnel (Insufficient workforce or personnel that suspend or delay the construction) | F106: =SUM(B106:B109) -> 0 | G106: 0
B107: 0 | D107: Unavailability of railroad flaggers
B108: 0 | D108: Unavailability of workforce
B109: 0 | D109: Unavailability of DOT specialized staff
B110: 0 | D110: Discovery of unsuitable materials (geotechnical) | E110: Discovery of Unsuitable Materials (Geotechnical) (Materials, soil in specific, that expected to be used found to be unsuitable and required removal) | F110: =SUM(B110) -> 0 | G110: 0
B111: 0 | D111: Utility conflict | E111: Utility Conflict (Conflicts and clashed with underground and overhead utilities that require utility relocation) | F111: =SUM(B111:B113) -> 0 | G111: 0
B112: 0 | D112: Discovery of unknown underground utilities
B113: 0 | D113: Utility conflict
B114: 1 | C114: =B114/$F$114 -> 1 | D114: Utility relocation not happen in time | E114: Utility Relocation Issues (Utility relocation not happen in time) | F114: =SUM(B114) -> 1 | G114: 0.04761904762
B115: 1 | C115: =B115/$F$115 -> 0.3333333333 | D115: Work restrictions due to traffic | E115: Work Restriction (Work restrictions due to traffic considerations, or due to public/local agencies during social events or moratoriums) | F115: =SUM(B115:B121) -> 3 | G115: 0.1428571429
B116: 1 | C116: 0.3333333333 | D116: Work restriction request by public/local agencies
B117: 1 | C117: 0.3333333333 | D117: Work restrictions due to traffic
B118: 0 | C118: 0 | D118: Work restriction request by school
B119: 0 | C119: 0 | D119: Work restriction request by DOT
B120: 0 | C120: 0 | D120: Limited working space
B121: 0 | C121: 0 | D121: Work restrictions due to traffic (road closure restrictions)
B122: 0 | D122: Extra tests required | E122: Stakeholders Request Late Changes (Change request or change in scope of project by stakeholders that require extra work) | F122: =SUM(B122:B124) -> 0 | G122: 0
B123: 0 | D123: Interagency issues - cities, counties, departments, etc. request change
B124: 0 | D124: Document preparation request by DOT
B125: 0 | D125: Payment agreement issues | E125: Other | F125: =SUM(B125:B133) -> 0 | G125: 0
B126: 0 | D126: Completion incentive
B127: 0 | D127: Termination of contract
B128: 0 | D128: Lawsuit costs
B129: 0 | D129: Covid impact
B130: 0 | D130: Unforeseen problems (unexpected death)
B131: 0 | D131: Vehicle accident
B132: 0 | D132: work not in conformance with contract and directive
B133: 0 | D133: Contractor/subcontractor replacement
F134: =SUM(F3:F133) -> 21

Sheet Bicycle & Pedestrian (hidden)
B2: Bridge Replacement Projects (Based on Generic Cause) | I2: Bridge Replacement Projects (Based on Generic Cause)
B3: 1 | C3: =B3/$F$3 -> 1 | D3: natural disaster (hurricane) | E3: Natural Disasters (All types of natural disasters that can affect budget and schedule) | F3: =SUM(B3:B9) -> 1 | G3: =F3/$F$134 -> 0.02380952381 | I3: Natural Disasters | J3: =G3 -> 0.02380952381
B4: 0 | C4: =B4/$F$3 -> 0 | D4: natural disaster (drought condition) | I4: Design/Plan Issues | J4: =G10 -> 0.1904761905
B5: 0 | C5: 0 | D5: natural disaster (slide) | I5: Planning Issues (Except Start of Work and/or projecy closeout) | J5: =G22 -> 0.07142857143
B6: 0 | C6: 0 | D6: natural disaster (flood) | I6: Project Closeout Issues | J6: =G30 -> 0.02380952381
B7: 0 | C7: 0 | D7: natural disaster (sinkhole) | I7: Constructability Issues (Except for underground conflicts) | J7: =G33 -> 0
B8: 0 | C8: 0 | D8: natural disaster (thunderstorm) | I8: Corrective Work | J8: =G36 -> 0
B9: 0 | C9: 0 | D9: natural disaster (tropical depression) | I9: Delay in Start of Work | J9: =G39 -> 0.04761904762
B10: 6 | C10: =B10/$F$10 -> 0.75 | D10: Design/plan change | E10: Design/Plan Issues (Change or error in roadway, structure, geotechnical, hydraulics, traffic, utility, and environmental design) | F10: =SUM(B10:B21) -> 8 | G10: =F10/$F$134 -> 0.1904761905 | I10: Design Approval Waiting Period/Indecision/Negotiation | J10: =G46 -> 0.119047619
B11: 0 | C11: =B11/$F$10 -> 0 | D11: Elimination of contract line item | I11: Differing Site Conditions/Discoveries (Except Utilities) | J11: =G57 -> 0
B12: 0 | C12: 0 | D12: Design change due to safety concerns | I12: Environmental Concerns | J12: =G65 -> 0
B13: 2 | C13: 0.25 | D13: Change requests | I13: Contract Issues | J13: =G69 -> 0
B14: 0 | C14: 0 | D14: Design/plan error | I14: Funding Issues | J14: =G72 -> 0
B15: 0 | C15: 0 | D15: Design modifications impact utility relocation | I15: Incomplete Vegetation Establishment | J15: =G75 -> 0
B16: 0 | C16: 0 | D16: Design/plan revision | I16: Maintenance/Replacement Required | J16: =G77 -> 0.04761904762
B17: 0 | C17: 0 | D17: Design/plan omission | I17: Administrative/Paperwork Issues | J17: =G80 -> 0
B18: 0 | C18: 0 | D18: Sight distance concerns | I18: Permit Issues | J18: =G82 -> 0
B19: 0 | C19: 0 | D19: Surveys late and/or surveys in error | I19: Procurement Issues | J19: =G88 -> 0.02380952381
B20: 0 | C20: 0 | D20: Compliance with special technical specifications | I20: Quantities Overrun/Underrun | J20: =G95 -> 0
B21: 0 | C21: 0 | D21: Misinterpretation of plans | I21: ROW/Easement Issues | J21: =G96 -> 0.02380952381
B22: 0 | C22: =B22/$F$22 -> 0 | D22: Pressure to deliver project on an accelerated schedule | E22: Planning Issues (Except Start of Work and/or projecy closeout) (Delays to schedule due to insufficient planning and coordination within project team, and between project team and other stakeholders) | F22: =SUM(B22:B29) -> 3 | G22: 0.07142857143 | I22: Seasonal Limitations (Weather) | J22: =G103 -> 0.02380952381
B23: 0 | C23: =B23/$F$22 -> 0 | D23: Purposeful limited work schedule | I23: Survey Issues | J23: =G104 -> 0
B24: 3 | C24: 1 | D24: Waiting for other entities/projects to perform work | I24: Unavailability of Workforce/Personnel | J24: =G106 -> 0
B25: 0 | C25: 0 | D25: Project Schedule - delays to project delivery | I25: Discovery of Unsuitable Materials (Geotechnical) | J25: =G110 -> 0.02380952381
B26: 0 | C26: 0 | D26: Consistency and coordination with adjacent projects required | I26: Utility Conflict | J26: =G111 -> 0.2857142857
B27: 0 | C27: 0 | D27: Lack of coordination/communication with project team | I27: Utility Relocation Issues | J27: =G114 -> 0.02380952381
B28: 0 | C28: 0 | D28: Scheduling conflicts - late inspection | I28: Work Restriction | J28: =G115 -> 0.04761904762
B29: 0 | C29: 0 | D29: Limited availability of specialized staff | I29: Stakeholders Request Late Changes | J29: =G122 -> 0
B30: 0 | C30: =B30/$F$30 -> 0 | D30: Extra work required after final inspection | E30: Project Closeout Issues (Problems during project closeout) | F30: =SUM(B30:B32) -> 1 | G30: 0.02380952381 | I30: Other | J30: =G125 -> 0.02380952381
B31: 1 | C31: =B31/$F$30 -> 1 | D31: Scheduling conflicts - late final inspection
B32: 0 | C32: 0 | D32: Delay in receipt of final punchlist items | I32: Bridge Replacement Projects (Based on Design/Plan Issues)
B33: 0 | D33: Conflict with existing structures | E33: Constructability Issues (Except for underground conflicts) (Conflicts and clashes with surface objects that makes the design be unconstructable) | F33: =SUM(B33:B35) -> 0 | G33: 0
B34: 0 | D34: Conflict with surface objects | I34: Roadway Design (Vertical/horizontal alignment, earthwork, pavement, grade, etc.) | J34: 0
B35: 0 | D35: Constructability issues | I35: Structure Design (Bridge superstructure, retaining walls, etc.) | J35: 0.1666666667
B36: 0 | D36: Corrective work required | E36: Corrective Work (Corrective work or re-work as a result of problems in construction, poor quality of construction, or incorrect instructions that were gave to contractor) | F36: =SUM(B36:B38) -> 0 | G36: 0 | I36: Geotechnical Design (Foundations, ground improvements, unsuitable materials, pile driving, etc.) | J36: 0.1666666667
B37: 0 | D37: Incorrect instruction by DOT personnel required corrective work | I37: Hydraulic Design (drainage, irrigation, lines, etc.) | J37: 0.3333333333
B38: 0 | D38: Delay in critical decision making on required corrective actions | I38: Traffic Design (ITS, signals, intersections, signs, guardrail, safety) | J38: 0.1666666667
B39: 0 | C39: =B39/$F$39 -> 0 | D39: Scheduling conflicts - late preconstruction meeting | E39: Delay in Start of Work (Planning, scheduling, or administrative problems that delayed start of work) | F39: =SUM(B39:B45) -> 2 | G39: 0.04761904762 | I39: Other (NCDOT/RE initiated change, maintenance/replacement, special provisions, etc) | J39: 0.1666666667
B40: 2 | C40: =B40/$F$39 -> 1 | D40: Delay in execution of contract
B41: 0 | C41: 0 | D41: Delay in availability of project and/or start date
B42: 0 | C42: 0 | D42: Administrative review of low bid packages
B43: 0 | C43: 0 | D43: Late receipt of contrcat information
B44: 0 | C44: 0 | D44: Delay in project award
B45: 0 | C45: 0 | D45: Unavailability of Funds
B46: 1 | C46: =B46/$F$46 -> 0.2 | D46: Untimely review and return of submittals | E46: Design Approval Waiting Period/Indecision/Negotiation (Time spent waiting for approval of submittals, critical decisions from NCDOT, and reaching agreement with stakeholders) | F46: =SUM(B46:B56) -> 5 | G46: 0.119047619
B47: 3 | C47: =B47/$F$46 -> 0.6 | D47: Delay in critical decision making
B48: 0 | C48: 0 | D48: Negotiation delays
B49: 0 | C49: 0 | D49: Delays in reaching agreement with property owners
B50: 0 | C50: 0 | D50: Delays in reaching agreement with stakeholders
B51: 1 | C51: 0.2 | D51: Delays in reaching utility agreement
B52: 0 | C52: 0 | D52: Delay in critical decision making on required corrective actions
B53: 0 | C53: 0 | D53: Untimelty receipt of design/plan
B54: 0 | C54: 0 | D54: Delays in reaching agreement with other entities
B55: 0 | C55: 0 | D55: Delays in reaching agreement with railroad
B56: 0 | C56: 0 | D56: Delay in receipt of (land) quality control approvals
B57: 0 | D57: Conflict with unknown underground obstructions/structures | E57: Differing Site Conditions/Discoveries (Except Utilities) (Subsurface situations that were different than anticipated) | F57: =SUM(B57:B64) -> 0 | G57: 0
B58: 0 | D58: Discovery of underground water flow
B59: 0 | D59: Excess surface water issues
B60: 0 | D60: Discovery of contaminated ground water
B61: 0 | D61: Differing site conditions
B62: 0 | D62: Wetland discovery
B63: 0 | D63: Discovery of contaminated soil
B64: 0 | D64: Discovery of hazardous underground materials
B65: 0 | D65: Wetland and/or endandered species survey | E65: Environmental Concerns (Extra work of surveys and investigations due to environmental related concerns) | F65: =SUM(B65:B68) -> 0 | G65: 0
B66: 0 | D66: Erosion control issues
B67: 0 | D67: Historic site investgations
B68: 0 | D68: Endangered species issues
B69: 0 | D69: Contract error | E69: Contract Issues (Errors, omissions, and unclarity of contract clauses) | F69: =SUM(B69:B71) -> 0 | G69: =F69/$F$134 -> 0
B70: 0 | D70: Contract omission
B71: 0 | D71: Unclear contract items
B72: 0 | C72: 0 | D72: Cash flow restriction | E72: Funding Issues (budget concerns, unavailability of funds, and cash flow restrictions) | F72: =SUM(B72:B74) -> 0 | G72: 0
B73: 0 | C73: 0 | D73: Unavailability of Funds
B74: 0 | C74: 0 | D74: Budget concerns and layoffs
B75: 0 | D75: Incomplete vegetation establishment | E75: Incomplete Vegetation Establishment (Extra time that was required for the vegetation to fully establish (mainly 80 percent) throughout the project) | F75: =SUM(B75:B76) -> 0 | G75: 0
B76: 0 | D76: Incomplete planting establishment
B77: 2 | C77: =B77/$F$77 -> 1 | D77: Maintenance/replacement required | E77: Maintenance/Replacement Required (Maintanance or replacement request to constructed or existing parts as a result of damages during construction or failure) | F77: =SUM(B77:B79) -> 2 | G77: 0.04761904762
B78: 0 | C78: =B78/$F$77 -> 0 | D78: Maintenance/replacement required (damaged objects)
B79: 0 | C79: 0 | D79: Maintenance/replacement required (existing parts failure)
B80: 0 | D80: Error in entering previous claim time extension/compensation in HiCAMS | E80: Administrative/Paperwork Issues (Administrative or paperwork issues during construction) | F80: =SUM(B80:B81) -> 0 | G80: 0
B81: 0 | D81: Document misplacement
B82: 0 | D82: Permit acquisition waiting period | E82: Permit Issues (Environmental, construction, and all other type of permit issues) | F82: =SUM(B82:B87) -> 0 | G82: 0
B83: 0 | D83: Permit modification waiting period
B84: 0 | D84: Lack of required permit
B85: 0 | D85: Expired permits
B86: 0 | D86: Permit limitations
B87: 0 | D87: Permit violations
B88: 0 | C88: =B88/$F$88 -> 0 | D88: Delay in power supply | E88: Procurement Issues (Delays to project due to problems in procuring materials and equipment) | F88: =SUM(B88:B94) -> 1 | G88: 0.02380952381
B89: 1 | C89: =B89/$F$88 -> 1 | D89: Procurement delays
B90: 0 | C90: 0 | D90: Material shortage
B91: 0 | C91: 0 | D91: Department furnished material/equipment delays
B92: 0 | C92: 0 | D92: Wrong order placement
B93: 0 | C93: 0 | D93: Fabrication delays
B94: 0 | C94: 0 | D94: Material cost fluctuations
B95: 0 | D95: Quantities overrun/underrun | E95: Quantities Overrun/Underrun (Errors in budget, schedule, or items estimates) | F95: =SUM(B95) -> 0 | G95: 0
B96: 0 | C96: =B96/$F$96 -> 0 | D96: ROW acquisition delays | E96: ROW/Easement Issues (Problems related to Right of Way or easement) | F96: =SUM(B96:B102) -> 1 | G96: 0.02380952381
B97: 0 | C97: =B97/$F$96 -> 0 | D97: RR right of entery issues
B98: 1 | C98: 1 | D98: Insufficient ROW
B99: 0 | C99: 0 | D99: Landowner(s) unwilling to sell, may need to condemn
B100: 0 | C100: 0 | D100: Additional work required per Right of Way agreement - relocations, grading, etc.
B101: 0 | C101: 0 | D101: ROW approval delays (utility encroachment)
B102: 0 | C102: 0 | D102: ROW approval delays (railroad encroachment)
B103: 1 | C103: =B103/$F$103 -> 1 | D103: Seasonal limitations (weather) | E103: Seasonal Limitations (Weather) (Adverse weather conditions like extreme temperatures and precipitation that suspend the construction) | F103: =SUM(B103) -> 1 | G103: 0.02380952381
B104: 0 | D104: Survey error | E104: Survey Issues (Waiting for test results or errpneous surveys and tests that require corrective action) | F104: =SUM(B104:B105) -> 0 | G104: 0
B105: 0 | D105: Survery results delayed
B106: 0 | D106: Unavailability of DOT personnel | E106: Unavailability of Workforce/Personnel (Insufficient workforce or personnel that suspend or delay the construction) | F106: =SUM(B106:B109) -> 0 | G106: 0
B107: 0 | D107: Unavailability of railroad flaggers
B108: 0 | D108: Unavailability of workforce
B109: 0 | D109: Unavailability of DOT specialized staff
B110: 1 | C110: =B110/$F$110 -> 1 | D110: Discovery of unsuitable materials (geotechnical) | E110: Discovery of Unsuitable Materials (Geotechnical) (Materials, soil in specific, that expected to be used found to be unsuitable and required removal) | F110: =SUM(B110) -> 1 | G110: 0.02380952381
B111: 6 | C111: =B111/$F$111 -> 0.5 | D111: Utility conflict | E111: Utility Conflict (Conflicts and clashed with underground and overhead utilities that require utility relocation) | F111: =SUM(B111:B113) -> 12 | G111: 0.2857142857
B112: 0 | C112: =B112/$F$111 -> 0 | D112: Discovery of unknown underground utilities
B113: 6 | C113: 0.5 | D113: Utility conflict
B114: 1 | C114: =B114/$F$114 -> 1 | D114: Utility relocation not happen in time | E114: Utility Relocation Issues (Utility relocation not happen in time) | F114: =SUM(B114) -> 1 | G114: 0.02380952381
B115: 1 | C115: =B115/$F$115 -> 0.5 | D115: Work restrictions due to traffic | E115: Work Restriction (Work restrictions due to traffic considerations, or due to public/local agencies during social events or moratoriums) | F115: =SUM(B115:B121) -> 2 | G115: 0.04761904762
B116: 0 | C116: =B116/$F$115 -> 0 | D116: Work restriction request by public/local agencies
B117: 1 | C117: 0.5 | D117: Work restrictions due to traffic
B118: 0 | C118: 0 | D118: Work restriction request by school
B119: 0 | C119: 0 | D119: Work restriction request by DOT
B120: 0 | C120: 0 | D120: Limited working space
B121: 0 | C121: 0 | D121: Work restrictions due to traffic (road closure restrictions)
B122: 0 | D122: Extra tests required | E122: Stakeholders Request Late Changes (Change request or change in scope of project by stakeholders that require extra work) | F122: =SUM(B122:B124) -> 0 | G122: 0
B123: 0 | D123: Interagency issues - cities, counties, departments, etc. request change
B124: 0 | D124: Document preparation request by DOT
B125: 0 | C125: =B125/$F$125 -> 0 | D125: Payment agreement issues | E125: Other | F125: =SUM(B125:B133) -> 1 | G125: 0.02380952381
B126: 0 | C126: =B126/$F$125 -> 0 | D126: Completion incentive
B127: 0 | C127: 0 | D127: Termination of contract
B128: 0 | C128: 0 | D128: Lawsuit costs
B129: 0 | C129: 0 | D129: Covid impact
B130: 0 | C130: 0 | D130: Unforeseen problems (unexpected death)
B131: 0 | C131: 0 | D131: Vehicle accident
B132: 1 | C132: 1 | D132: work not in conformance with contract and directive
B133: 0 | C133: 0 | D133: Contractor/subcontractor replacement
F134: =SUM(F3:F133) -> 42

Sheet Claims (Other) (hidden)

Sheet Claims (SRS) (hidden)

Sheet Claims (Rest Area) (hidden)

Sheet Claims (RHC) (hidden)

Sheet Claims (Rail) (hidden)

Sheet Claims (Ferry) (hidden)

Sheet Claims (Bicycle & Pedst.) (hidden)

Sheet Claims (ARC) (hidden)

Sheet Claims (Rural) (hidden)
B2: Rural Projects (Based on Generic Cause) | I2: Rural Projects (Based on Generic Cause)
B3: 30 | C3: =B3/$F$3 -> 1 | D3: natural disaster (hurricane) | E3: Natural Disasters (All types of natural disasters that can affect budget and schedule) | F3: =SUM(B3:B9) -> 30 | G3: =F3/$F$134 -> 0.08403361345 | I3: Natural Disasters | J3: =G3 -> 0.08403361345
B4: 0 | C4: =B4/$F$3 -> 0 | D4: natural disaster (drought condition) | I4: Design/Plan Issues | J4: =G10 -> 0.1988795518
B5: 0 | C5: 0 | D5: natural disaster (slide) | I5: Planning Issues (Except Start of Work and/or projecy closeout) | J5: =G22 -> 0.06442577031
B6: 0 | C6: 0 | D6: natural disaster (flood) | I6: Project Closeout Issues | J6: =G30 -> 0.04201680672
B7: 0 | C7: 0 | D7: natural disaster (sinkhole) | I7: Constructability Issues (Except for underground conflicts) | J7: =G33 -> 0.005602240896
B8: 0 | C8: 0 | D8: natural disaster (thunderstorm) | I8: Corrective Work | J8: =G36 -> 0.008403361345
B9: 0 | C9: 0 | D9: natural disaster (tropical depression) | I9: Delay in Start of Work | J9: =G39 -> 0.01400560224
B10: 26 | C10: =B10/$F$10 -> 0.3661971831 | D10: Design/plan change | E10: Design/Plan Issues (Change or error in roadway, structure, geotechnical, hydraulics, traffic, utility, and environmental design) | F10: =SUM(B10:B21) -> 71 | G10: =F10/$F$134 -> 0.1988795518 | I10: Design Approval Waiting Period/Indecision/Negotiation | J10: =G46 -> 0.02240896359
B11: 3 | C11: =B11/$F$10 -> 0.04225352113 | D11: Elimination of contract line item | I11: Differing Site Conditions/Discoveries (Except Utilities) | J11: =G57 -> 0.002801120448
B12: 0 | C12: 0 | D12: Design change due to safety concerns | I12: Environmental Concerns | J12: =G65 -> 0.008403361345
B13: 7 | C13: 0.0985915493 | D13: Change requests | I13: Contract Issues | J13: =G69 -> 0
B14: 21 | C14: 0.2957746479 | D14: Design/plan error | I14: Funding Issues | J14: =G72 -> 0.002801120448
B15: 1 | C15: 0.01408450704 | D15: Design modifications impact utility relocation | I15: Incomplete Vegetation Establishment | J15: =G75 -> 0.02801120448
B16: 8 | C16: 0.1126760563 | D16: Design/plan revision | I16: Maintenance/Replacement Required | J16: =G77 -> 0.05602240896
B17: 3 | C17: 0.04225352113 | D17: Design/plan omission | I17: Administrative/Paperwork Issues | J17: =G80 -> 0.04481792717
B18: 0 | C18: 0 | D18: Sight distance concerns | I18: Permit Issues | J18: =G82 -> 0.01120448179
B19: 1 | C19: 0.01408450704 | D19: Surveys late and/or surveys in error | I19: Procurement Issues | J19: =G88 -> 0.03361344538
B20: 0 | C20: 0 | D20: Compliance with special technical specifications | I20: Quantities Overrun/Underrun | J20: =G95 -> 0.03081232493
B21: 1 | C21: 0.01408450704 | D21: Misinterpretation of plans | I21: ROW/Easement Issues | J21: =G96 -> 0.02240896359
B22: 3 | C22: =B22/$F$22 -> 0.1304347826 | D22: Pressure to deliver project on an accelerated schedule | E22: Planning Issues (Except Start of Work and/or projecy closeout) (Delays to schedule due to insufficient planning and coordination within project team, and between project team and other stakeholders) | F22: =SUM(B22:B29) -> 23 | G22: 0.06442577031 | I22: Seasonal Limitations (Weather) | J22: =G103 -> 0.05042016807
B23: 10 | C23: =B23/$F$22 -> 0.4347826087 | D23: Purposeful limited work schedule | I23: Survey Issues | J23: =G104 -> 0.01400560224
B24: 6 | C24: 0.2608695652 | D24: Waiting for other entities/projects to perform work | I24: Unavailability of Workforce/Personnel | J24: =G106 -> 0
B25: 0 | C25: 0 | D25: Project Schedule - delays to project delivery | I25: Discovery of Unsuitable Materials (Geotechnical) | J25: =G110 -> 0.01400560224
B26: 3 | C26: 0.1304347826 | D26: Consistency and coordination with adjacent projects required | I26: Utility Conflict | J26: =G111 -> 0.1512605042
B27: 1 | C27: 0.04347826087 | D27: Lack of coordination/communication with project team | I27: Utility Relocation Issues | J27: =G114 -> 0.04481792717
B28: 0 | C28: 0 | D28: Scheduling conflicts - late inspection | I28: Work Restriction | J28: =G115 -> 0.02521008403
B29: 0 | C29: 0 | D29: Limited availability of specialized staff | I29: Stakeholders Request Late Changes | J29: =G122 -> 0.005602240896
B30: 0 | C30: =B30/$F$30 -> 0 | D30: Extra work required after final inspection | E30: Project Closeout Issues (Problems during project closeout) | F30: =SUM(B30:B32) -> 15 | G30: 0.04201680672 | I30: Other | J30: =G125 -> 0.01400560224
B31: 15 | C31: =B31/$F$30 -> 1 | D31: Scheduling conflicts - late final inspection
B32: 0 | C32: 0 | D32: Delay in receipt of final punchlist items | I32: Rural Projects (Based on Design/Plan Issues)
B33: 0 | C33: =B33/$F$33 -> 0 | D33: Conflict with existing structures | E33: Constructability Issues (Except for underground conflicts) (Conflicts and clashes with surface objects that makes the design be unconstructable) | F33: =SUM(B33:B35) -> 2 | G33: 0.005602240896
B34: 1 | C34: =B34/$F$33 -> 0.5 | D34: Conflict with surface objects | I34: Roadway Design (Vertical/horizontal alignment, earthwork, pavement, grade, etc.) | J34: 0.2898550725
B35: 1 | C35: 0.5 | D35: Constructability issues | I35: Structure Design (Bridge superstructure, retaining walls, etc.) | J35: 0.1304347826
B36: 3 | C36: =B36/$F$36 -> 1 | D36: Corrective work required | E36: Corrective Work (Corrective work or re-work as a result of problems in construction, poor quality of construction, or incorrect instructions that were gave to contractor) | F36: =SUM(B36:B38) -> 3 | G36: 0.008403361345 | I36: Geotechnical Design (Foundations, ground improvements, unsuitable materials, pile driving, etc.) | J36: 0.07246376812
B37: 0 | C37: =B37/$F$36 -> 0 | D37: Incorrect instruction by DOT personnel required corrective work | I37: Hydraulic Design (drainage, irrigation, lines, etc.) | J37: 0.1014492754
B38: 0 | C38: 0 | D38: Delay in critical decision making on required corrective actions | I38: Traffic Design (ITS, signals, intersections, signs, guardrail, safety) | J38: 0.2463768116
B39: 0 | C39: =B39/$F$39 -> 0 | D39: Scheduling conflicts - late preconstruction meeting | E39: Delay in Start of Work (Planning, scheduling, or administrative problems that delayed start of work) | F39: =SUM(B39:B45) -> 5 | G39: 0.01400560224 | I39: Other (NCDOT/RE initiated change, maintenance/replacement, special provisions, etc) | J39: 0.1594202899
B40: 2 | C40: =B40/$F$39 -> 0.4 | D40: Delay in execution of contract
B41: 1 | C41: 0.2 | D41: Delay in availability of project and/or start date
B42: 0 | C42: 0 | D42: Administrative review of low bid packages
B43: 0 | C43: 0 | D43: Late receipt of contrcat information
B44: 1 | C44: 0.2 | D44: Delay in project award
B45: 1 | C45: 0.2 | D45: Unavailability of Funds
B46: 1 | C46: =B46/$F$46 -> 0.125 | D46: Untimely review and return of submittals | E46: Design Approval Waiting Period/Indecision/Negotiation (Time spent waiting for approval of submittals, critical decisions from NCDOT, and reaching agreement with stakeholders) | F46: =SUM(B46:B56) -> 8 | G46: 0.02240896359
B47: 4 | C47: =B47/$F$46 -> 0.5 | D47: Delay in critical decision making
B48: 0 | C48: 0 | D48: Negotiation delays
B49: 0 | C49: 0 | D49: Delays in reaching agreement with property owners
B50: 0 | C50: 0 | D50: Delays in reaching agreement with stakeholders
B51: 1 | C51: 0.125 | D51: Delays in reaching utility agreement
B52: 0 | C52: 0 | D52: Delay in critical decision making on required corrective actions
B53: 2 | C53: 0.25 | D53: Untimelty receipt of design/plan
B54: 0 | C54: 0 | D54: Delays in reaching agreement with other entities
B55: 0 | C55: 0 | D55: Delays in reaching agreement with railroad
B56: 0 | C56: 0 | D56: Delay in receipt of (land) quality control approvals
B57: 0 | C57: =B57/$F$57 -> 0 | D57: Conflict with unknown underground obstructions/structures | E57: Differing Site Conditions/Discoveries (Except Utilities) (Subsurface situations that were different than anticipated) | F57: =SUM(B57:B64) -> 1 | G57: 0.002801120448
B58: 0 | C58: =B58/$F$57 -> 0 | D58: Discovery of underground water flow
B59: 1 | C59: 1 | D59: Excess surface water issues
B60: 0 | C60: 0 | D60: Discovery of contaminated ground water
B61: 0 | C61: 0 | D61: Differing site conditions
B62: 0 | C62: 0 | D62: Wetland discovery
B63: 0 | C63: 0 | D63: Discovery of contaminated soil
B64: 0 | C64: 0 | D64: Discovery of hazardous underground materials
B65: 3 | C65: =B65/$F$65 -> 1 | D65: Wetland and/or endandered species survey | E65: Environmental Concerns (Extra work of surveys and investigations due to environmental related concerns) | F65: =SUM(B65:B68) -> 3 | G65: 0.008403361345
B66: 0 | C66: =B66/$F$65 -> 0 | D66: Erosion control issues
B67: 0 | C67: 0 | D67: Historic site investgations
B68: 0 | C68: 0 | D68: Endangered species issues
B69: 0 | C69: 0 | D69: Contract error | E69: Contract Issues (Errors, omissions, and unclarity of contract clauses) | F69: =SUM(B69:B71) -> 0 | G69: =F69/$F$134 -> 0
B70: 0 | C70: 0 | D70: Contract omission
B71: 0 | C71: 0 | D71: Unclear contract items
B72: 0 | C72: =B72/$F$72 -> 0 | D72: Cash flow restriction | E72: Funding Issues (budget concerns, unavailability of funds, and cash flow restrictions) | F72: =SUM(B72:B74) -> 1 | G72: 0.002801120448
B73: 1 | C73: =B73/$F$72 -> 1 | D73: Unavailability of Funds
B74: 0 | C74: 0 | D74: Budget concerns and layoffs
B75: 10 | C75: =B75/$F$75 -> 1 | D75: Incomplete vegetation establishment | E75: Incomplete Vegetation Establishment (Extra time that was required for the vegetation to fully establish (mainly 80 percent) throughout the project) | F75: =SUM(B75:B76) -> 10 | G75: 0.02801120448
B76: 0 | C76: =B76/$F$75 -> 0 | D76: Incomplete planting establishment
B77: 18 | C77: =B77/$F$77 -> 0.9 | D77: Maintenance/replacement required | E77: Maintenance/Replacement Required (Maintanance or replacement request to constructed or existing parts as a result of damages during construction or failure) | F77: =SUM(B77:B79) -> 20 | G77: 0.05602240896
B78: 2 | C78: =B78/$F$77 -> 0.1 | D78: Maintenance/replacement required (damaged objects)
B79: 0 | C79: 0 | D79: Maintenance/replacement required (existing parts failure)
B80: 16 | C80: =B80/$F$80 -> 1 | D80: Error in entering previous claim time extension/compensation in HiCAMS | E80: Administrative/Paperwork Issues (Administrative or paperwork issues during construction) | F80: =SUM(B80:B81) -> 16 | G80: 0.04481792717
B81: 0 | C81: =B81/$F$80 -> 0 | D81: Document misplacement
B82: 1 | C82: =B82/$F$82 -> 0.25 | D82: Permit acquisition waiting period | E82: Permit Issues (Environmental, construction, and all other type of permit issues) | F82: =SUM(B82:B87) -> 4 | G82: 0.01120448179
B83: 0 | C83: =B83/$F$82 -> 0 | D83: Permit modification waiting period
B84: 1 | C84: 0.25 | D84: Lack of required permit
B85: 1 | C85: 0.25 | D85: Expired permits
B86: 0 | C86: 0 | D86: Permit limitations
B87: 1 | C87: 0.25 | D87: Permit violations
B88: 6 | C88: =B88/$F$88 -> 0.5 | D88: Delay in power supply | E88: Procurement Issues (Delays to project due to problems in procuring materials and equipment) | F88: =SUM(B88:B94) -> 12 | G88: 0.03361344538
B89: 2 | C89: =B89/$F$88 -> 0.1666666667 | D89: Procurement delays
B90: 1 | C90: 0.08333333333 | D90: Material shortage
B91: 2 | C91: 0.1666666667 | D91: Department furnished material/equipment delays
B92: 0 | C92: 0 | D92: Wrong order placement
B93: 0 | C93: 0 | D93: Fabrication delays
B94: 1 | C94: 0.08333333333 | D94: Material cost fluctuations
B95: 11 | C95: =B95/$F$95 -> 1 | D95: Quantities overrun/underrun | E95: Quantities Overrun/Underrun (Errors in budget, schedule, or items estimates) | F95: =SUM(B95) -> 11 | G95: 0.03081232493
B96: 7 | C96: =B96/$F$96 -> 0.875 | D96: ROW acquisition delays | E96: ROW/Easement Issues (Problems related to Right of Way or easement) | F96: =SUM(B96:B102) -> 8 | G96: 0.02240896359
B97: 1 | C97: =B97/$F$96 -> 0.125 | D97: RR right of entery issues
B98: 0 | C98: 0 | D98: Insufficient ROW
B99: 0 | C99: 0 | D99: Landowner(s) unwilling to sell, may need to condemn
B100: 0 | C100: 0 | D100: Additional work required per Right of Way agreement - relocations, grading, etc.
B101: 0 | C101: 0 | D101: ROW approval delays (utility encroachment)
B102: 0 | C102: 0 | D102: ROW approval delays (railroad encroachment)
B103: 18 | C103: =B103/$F$103 -> 1 | D103: Seasonal limitations (weather) | E103: Seasonal Limitations (Weather) (Adverse weather conditions like extreme temperatures and precipitation that suspend the construction) | F103: =SUM(B103) -> 18 | G103: 0.05042016807
B104: 4 | C104: =B104/$F$104 -> 0.8 | D104: Survey error | E104: Survey Issues (Waiting for test results or errpneous surveys and tests that require corrective action) | F104: =SUM(B104:B105) -> 5 | G104: 0.01400560224
B105: 1 | C105: =B105/$F$104 -> 0.2 | D105: Survery results delayed
B106: 0 | C106: 0 | D106: Unavailability of DOT personnel | E106: Unavailability of Workforce/Personnel (Insufficient workforce or personnel that suspend or delay the construction) | F106: =SUM(B106:B109) -> 0 | G106: 0
B107: 0 | C107: 0 | D107: Unavailability of railroad flaggers
B108: 0 | C108: 0 | D108: Unavailability of workforce
B109: 0 | C109: 0 | D109: Unavailability of DOT specialized staff
B110: 5 | C110: =B110/$F$110 -> 1 | D110: Discovery of unsuitable materials (geotechnical) | E110: Discovery of Unsuitable Materials (Geotechnical) (Materials, soil in specific, that expected to be used found to be unsuitable and required removal) | F110: =SUM(B110) -> 5 | G110: 0.01400560224
B111: 26 | C111: =B111/$F$111 -> 0.4814814815 | D111: Utility conflict | E111: Utility Conflict (Conflicts and clashed with underground and overhead utilities that require utility relocation) | F111: =SUM(B111:B113) -> 54 | G111: 0.1512605042
B112: 2 | C112: =B112/$F$111 -> 0.03703703704 | D112: Discovery of unknown underground utilities
B113: 26 | C113: 0.4814814815 | D113: Utility conflict
B114: 16 | C114: =B114/$F$114 -> 1 | D114: Utility relocation not happen in time | E114: Utility Relocation Issues (Utility relocation not happen in time) | F114: =SUM(B114) -> 16 | G114: 0.04481792717
B115: 2 | C115: =B115/$F$115 -> 0.2222222222 | D115: Work restrictions due to traffic | E115: Work Restriction (Work restrictions due to traffic considerations, or due to public/local agencies during social events or moratoriums) | F115: =SUM(B115:B121) -> 9 | G115: 0.02521008403
B116: 4 | C116: =B116/$F$115 -> 0.4444444444 | D116: Work restriction request by public/local agencies
B117: 2 | C117: 0.2222222222 | D117: Work restrictions due to traffic
B118: 0 | C118: 0 | D118: Work restriction request by school
B119: 1 | C119: 0.1111111111 | D119: Work restriction request by DOT
B120: 0 | C120: 0 | D120: Limited working space
B121: 0 | C121: 0 | D121: Work restrictions due to traffic (road closure restrictions)
B122: 0 | C122: =B122/$F$122 -> 0 | D122: Extra tests required | E122: Stakeholders Request Late Changes (Change request or change in scope of project by stakeholders that require extra work) | F122: =SUM(B122:B124) -> 2 | G122: 0.005602240896
B123: 2 | C123: =B123/$F$122 -> 1 | D123: Interagency issues - cities, counties, departments, etc. request change
B124: 0 | C124: 0 | D124: Document preparation request by DOT
B125: 0 | C125: =B125/$F$125 -> 0 | D125: Payment agreement issues | E125: Other | F125: =SUM(B125:B133) -> 5 | G125: 0.01400560224
B126: 0 | C126: =B126/$F$125 -> 0 | D126: Completion incentive
B127: 0 | C127: 0 | D127: Termination of contract
B128: 1 | C128: 0.2 | D128: Lawsuit costs
B129: 1 | C129: 0.2 | D129: Covid impact
B130: 2 | C130: 0.4 | D130: Unforeseen problems (unexpected death)
B131: 0 | C131: 0 | D131: Vehicle accident
B132: 0 | C132: 0 | D132: work not in conformance with contract and directive
B133: 1 | C133: 0.2 | D133: Contractor/subcontractor replacement
F134: =SUM(F3:F133) -> 357

Sheet Claims (Urban) (hidden)
B2: Urban Projects (Based on Generic Cause) | I2: Urban Projects (Based on Generic Cause)
B3: 14 | C3: =B3/$F$3 -> 0.8235294118 | D3: natural disaster (hurricane) | E3: Natural Disasters (All types of natural disasters that can affect budget and schedule) | F3: =SUM(B3:B9) -> 17 | G3: =F3/$F$134 -> 0.06227106227 | I3: Natural Disasters | J3: =G3 -> 0.06227106227
B4: 1 | C4: =B4/$F$3 -> 0.05882352941 | D4: natural disaster (drought condition) | I4: Design/Plan Issues | J4: =G10 -> 0.2307692308
B5: 0 | C5: 0 | D5: natural disaster (slide) | I5: Planning Issues (Except Start of Work and/or projecy closeout) | J5: =G22 -> 0.06227106227
B6: 0 | C6: 0 | D6: natural disaster (flood) | I6: Project Closeout Issues | J6: =G30 -> 0.04029304029
B7: 1 | C7: 0.05882352941 | D7: natural disaster (sinkhole) | I7: Constructability Issues (Except for underground conflicts) | J7: =G33 -> 0
B8: 1 | C8: 0.05882352941 | D8: natural disaster (thunderstorm) | I8: Corrective Work | J8: =G36 -> 0
B9: 0 | C9: 0 | D9: natural disaster (tropical depression) | I9: Delay in Start of Work | J9: =G39 -> 0
B10: 31 | C10: =B10/$F$10 -> 0.4920634921 | D10: Design/plan change | E10: Design/Plan Issues (Change or error in roadway, structure, geotechnical, hydraulics, traffic, utility, and environmental design) | F10: =SUM(B10:B21) -> 63 | G10: =F10/$F$134 -> 0.2307692308 | I10: Design Approval Waiting Period/Indecision/Negotiation | J10: =G46 -> 0.04029304029
B11: 1 | C11: =B11/$F$10 -> 0.01587301587 | D11: Elimination of contract line item | I11: Differing Site Conditions/Discoveries (Except Utilities) | J11: =G57 -> 0.02564102564
B12: 0 | C12: 0 | D12: Design change due to safety concerns | I12: Environmental Concerns | J12: =G65 -> 0.007326007326
B13: 7 | C13: 0.1111111111 | D13: Change requests | I13: Contract Issues | J13: =G69 -> 0
B14: 18 | C14: 0.2857142857 | D14: Design/plan error | I14: Funding Issues | J14: =G72 -> 0.007326007326
B15: 0 | C15: 0 | D15: Design modifications impact utility relocation | I15: Incomplete Vegetation Establishment | J15: =G75 -> 0.01098901099
B16: 2 | C16: 0.03174603175 | D16: Design/plan revision | I16: Maintenance/Replacement Required | J16: =G77 -> 0.0293040293
B17: 2 | C17: 0.03174603175 | D17: Design/plan omission | I17: Administrative/Paperwork Issues | J17: =G80 -> 0.03663003663
B18: 0 | C18: 0 | D18: Sight distance concerns | I18: Permit Issues | J18: =G82 -> 0.003663003663
B19: 0 | C19: 0 | D19: Surveys late and/or surveys in error | I19: Procurement Issues | J19: =G88 -> 0.01831501832
B20: 2 | C20: 0.03174603175 | D20: Compliance with special technical specifications | I20: Quantities Overrun/Underrun | J20: =G95 -> 0.05128205128
B21: 0 | C21: 0 | D21: Misinterpretation of plans | I21: ROW/Easement Issues | J21: =G96 -> 0.01831501832
B22: 1 | C22: =B22/$F$22 -> 0.05882352941 | D22: Pressure to deliver project on an accelerated schedule | E22: Planning Issues (Except Start of Work and/or projecy closeout) (Delays to schedule due to insufficient planning and coordination within project team, and between project team and other stakeholders) | F22: =SUM(B22:B29) -> 17 | G22: 0.06227106227 | I22: Seasonal Limitations (Weather) | J22: =G103 -> 0.02564102564
B23: 14 | C23: =B23/$F$22 -> 0.8235294118 | D23: Purposeful limited work schedule | I23: Survey Issues | J23: =G104 -> 0.01098901099
B24: 1 | C24: 0.05882352941 | D24: Waiting for other entities/projects to perform work | I24: Unavailability of Workforce/Personnel | J24: =G106 -> 0.003663003663
B25: 0 | C25: 0 | D25: Project Schedule - delays to project delivery | I25: Discovery of Unsuitable Materials (Geotechnical) | J25: =G110 -> 0
B26: 0 | C26: 0 | D26: Consistency and coordination with adjacent projects required | I26: Utility Conflict | J26: =G111 -> 0.2490842491
B27: 0 | C27: 0 | D27: Lack of coordination/communication with project team | I27: Utility Relocation Issues | J27: =G114 -> 0.04029304029
B28: 0 | C28: 0 | D28: Scheduling conflicts - late inspection | I28: Work Restriction | J28: =G115 -> 0.01098901099
B29: 1 | C29: 0.05882352941 | D29: Limited availability of specialized staff | I29: Stakeholders Request Late Changes | J29: =G122 -> 0.003663003663
B30: 1 | C30: =B30/$F$30 -> 0.09090909091 | D30: Extra work required after final inspection | E30: Project Closeout Issues (Problems during project closeout) | F30: =SUM(B30:B32) -> 11 | G30: 0.04029304029 | I30: Other | J30: =G125 -> 0.01098901099
B31: 9 | C31: =B31/$F$30 -> 0.8181818182 | D31: Scheduling conflicts - late final inspection
B32: 1 | C32: 0.09090909091 | D32: Delay in receipt of final punchlist items | I32: Urban Projects (Based on Design/Plan Issues)
B33: 0 | C33: 0 | D33: Conflict with existing structures | E33: Constructability Issues (Except for underground conflicts) (Conflicts and clashes with surface objects that makes the design be unconstructable) | F33: =SUM(B33:B35) -> 0 | G33: 0
B34: 0 | C34: 0 | D34: Conflict with surface objects | I34: Roadway Design (Vertical/horizontal alignment, earthwork, pavement, grade, etc.) | J34: 0.28125
B35: 0 | C35: 0 | D35: Constructability issues | I35: Structure Design (Bridge superstructure, retaining walls, etc.) | J35: 0.078125
B36: 0 | C36: 0 | D36: Corrective work required | E36: Corrective Work (Corrective work or re-work as a result of problems in construction, poor quality of construction, or incorrect instructions that were gave to contractor) | F36: =SUM(B36:B38) -> 0 | G36: 0 | I36: Geotechnical Design (Foundations, ground improvements, unsuitable materials, pile driving, etc.) | J36: 0.0625
B37: 0 | C37: 0 | D37: Incorrect instruction by DOT personnel required corrective work | I37: Hydraulic Design (drainage, irrigation, lines, etc.) | J37: 0.171875
B38: 0 | C38: 0 | D38: Delay in critical decision making on required corrective actions | I38: Traffic Design (ITS, signals, intersections, signs, guardrail, safety) | J38: 0.1875
B39: 0 | C39: 0 | D39: Scheduling conflicts - late preconstruction meeting | E39: Delay in Start of Work (Planning, scheduling, or administrative problems that delayed start of work) | F39: =SUM(B39:B45) -> 0 | G39: 0 | I39: Other (NCDOT/RE initiated change, maintenance/replacement, special provisions, etc) | J39: 0.21875
B40: 0 | C40: 0 | D40: Delay in execution of contract
B41: 0 | C41: 0 | D41: Delay in availability of project and/or start date
B42: 0 | C42: 0 | D42: Administrative review of low bid packages
B43: 0 | C43: 0 | D43: Late receipt of contrcat information
B44: 0 | C44: 0 | D44: Delay in project award
B45: 0 | C45: 0 | D45: Unavailability of Funds
B46: 6 | C46: =B46/$F$46 -> 0.5454545455 | D46: Untimely review and return of submittals | E46: Design Approval Waiting Period/Indecision/Negotiation (Time spent waiting for approval of submittals, critical decisions from NCDOT, and reaching agreement with stakeholders) | F46: =SUM(B46:B56) -> 11 | G46: 0.04029304029
B47: 1 | C47: =B47/$F$46 -> 0.09090909091 | D47: Delay in critical decision making
B48: 0 | C48: 0 | D48: Negotiation delays
B49: 1 | C49: 0.09090909091 | D49: Delays in reaching agreement with property owners
B50: 1 | C50: 0.09090909091 | D50: Delays in reaching agreement with stakeholders
B51: 0 | C51: 0 | D51: Delays in reaching utility agreement
B52: 0 | C52: 0 | D52: Delay in critical decision making on required corrective actions
B53: 0 | C53: 0 | D53: Untimelty receipt of design/plan
B54: 1 | C54: 0.09090909091 | D54: Delays in reaching agreement with other entities
B55: 1 | C55: 0.09090909091 | D55: Delays in reaching agreement with railroad
B56: 0 | C56: 0 | D56: Delay in receipt of (land) quality control approvals
B57: 1 | C57: =B57/$F$57 -> 0.1428571429 | D57: Conflict with unknown underground obstructions/structures | E57: Differing Site Conditions/Discoveries (Except Utilities) (Subsurface situations that were different than anticipated) | F57: =SUM(B57:B64) -> 7 | G57: 0.02564102564
B58: 0 | C58: =B58/$F$57 -> 0 | D58: Discovery of underground water flow
B59: 0 | C59: 0 | D59: Excess surface water issues
B60: 0 | C60: 0 | D60: Discovery of contaminated ground water
B61: 0 | C61: 0 | D61: Differing site conditions
B62: 1 | C62: 0.1428571429 | D62: Wetland discovery
B63: 1 | C63: 0.1428571429 | D63: Discovery of contaminated soil
B64: 4 | C64: 0.5714285714 | D64: Discovery of hazardous underground materials
B65: 1 | C65: =B65/$F$65 -> 0.5 | D65: Wetland and/or endandered species survey | E65: Environmental Concerns (Extra work of surveys and investigations due to environmental related concerns) | F65: =SUM(B65:B68) -> 2 | G65: 0.007326007326
B66: 1 | C66: =B66/$F$65 -> 0.5 | D66: Erosion control issues
B67: 0 | C67: 0 | D67: Historic site investgations
B68: 0 | C68: 0 | D68: Endangered species issues
B69: 0 | C69: 0 | D69: Contract error | E69: Contract Issues (Errors, omissions, and unclarity of contract clauses) | F69: =SUM(B69:B71) -> 0 | G69: =F69/$F$134 -> 0
B70: 0 | C70: 0 | D70: Contract omission
B71: 0 | C71: 0 | D71: Unclear contract items
B72: 1 | C72: =B72/$F$72 -> 0.5 | D72: Cash flow restriction | E72: Funding Issues (budget concerns, unavailability of funds, and cash flow restrictions) | F72: =SUM(B72:B74) -> 2 | G72: 0.007326007326
B73: 0 | C73: =B73/$F$72 -> 0 | D73: Unavailability of Funds
B74: 1 | C74: 0.5 | D74: Budget concerns and layoffs
B75: 3 | C75: =B75/$F$75 -> 1 | D75: Incomplete vegetation establishment | E75: Incomplete Vegetation Establishment (Extra time that was required for the vegetation to fully establish (mainly 80 percent) throughout the project) | F75: =SUM(B75:B76) -> 3 | G75: 0.01098901099
B76: 0 | C76: =B76/$F$75 -> 0 | D76: Incomplete planting establishment
B77: 6 | C77: =B77/$F$77 -> 0.75 | D77: Maintenance/replacement required | E77: Maintenance/Replacement Required (Maintanance or replacement request to constructed or existing parts as a result of damages during construction or failure) | F77: =SUM(B77:B79) -> 8 | G77: 0.0293040293
B78: 1 | C78: =B78/$F$77 -> 0.125 | D78: Maintenance/replacement required (damaged objects)
B79: 1 | C79: 0.125 | D79: Maintenance/replacement required (existing parts failure)
B80: 10 | C80: =B80/$F$80 -> 1 | D80: Error in entering previous claim time extension/compensation in HiCAMS | E80: Administrative/Paperwork Issues (Administrative or paperwork issues during construction) | F80: =SUM(B80:B81) -> 10 | G80: 0.03663003663
B81: 0 | C81: =B81/$F$80 -> 0 | D81: Document misplacement
B82: 1 | C82: =B82/$F$82 -> 1 | D82: Permit acquisition waiting period | E82: Permit Issues (Environmental, construction, and all other type of permit issues) | F82: =SUM(B82:B87) -> 1 | G82: 0.003663003663
B83: 0 | C83: =B83/$F$82 -> 0 | D83: Permit modification waiting period
B84: 0 | C84: 0 | D84: Lack of required permit
B85: 0 | C85: 0 | D85: Expired permits
B86: 0 | C86: 0 | D86: Permit limitations
B87: 0 | C87: 0 | D87: Permit violations
B88: 3 | C88: =B88/$F$88 -> 0.6 | D88: Delay in power supply | E88: Procurement Issues (Delays to project due to problems in procuring materials and equipment) | F88: =SUM(B88:B94) -> 5 | G88: 0.01831501832
B89: 1 | C89: =B89/$F$88 -> 0.2 | D89: Procurement delays
B90: 1 | C90: 0.2 | D90: Material shortage
B91: 0 | C91: 0 | D91: Department furnished material/equipment delays
B92: 0 | C92: 0 | D92: Wrong order placement
B93: 0 | C93: 0 | D93: Fabrication delays
B94: 0 | C94: 0 | D94: Material cost fluctuations
B95: 14 | C95: =B95/$F$95 -> 1 | D95: Quantities overrun/underrun | E95: Quantities Overrun/Underrun (Errors in budget, schedule, or items estimates) | F95: =SUM(B95) -> 14 | G95: 0.05128205128
B96: 3 | C96: =B96/$F$96 -> 0.6 | D96: ROW acquisition delays | E96: ROW/Easement Issues (Problems related to Right of Way or easement) | F96: =SUM(B96:B102) -> 5 | G96: 0.01831501832
B97: 0 | C97: =B97/$F$96 -> 0 | D97: RR right of entery issues
B98: 0 | C98: 0 | D98: Insufficient ROW
B99: 0 | C99: 0 | D99: Landowner(s) unwilling to sell, may need to condemn
B100: 1 | C100: 0.2 | D100: Additional work required per Right of Way agreement - relocations, grading, etc.
B101: 0 | C101: 0 | D101: ROW approval delays (utility encroachment)
B102: 1 | C102: 0.2 | D102: ROW approval delays (railroad encroachment)
B103: 7 | C103: =B103/$F$103 -> 1 | D103: Seasonal limitations (weather) | E103: Seasonal Limitations (Weather) (Adverse weather conditions like extreme temperatures and precipitation that suspend the construction) | F103: =SUM(B103) -> 7 | G103: 0.02564102564
B104: 3 | C104: =B104/$F$104 -> 1 | D104: Survey error | E104: Survey Issues (Waiting for test results or errpneous surveys and tests that require corrective action) | F104: =SUM(B104:B105) -> 3 | G104: 0.01098901099
B105: 0 | C105: =B105/$F$104 -> 0 | D105: Survery results delayed
B106: 0 | C106: =B106/$F$106 -> 0 | D106: Unavailability of DOT personnel | E106: Unavailability of Workforce/Personnel (Insufficient workforce or personnel that suspend or delay the construction) | F106: =SUM(B106:B109) -> 1 | G106: 0.003663003663
B107: 0 | C107: =B107/$F$106 -> 0 | D107: Unavailability of railroad flaggers
B108: 0 | C108: 0 | D108: Unavailability of workforce
B109: 1 | C109: 1 | D109: Unavailability of DOT specialized staff
B110: 0 | C110: 0 | D110: Discovery of unsuitable materials (geotechnical) | E110: Discovery of Unsuitable Materials (Geotechnical) (Materials, soil in specific, that expected to be used found to be unsuitable and required removal) | F110: =SUM(B110) -> 0 | G110: 0
B111: 33 | C111: =B111/$F$111 -> 0.4852941176 | D111: Utility conflict | E111: Utility Conflict (Conflicts and clashed with underground and overhead utilities that require utility relocation) | F111: =SUM(B111:B113) -> 68 | G111: 0.2490842491
B112: 2 | C112: =B112/$F$111 -> 0.02941176471 | D112: Discovery of unknown underground utilities
B113: 33 | C113: 0.4852941176 | D113: Utility conflict
B114: 11 | C114: =B114/$F$114 -> 1 | D114: Utility relocation not happen in time | E114: Utility Relocation Issues (Utility relocation not happen in time) | F114: =SUM(B114) -> 11 | G114: 0.04029304029
B115: 1 | C115: =B115/$F$115 -> 0.3333333333 | D115: Work restrictions due to traffic | E115: Work Restriction (Work restrictions due to traffic considerations, or due to public/local agencies during social events or moratoriums) | F115: =SUM(B115:B121) -> 3 | G115: 0.01098901099
B116: 0 | C116: =B116/$F$115 -> 0 | D116: Work restriction request by public/local agencies
B117: 1 | C117: 0.3333333333 | D117: Work restrictions due to traffic
B118: 0 | C118: 0 | D118: Work restriction request by school
B119: 0 | C119: 0 | D119: Work restriction request by DOT
B120: 0 | C120: 0 | D120: Limited working space
B121: 1 | C121: 0.3333333333 | D121: Work restrictions due to traffic (road closure restrictions)
B122: 0 | C122: =B122/$F$122 -> 0 | D122: Extra tests required | E122: Stakeholders Request Late Changes (Change request or change in scope of project by stakeholders that require extra work) | F122: =SUM(B122:B124) -> 1 | G122: 0.003663003663
B123: 1 | C123: =B123/$F$122 -> 1 | D123: Interagency issues - cities, counties, departments, etc. request change
B124: 0 | C124: 0 | D124: Document preparation request by DOT
B125: 1 | C125: =B125/$F$125 -> 0.3333333333 | D125: Payment agreement issues | E125: Other | F125: =SUM(B125:B133) -> 3 | G125: 0.01098901099
B126: 1 | C126: =B126/$F$125 -> 0.3333333333 | D126: Completion incentive
B127: 0 | C127: 0 | D127: Termination of contract
B128: 0 | C128: 0 | D128: Lawsuit costs
B129: 0 | C129: 0 | D129: Covid impact
B130: 1 | C130: 0.3333333333 | D130: Unforeseen problems (unexpected death)
B131: 0 | C131: 0 | D131: Vehicle accident
B132: 0 | C132: 0 | D132: work not in conformance with contract and directive
B133: 0 | C133: 0 | D133: Contractor/subcontractor replacement
F134: =SUM(F3:F133) -> 273

Sheet Claims (Interstate) (hidden)
B2: Interstate Projects (Based on Generic Cause) | I2: Interstate Projects (Based on Generic Cause)
B3: 21 | C3: =B3/$F$3 -> 1 | D3: natural disaster (hurricane) | E3: Natural Disasters (All types of natural disasters that can affect budget and schedule) | F3: =SUM(B3:B9) -> 21 | G3: =F3/$F$134 -> 0.109375 | I3: Natural Disasters | J3: =G3 -> 0.109375
B4: 0 | C4: =B4/$F$3 -> 0 | D4: natural disaster (drought condition) | I4: Design/Plan Issues | J4: =G10 -> 0.1510416667
B5: 0 | C5: 0 | D5: natural disaster (slide) | I5: Planning Issues (Except Start of Work and/or projecy closeout) | J5: =G22 -> 0.07291666667
B6: 0 | C6: 0 | D6: natural disaster (flood) | I6: Project Closeout Issues | J6: =G30 -> 0.07291666667
B7: 0 | C7: 0 | D7: natural disaster (sinkhole) | I7: Constructability Issues (Except for underground conflicts) | J7: =G33 -> 0
B8: 0 | C8: 0 | D8: natural disaster (thunderstorm) | I8: Corrective Work | J8: =G36 -> 0
B9: 0 | C9: 0 | D9: natural disaster (tropical depression) | I9: Delay in Start of Work | J9: =G39 -> 0.015625
B10: 13 | C10: =B10/$F$10 -> 0.4482758621 | D10: Design/plan change | E10: Design/Plan Issues (Change or error in roadway, structure, geotechnical, hydraulics, traffic, utility, and environmental design) | F10: =SUM(B10:B21) -> 29 | G10: =F10/$F$134 -> 0.1510416667 | I10: Design Approval Waiting Period/Indecision/Negotiation | J10: =G46 -> 0.03125
B11: 1 | C11: =B11/$F$10 -> 0.03448275862 | D11: Elimination of contract line item | I11: Differing Site Conditions/Discoveries (Except Utilities) | J11: =G57 -> 0
B12: 0 | C12: 0 | D12: Design change due to safety concerns | I12: Environmental Concerns | J12: =G65 -> 0.01041666667
B13: 1 | C13: 0.03448275862 | D13: Change requests | I13: Contract Issues | J13: =G69 -> 0.01041666667
B14: 9 | C14: 0.3103448276 | D14: Design/plan error | I14: Funding Issues | J14: =G72 -> 0.01041666667
B15: 0 | C15: 0 | D15: Design modifications impact utility relocation | I15: Incomplete Vegetation Establishment | J15: =G75 -> 0.005208333333
B16: 0 | C16: 0 | D16: Design/plan revision | I16: Maintenance/Replacement Required | J16: =G77 -> 0.08333333333
B17: 2 | C17: 0.06896551724 | D17: Design/plan omission | I17: Administrative/Paperwork Issues | J17: =G80 -> 0.01041666667
B18: 0 | C18: 0 | D18: Sight distance concerns | I18: Permit Issues | J18: =G82 -> 0.005208333333
B19: 0 | C19: 0 | D19: Surveys late and/or surveys in error | I19: Procurement Issues | J19: =G88 -> 0.03645833333
B20: 3 | C20: 0.1034482759 | D20: Compliance with special technical specifications | I20: Quantities Overrun/Underrun | J20: =G95 -> 0.08333333333
B21: 0 | C21: 0 | D21: Misinterpretation of plans | I21: ROW/Easement Issues | J21: =G96 -> 0.02083333333
B22: 2 | C22: =B22/$F$22 -> 0.1428571429 | D22: Pressure to deliver project on an accelerated schedule | E22: Planning Issues (Except Start of Work and/or projecy closeout) (Delays to schedule due to insufficient planning and coordination within project team, and between project team and other stakeholders) | F22: =SUM(B22:B29) -> 14 | G22: 0.07291666667 | I22: Seasonal Limitations (Weather) | J22: =G103 -> 0.06770833333
B23: 5 | C23: =B23/$F$22 -> 0.3571428571 | D23: Purposeful limited work schedule | I23: Survey Issues | J23: =G104 -> 0.01041666667
B24: 1 | C24: 0.07142857143 | D24: Waiting for other entities/projects to perform work | I24: Unavailability of Workforce/Personnel | J24: =G106 -> 0
B25: 0 | C25: 0 | D25: Project Schedule - delays to project delivery | I25: Discovery of Unsuitable Materials (Geotechnical) | J25: =G110 -> 0.02083333333
B26: 5 | C26: 0.3571428571 | D26: Consistency and coordination with adjacent projects required | I26: Utility Conflict | J26: =G111 -> 0.03125
B27: 0 | C27: 0 | D27: Lack of coordination/communication with project team | I27: Utility Relocation Issues | J27: =G114 -> 0.01041666667
B28: 1 | C28: 0.07142857143 | D28: Scheduling conflicts - late inspection | I28: Work Restriction | J28: =G115 -> 0.109375
B29: 0 | C29: 0 | D29: Limited availability of specialized staff | I29: Stakeholders Request Late Changes | J29: =G122 -> 0.005208333333
B30: 0 | C30: =B30/$F$30 -> 0 | D30: Extra work required after final inspection | E30: Project Closeout Issues (Problems during project closeout) | F30: =SUM(B30:B32) -> 14 | G30: 0.07291666667 | I30: Other | J30: =G125 -> 0.015625
B31: 14 | C31: =B31/$F$30 -> 1 | D31: Scheduling conflicts - late final inspection
B32: 0 | C32: 0 | D32: Delay in receipt of final punchlist items | I32: Interstate Projects (Based on Design/Plan Issues)
B33: 0 | C33: 0 | D33: Conflict with existing structures | E33: Constructability Issues (Except for underground conflicts) (Conflicts and clashes with surface objects that makes the design be unconstructable) | F33: =SUM(B33:B35) -> 0 | G33: 0
B34: 0 | C34: 0 | D34: Conflict with surface objects | I34: Roadway Design (Vertical/horizontal alignment, earthwork, pavement, grade, etc.) | J34: 0.1333333333
B35: 0 | C35: 0 | D35: Constructability issues | I35: Structure Design (Bridge superstructure, retaining walls, etc.) | J35: 0.1666666667
B36: 0 | C36: 0 | D36: Corrective work required | E36: Corrective Work (Corrective work or re-work as a result of problems in construction, poor quality of construction, or incorrect instructions that were gave to contractor) | F36: =SUM(B36:B38) -> 0 | G36: 0 | I36: Geotechnical Design (Foundations, ground improvements, unsuitable materials, pile driving, etc.) | J36: 0.06666666667
B37: 0 | C37: 0 | D37: Incorrect instruction by DOT personnel required corrective work | I37: Hydraulic Design (drainage, irrigation, lines, etc.) | J37: 0.06666666667
B38: 0 | C38: 0 | D38: Delay in critical decision making on required corrective actions | I38: Traffic Design (ITS, signals, intersections, signs, guardrail, safety) | J38: 0.2666666667
B39: 0 | C39: =B39/$F$39 -> 0 | D39: Scheduling conflicts - late preconstruction meeting | E39: Delay in Start of Work (Planning, scheduling, or administrative problems that delayed start of work) | F39: =SUM(B39:B45) -> 3 | G39: 0.015625 | I39: Other (NCDOT/RE initiated change, maintenance/replacement, special provisions, etc) | J39: 0.3
B40: 2 | C40: =B40/$F$39 -> 0.6666666667 | D40: Delay in execution of contract
B41: 0 | C41: 0 | D41: Delay in availability of project and/or start date
B42: 0 | C42: 0 | D42: Administrative review of low bid packages
B43: 0 | C43: 0 | D43: Late receipt of contrcat information
B44: 0 | C44: 0 | D44: Delay in project award
B45: 1 | C45: 0.3333333333 | D45: Unavailability of Funds
B46: 0 | C46: =B46/$F$46 -> 0 | D46: Untimely review and return of submittals | E46: Design Approval Waiting Period/Indecision/Negotiation (Time spent waiting for approval of submittals, critical decisions from NCDOT, and reaching agreement with stakeholders) | F46: =SUM(B46:B56) -> 6 | G46: 0.03125
B47: 4 | C47: =B47/$F$46 -> 0.6666666667 | D47: Delay in critical decision making
B48: 2 | C48: 0.3333333333 | D48: Negotiation delays
B49: 0 | C49: 0 | D49: Delays in reaching agreement with property owners
B50: 0 | C50: 0 | D50: Delays in reaching agreement with stakeholders
B51: 0 | C51: 0 | D51: Delays in reaching utility agreement
B52: 0 | C52: 0 | D52: Delay in critical decision making on required corrective actions
B53: 0 | C53: 0 | D53: Untimelty receipt of design/plan
B54: 0 | C54: 0 | D54: Delays in reaching agreement with other entities
B55: 0 | C55: 0 | D55: Delays in reaching agreement with railroad
B56: 0 | C56: 0 | D56: Delay in receipt of (land) quality control approvals
B57: 0 | C57: 0 | D57: Conflict with unknown underground obstructions/structures | E57: Differing Site Conditions/Discoveries (Except Utilities) (Subsurface situations that were different than anticipated) | F57: =SUM(B57:B64) -> 0 | G57: 0
B58: 0 | C58: 0 | D58: Discovery of underground water flow
B59: 0 | C59: 0 | D59: Excess surface water issues
B60: 0 | C60: 0 | D60: Discovery of contaminated ground water
B61: 0 | C61: 0 | D61: Differing site conditions
B62: 0 | C62: 0 | D62: Wetland discovery
B63: 0 | C63: 0 | D63: Discovery of contaminated soil
B64: 0 | C64: 0 | D64: Discovery of hazardous underground materials
B65: 1 | C65: =B65/$F$65 -> 0.5 | D65: Wetland and/or endandered species survey | E65: Environmental Concerns (Extra work of surveys and investigations due to environmental related concerns) | F65: =SUM(B65:B68) -> 2 | G65: 0.01041666667
B66: 0 | C66: =B66/$F$65 -> 0 | D66: Erosion control issues
B67: 1 | C67: 0.5 | D67: Historic site investgations
B68: 0 | C68: 0 | D68: Endangered species issues
B69: 0 | C69: =B69/$F$69 -> 0 | D69: Contract error | E69: Contract Issues (Errors, omissions, and unclarity of contract clauses) | F69: =SUM(B69:B71) -> 2 | G69: =F69/$F$134 -> 0.01041666667
B70: 2 | C70: =B70/$F$69 -> 1 | D70: Contract omission
B71: 0 | C71: 0 | D71: Unclear contract items
B72: 1 | C72: =B72/$F$72 -> 0.5 | D72: Cash flow restriction | E72: Funding Issues (budget concerns, unavailability of funds, and cash flow restrictions) | F72: =SUM(B72:B74) -> 2 | G72: 0.01041666667
B73: 1 | C73: =B73/$F$72 -> 0.5 | D73: Unavailability of Funds
B74: 0 | C74: 0 | D74: Budget concerns and layoffs
B75: 1 | C75: =B75/$F$75 -> 1 | D75: Incomplete vegetation establishment | E75: Incomplete Vegetation Establishment (Extra time that was required for the vegetation to fully establish (mainly 80 percent) throughout the project) | F75: =SUM(B75:B76) -> 1 | G75: 0.005208333333
B76: 0 | C76: =B76/$F$75 -> 0 | D76: Incomplete planting establishment
B77: 16 | C77: =B77/$F$77 -> 1 | D77: Maintenance/replacement required | E77: Maintenance/Replacement Required (Maintanance or replacement request to constructed or existing parts as a result of damages during construction or failure) | F77: =SUM(B77:B79) -> 16 | G77: 0.08333333333
B78: 0 | C78: =B78/$F$77 -> 0 | D78: Maintenance/replacement required (damaged objects)
B79: 0 | C79: 0 | D79: Maintenance/replacement required (existing parts failure)
B80: 2 | C80: =B80/$F$80 -> 1 | D80: Error in entering previous claim time extension/compensation in HiCAMS | E80: Administrative/Paperwork Issues (Administrative or paperwork issues during construction) | F80: =SUM(B80:B81) -> 2 | G80: 0.01041666667
B81: 0 | C81: =B81/$F$80 -> 0 | D81: Document misplacement
B82: 1 | C82: =B82/$F$82 -> 1 | D82: Permit acquisition waiting period | E82: Permit Issues (Environmental, construction, and all other type of permit issues) | F82: =SUM(B82:B87) -> 1 | G82: 0.005208333333
B83: 0 | C83: =B83/$F$82 -> 0 | D83: Permit modification waiting period
B84: 0 | C84: 0 | D84: Lack of required permit
B85: 0 | C85: 0 | D85: Expired permits
B86: 0 | C86: 0 | D86: Permit limitations
B87: 0 | C87: 0 | D87: Permit violations
B88: 4 | C88: =B88/$F$88 -> 0.5714285714 | D88: Delay in power supply | E88: Procurement Issues (Delays to project due to problems in procuring materials and equipment) | F88: =SUM(B88:B94) -> 7 | G88: 0.03645833333
B89: 1 | C89: =B89/$F$88 -> 0.1428571429 | D89: Procurement delays
B90: 1 | C90: 0.1428571429 | D90: Material shortage
B91: 0 | C91: 0 | D91: Department furnished material/equipment delays
B92: 0 | C92: 0 | D92: Wrong order placement
B93: 1 | C93: 0.1428571429 | D93: Fabrication delays
B94: 0 | C94: 0 | D94: Material cost fluctuations
B95: 16 | C95: =B95/$F$95 -> 1 | D95: Quantities overrun/underrun | E95: Quantities Overrun/Underrun (Errors in budget, schedule, or items estimates) | F95: =SUM(B95) -> 16 | G95: 0.08333333333
B96: 2 | C96: =B96/$F$96 -> 0.5 | D96: ROW acquisition delays | E96: ROW/Easement Issues (Problems related to Right of Way or easement) | F96: =SUM(B96:B102) -> 4 | G96: 0.02083333333
B97: 1 | C97: =B97/$F$96 -> 0.25 | D97: RR right of entery issues
B98: 0 | C98: 0 | D98: Insufficient ROW
B99: 1 | C99: 0.25 | D99: Landowner(s) unwilling to sell, may need to condemn
B100: 0 | C100: 0 | D100: Additional work required per Right of Way agreement - relocations, grading, etc.
B101: 0 | C101: 0 | D101: ROW approval delays (utility encroachment)
B102: 0 | C102: 0 | D102: ROW approval delays (railroad encroachment)
B103: 13 | C103: =B103/$F$103 -> 1 | D103: Seasonal limitations (weather) | E103: Seasonal Limitations (Weather) (Adverse weather conditions like extreme temperatures and precipitation that suspend the construction) | F103: =SUM(B103) -> 13 | G103: 0.06770833333
B104: 2 | C104: =B104/$F$104 -> 1 | D104: Survey error | E104: Survey Issues (Waiting for test results or errpneous surveys and tests that require corrective action) | F104: =SUM(B104:B105) -> 2 | G104: 0.01041666667
B105: 0 | C105: =B105/$F$104 -> 0 | D105: Survery results delayed
B106: 0 | C106: 0 | D106: Unavailability of DOT personnel | E106: Unavailability of Workforce/Personnel (Insufficient workforce or personnel that suspend or delay the construction) | F106: =SUM(B106:B109) -> 0 | G106: 0
B107: 0 | C107: 0 | D107: Unavailability of railroad flaggers
B108: 0 | C108: 0 | D108: Unavailability of workforce
B109: 0 | C109: 0 | D109: Unavailability of DOT specialized staff
B110: 4 | C110: =B110/$F$110 -> 1 | D110: Discovery of unsuitable materials (geotechnical) | E110: Discovery of Unsuitable Materials (Geotechnical) (Materials, soil in specific, that expected to be used found to be unsuitable and required removal) | F110: =SUM(B110) -> 4 | G110: 0.02083333333
B111: 3 | C111: =B111/$F$111 -> 0.5 | D111: Utility conflict | E111: Utility Conflict (Conflicts and clashed with underground and overhead utilities that require utility relocation) | F111: =SUM(B111:B113) -> 6 | G111: 0.03125
B112: 0 | C112: =B112/$F$111 -> 0 | D112: Discovery of unknown underground utilities
B113: 3 | C113: 0.5 | D113: Utility conflict
B114: 2 | C114: =B114/$F$114 -> 1 | D114: Utility relocation not happen in time | E114: Utility Relocation Issues (Utility relocation not happen in time) | F114: =SUM(B114) -> 2 | G114: 0.01041666667
B115: 8 | C115: =B115/$F$115 -> 0.380952381 | D115: Work restrictions due to traffic | E115: Work Restriction (Work restrictions due to traffic considerations, or due to public/local agencies during social events or moratoriums) | F115: =SUM(B115:B121) -> 21 | G115: 0.109375
B116: 4 | C116: =B116/$F$115 -> 0.1904761905 | D116: Work restriction request by public/local agencies
B117: 8 | C117: 0.380952381 | D117: Work restrictions due to traffic
B118: 0 | C118: 0 | D118: Work restriction request by school
B119: 1 | C119: 0.04761904762 | D119: Work restriction request by DOT
B120: 0 | C120: 0 | D120: Limited working space
B121: 0 | C121: 0 | D121: Work restrictions due to traffic (road closure restrictions)
B122: 0 | C122: =B122/$F$122 -> 0 | D122: Extra tests required | E122: Stakeholders Request Late Changes (Change request or change in scope of project by stakeholders that require extra work) | F122: =SUM(B122:B124) -> 1 | G122: 0.005208333333
B123: 1 | C123: =B123/$F$122 -> 1 | D123: Interagency issues - cities, counties, departments, etc. request change
B124: 0 | C124: 0 | D124: Document preparation request by DOT
B125: 0 | C125: =B125/$F$125 -> 0 | D125: Payment agreement issues | E125: Other | F125: =SUM(B125:B133) -> 3 | G125: 0.015625
B126: 0 | C126: =B126/$F$125 -> 0 | D126: Completion incentive
B127: 0 | C127: 0 | D127: Termination of contract
B128: 0 | C128: 0 | D128: Lawsuit costs
B129: 0 | C129: 0 | D129: Covid impact
B130: 0 | C130: 0 | D130: Unforeseen problems (unexpected death)
B131: 3 | C131: 1 | D131: Vehicle accident
B132: 0 | C132: 0 | D132: work not in conformance with contract and directive
B133: 0 | C133: 0 | D133: Contractor/subcontractor replacement
F134: =SUM(F3:F133) -> 192

Sheet Claims (Highway Safety) (hidden)
B2: Highway Safety Projects (Based on Generic Cause) | I2: Highway Safety Projects (Based on Generic Cause)
B3: 18 | C3: =B3/$F$3 -> 1 | D3: natural disaster (hurricane) | E3: Natural Disasters (All types of natural disasters that can affect budget and schedule) | F3: =SUM(B3:B9) -> 18 | G3: =F3/$F$134 -> 0.1084337349 | I3: Natural Disasters | J3: =G3 -> 0.1084337349
B4: 0 | C4: =B4/$F$3 -> 0 | D4: natural disaster (drought condition) | I4: Design/Plan Issues | J4: =G10 -> 0.1445783133
B5: 0 | C5: 0 | D5: natural disaster (slide) | I5: Planning Issues (Except Start of Work and/or projecy closeout) | J5: =G22 -> 0.03012048193
B6: 0 | C6: 0 | D6: natural disaster (flood) | I6: Project Closeout Issues | J6: =G30 -> 0.1325301205
B7: 0 | C7: 0 | D7: natural disaster (sinkhole) | I7: Constructability Issues (Except for underground conflicts) | J7: =G33 -> 0
B8: 0 | C8: 0 | D8: natural disaster (thunderstorm) | I8: Corrective Work | J8: =G36 -> 0
B9: 0 | C9: 0 | D9: natural disaster (tropical depression) | I9: Delay in Start of Work | J9: =G39 -> 0.01204819277
B10: 15 | C10: =B10/$F$10 -> 0.625 | D10: Design/plan change | E10: Design/Plan Issues (Change or error in roadway, structure, geotechnical, hydraulics, traffic, utility, and environmental design) | F10: =SUM(B10:B21) -> 24 | G10: =F10/$F$134 -> 0.1445783133 | I10: Design Approval Waiting Period/Indecision/Negotiation | J10: =G46 -> 0.01204819277
B11: 1 | C11: =B11/$F$10 -> 0.04166666667 | D11: Elimination of contract line item | I11: Differing Site Conditions/Discoveries (Except Utilities) | J11: =G57 -> 0.006024096386
B12: 0 | C12: 0 | D12: Design change due to safety concerns | I12: Environmental Concerns | J12: =G65 -> 0
B13: 1 | C13: 0.04166666667 | D13: Change requests | I13: Contract Issues | J13: =G69 -> 0
B14: 4 | C14: 0.1666666667 | D14: Design/plan error | I14: Funding Issues | J14: =G72 -> 0
B15: 0 | C15: 0 | D15: Design modifications impact utility relocation | I15: Incomplete Vegetation Establishment | J15: =G75 -> 0.02409638554
B16: 1 | C16: 0.04166666667 | D16: Design/plan revision | I16: Maintenance/Replacement Required | J16: =G77 -> 0.03614457831
B17: 0 | C17: 0 | D17: Design/plan omission | I17: Administrative/Paperwork Issues | J17: =G80 -> 0.02409638554
B18: 1 | C18: 0.04166666667 | D18: Sight distance concerns | I18: Permit Issues | J18: =G82 -> 0
B19: 0 | C19: 0 | D19: Surveys late and/or surveys in error | I19: Procurement Issues | J19: =G88 -> 0.01807228916
B20: 1 | C20: 0.04166666667 | D20: Compliance with special technical specifications | I20: Quantities Overrun/Underrun | J20: =G95 -> 0.06626506024
B21: 0 | C21: 0 | D21: Misinterpretation of plans | I21: ROW/Easement Issues | J21: =G96 -> 0.02409638554
B22: 0 | C22: =B22/$F$22 -> 0 | D22: Pressure to deliver project on an accelerated schedule | E22: Planning Issues (Except Start of Work and/or projecy closeout) (Delays to schedule due to insufficient planning and coordination within project team, and between project team and other stakeholders) | F22: =SUM(B22:B29) -> 5 | G22: 0.03012048193 | I22: Seasonal Limitations (Weather) | J22: =G103 -> 0.04819277108
B23: 2 | C23: =B23/$F$22 -> 0.4 | D23: Purposeful limited work schedule | I23: Survey Issues | J23: =G104 -> 0.006024096386
B24: 1 | C24: 0.2 | D24: Waiting for other entities/projects to perform work | I24: Unavailability of Workforce/Personnel | J24: =G106 -> 0.006024096386
B25: 0 | C25: 0 | D25: Project Schedule - delays to project delivery | I25: Discovery of Unsuitable Materials (Geotechnical) | J25: =G110 -> 0.01204819277
B26: 1 | C26: 0.2 | D26: Consistency and coordination with adjacent projects required | I26: Utility Conflict | J26: =G111 -> 0.2168674699
B27: 1 | C27: 0.2 | D27: Lack of coordination/communication with project team | I27: Utility Relocation Issues | J27: =G114 -> 0.04819277108
B28: 0 | C28: 0 | D28: Scheduling conflicts - late inspection | I28: Work Restriction | J28: =G115 -> 0.02409638554
B29: 0 | C29: 0 | D29: Limited availability of specialized staff | I29: Stakeholders Request Late Changes | J29: =G122 -> 0
B30: 2 | C30: =B30/$F$30 -> 0.09090909091 | D30: Extra work required after final inspection | E30: Project Closeout Issues (Problems during project closeout) | F30: =SUM(B30:B32) -> 22 | G30: 0.1325301205 | I30: Other | J30: =G125 -> 0
B31: 20 | C31: =B31/$F$30 -> 0.9090909091 | D31: Scheduling conflicts - late final inspection
B32: 0 | C32: 0 | D32: Delay in receipt of final punchlist items | I32: Highway Safety Projects (Based on Design/Plan Issues)
B33: 0 | C33: 0 | D33: Conflict with existing structures | E33: Constructability Issues (Except for underground conflicts) (Conflicts and clashes with surface objects that makes the design be unconstructable) | F33: =SUM(B33:B35) -> 0 | G33: 0
B34: 0 | C34: 0 | D34: Conflict with surface objects | I34: Roadway Design (Vertical/horizontal alignment, earthwork, pavement, grade, etc.) | J34: 0.2692307692
B35: 0 | C35: 0 | D35: Constructability issues | I35: Structure Design (Bridge superstructure, retaining walls, etc.) | J35: 0
B36: 0 | C36: 0 | D36: Corrective work required | E36: Corrective Work (Corrective work or re-work as a result of problems in construction, poor quality of construction, or incorrect instructions that were gave to contractor) | F36: =SUM(B36:B38) -> 0 | G36: 0 | I36: Geotechnical Design (Foundations, ground improvements, unsuitable materials, pile driving, etc.) | J36: 0
B37: 0 | C37: 0 | D37: Incorrect instruction by DOT personnel required corrective work | I37: Hydraulic Design (drainage, irrigation, lines, etc.) | J37: 0.07692307692
B38: 0 | C38: 0 | D38: Delay in critical decision making on required corrective actions | I38: Traffic Design (ITS, signals, intersections, signs, guardrail, safety) | J38: 0.2692307692
B39: 0 | C39: =B39/$F$39 -> 0 | D39: Scheduling conflicts - late preconstruction meeting | E39: Delay in Start of Work (Planning, scheduling, or administrative problems that delayed start of work) | F39: =SUM(B39:B45) -> 2 | G39: 0.01204819277 | I39: Other (NCDOT/RE initiated change, maintenance/replacement, special provisions, etc) | J39: 0.3846153846
B40: 2 | C40: =B40/$F$39 -> 1 | D40: Delay in execution of contract
B41: 0 | C41: 0 | D41: Delay in availability of project and/or start date
B42: 0 | C42: 0 | D42: Administrative review of low bid packages
B43: 0 | C43: 0 | D43: Late receipt of contrcat information
B44: 0 | C44: 0 | D44: Delay in project award
B45: 0 | C45: 0 | D45: Unavailability of Funds
B46: 1 | C46: =B46/$F$46 -> 0.5 | D46: Untimely review and return of submittals | E46: Design Approval Waiting Period/Indecision/Negotiation (Time spent waiting for approval of submittals, critical decisions from NCDOT, and reaching agreement with stakeholders) | F46: =SUM(B46:B56) -> 2 | G46: 0.01204819277
B47: 1 | C47: =B47/$F$46 -> 0.5 | D47: Delay in critical decision making
B48: 0 | C48: 0 | D48: Negotiation delays
B49: 0 | C49: 0 | D49: Delays in reaching agreement with property owners
B50: 0 | C50: 0 | D50: Delays in reaching agreement with stakeholders
B51: 0 | C51: 0 | D51: Delays in reaching utility agreement
B52: 0 | C52: 0 | D52: Delay in critical decision making on required corrective actions
B53: 0 | C53: 0 | D53: Untimelty receipt of design/plan
B54: 0 | C54: 0 | D54: Delays in reaching agreement with other entities
B55: 0 | C55: 0 | D55: Delays in reaching agreement with railroad
B56: 0 | C56: 0 | D56: Delay in receipt of (land) quality control approvals
B57: 0 | C57: =B57/$F$57 -> 0 | D57: Conflict with unknown underground obstructions/structures | E57: Differing Site Conditions/Discoveries (Except Utilities) (Subsurface situations that were different than anticipated) | F57: =SUM(B57:B64) -> 1 | G57: 0.006024096386
B58: 0 | C58: =B58/$F$57 -> 0 | D58: Discovery of underground water flow
B59: 0 | C59: 0 | D59: Excess surface water issues
B60: 0 | C60: 0 | D60: Discovery of contaminated ground water
B61: 0 | C61: 0 | D61: Differing site conditions
B62: 1 | C62: 1 | D62: Wetland discovery
B63: 0 | C63: 0 | D63: Discovery of contaminated soil
B64: 0 | C64: 0 | D64: Discovery of hazardous underground materials
B65: 0 | C65: 0 | D65: Wetland and/or endandered species survey | E65: Environmental Concerns (Extra work of surveys and investigations due to environmental related concerns) | F65: =SUM(B65:B68) -> 0 | G65: 0
B66: 0 | C66: 0 | D66: Erosion control issues
B67: 0 | C67: 0 | D67: Historic site investgations
B68: 0 | C68: 0 | D68: Endangered species issues
B69: 0 | C69: 0 | D69: Contract error | E69: Contract Issues (Errors, omissions, and unclarity of contract clauses) | F69: =SUM(B69:B71) -> 0 | G69: =F69/$F$134 -> 0
B70: 0 | C70: 0 | D70: Contract omission
B71: 0 | C71: 0 | D71: Unclear contract items
B72: 0 | C72: 0 | D72: Cash flow restriction | E72: Funding Issues (budget concerns, unavailability of funds, and cash flow restrictions) | F72: =SUM(B72:B74) -> 0 | G72: 0
B73: 0 | C73: 0 | D73: Unavailability of Funds
B74: 0 | C74: 0 | D74: Budget concerns and layoffs
B75: 4 | C75: =B75/$F$75 -> 1 | D75: Incomplete vegetation establishment | E75: Incomplete Vegetation Establishment (Extra time that was required for the vegetation to fully establish (mainly 80 percent) throughout the project) | F75: =SUM(B75:B76) -> 4 | G75: 0.02409638554
B76: 0 | C76: =B76/$F$75 -> 0 | D76: Incomplete planting establishment
B77: 5 | C77: =B77/$F$77 -> 0.8333333333 | D77: Maintenance/replacement required | E77: Maintenance/Replacement Required (Maintanance or replacement request to constructed or existing parts as a result of damages during construction or failure) | F77: =SUM(B77:B79) -> 6 | G77: 0.03614457831
B78: 1 | C78: =B78/$F$77 -> 0.1666666667 | D78: Maintenance/replacement required (damaged objects)
B79: 0 | C79: 0 | D79: Maintenance/replacement required (existing parts failure)
B80: 3 | C80: =B80/$F$80 -> 0.75 | D80: Error in entering previous claim time extension/compensation in HiCAMS | E80: Administrative/Paperwork Issues (Administrative or paperwork issues during construction) | F80: =SUM(B80:B81) -> 4 | G80: 0.02409638554
B81: 1 | C81: =B81/$F$80 -> 0.25 | D81: Document misplacement
B82: 0 | C82: 0 | D82: Permit acquisition waiting period | E82: Permit Issues (Environmental, construction, and all other type of permit issues) | F82: =SUM(B82:B87) -> 0 | G82: 0
B83: 0 | C83: 0 | D83: Permit modification waiting period
B84: 0 | C84: 0 | D84: Lack of required permit
B85: 0 | C85: 0 | D85: Expired permits
B86: 0 | C86: 0 | D86: Permit limitations
B87: 0 | C87: 0 | D87: Permit violations
B88: 2 | C88: =B88/$F$88 -> 0.6666666667 | D88: Delay in power supply | E88: Procurement Issues (Delays to project due to problems in procuring materials and equipment) | F88: =SUM(B88:B94) -> 3 | G88: 0.01807228916
B89: 0 | C89: =B89/$F$88 -> 0 | D89: Procurement delays
B90: 0 | C90: 0 | D90: Material shortage
B91: 1 | C91: 0.3333333333 | D91: Department furnished material/equipment delays
B92: 0 | C92: 0 | D92: Wrong order placement
B93: 0 | C93: 0 | D93: Fabrication delays
B94: 0 | C94: 0 | D94: Material cost fluctuations
B95: 11 | C95: =B95/$F$95 -> 1 | D95: Quantities overrun/underrun | E95: Quantities Overrun/Underrun (Errors in budget, schedule, or items estimates) | F95: =SUM(B95) -> 11 | G95: 0.06626506024
B96: 3 | C96: =B96/$F$96 -> 0.75 | D96: ROW acquisition delays | E96: ROW/Easement Issues (Problems related to Right of Way or easement) | F96: =SUM(B96:B102) -> 4 | G96: 0.02409638554
B97: 1 | C97: =B97/$F$96 -> 0.25 | D97: RR right of entery issues
B98: 0 | C98: 0 | D98: Insufficient ROW
B99: 0 | C99: 0 | D99: Landowner(s) unwilling to sell, may need to condemn
B100: 0 | C100: 0 | D100: Additional work required per Right of Way agreement - relocations, grading, etc.
B101: 0 | C101: 0 | D101: ROW approval delays (utility encroachment)
B102: 0 | C102: 0 | D102: ROW approval delays (railroad encroachment)
B103: 8 | C103: =B103/$F$103 -> 1 | D103: Seasonal limitations (weather) | E103: Seasonal Limitations (Weather) (Adverse weather conditions like extreme temperatures and precipitation that suspend the construction) | F103: =SUM(B103) -> 8 | G103: 0.04819277108
B104: 1 | C104: =B104/$F$104 -> 1 | D104: Survey error | E104: Survey Issues (Waiting for test results or errpneous surveys and tests that require corrective action) | F104: =SUM(B104:B105) -> 1 | G104: 0.006024096386
B105: 0 | C105: =B105/$F$104 -> 0 | D105: Survery results delayed
B106: 0 | C106: =B106/$F$106 -> 0 | D106: Unavailability of DOT personnel | E106: Unavailability of Workforce/Personnel (Insufficient workforce or personnel that suspend or delay the construction) | F106: =SUM(B106:B109) -> 1 | G106: 0.006024096386
B107: 0 | C107: =B107/$F$106 -> 0 | D107: Unavailability of railroad flaggers
B108: 0 | C108: 0 | D108: Unavailability of workforce
B109: 1 | C109: 1 | D109: Unavailability of DOT specialized staff
B110: 2 | C110: =B110/$F$110 -> 1 | D110: Discovery of unsuitable materials (geotechnical) | E110: Discovery of Unsuitable Materials (Geotechnical) (Materials, soil in specific, that expected to be used found to be unsuitable and required removal) | F110: =SUM(B110) -> 2 | G110: 0.01204819277
B111: 18 | C111: =B111/$F$111 -> 0.5 | D111: Utility conflict | E111: Utility Conflict (Conflicts and clashed with underground and overhead utilities that require utility relocation) | F111: =SUM(B111:B113) -> 36 | G111: 0.2168674699
B112: 0 | C112: =B112/$F$111 -> 0 | D112: Discovery of unknown underground utilities
B113: 18 | C113: 0.5 | D113: Utility conflict
B114: 8 | C114: =B114/$F$114 -> 1 | D114: Utility relocation not happen in time | E114: Utility Relocation Issues (Utility relocation not happen in time) | F114: =SUM(B114) -> 8 | G114: 0.04819277108
B115: 0 | C115: =B115/$F$115 -> 0 | D115: Work restrictions due to traffic | E115: Work Restriction (Work restrictions due to traffic considerations, or due to public/local agencies during social events or moratoriums) | F115: =SUM(B115:B121) -> 4 | G115: 0.02409638554
B116: 2 | C116: =B116/$F$115 -> 0.5 | D116: Work restriction request by public/local agencies
B117: 0 | C117: 0 | D117: Work restrictions due to traffic
B118: 1 | C118: 0.25 | D118: Work restriction request by school
B119: 1 | C119: 0.25 | D119: Work restriction request by DOT
B120: 0 | C120: 0 | D120: Limited working space
B121: 0 | C121: 0 | D121: Work restrictions due to traffic (road closure restrictions)
B122: 0 | C122: 0 | D122: Extra tests required | E122: Stakeholders Request Late Changes (Change request or change in scope of project by stakeholders that require extra work) | F122: =SUM(B122:B124) -> 0 | G122: 0
B123: 0 | C123: 0 | D123: Interagency issues - cities, counties, departments, etc. request change
B124: 0 | C124: 0 | D124: Document preparation request by DOT
B125: 0 | C125: 0 | D125: Payment agreement issues | E125: Other | F125: =SUM(B125:B133) -> 0 | G125: 0
B126: 0 | C126: 0 | D126: Completion incentive
B127: 0 | C127: 0 | D127: Termination of contract
B128: 0 | C128: 0 | D128: Lawsuit costs
B129: 0 | C129: 0 | D129: Covid impact
B130: 0 | C130: 0 | D130: Unforeseen problems (unexpected death)
B131: 0 | C131: 0 | D131: Vehicle accident
B132: 0 | C132: 0 | D132: work not in conformance with contract and directive
B133: 0 | C133: 0 | D133: Contractor/subcontractor replacement
F134: =SUM(F3:F133) -> 166

Sheet Utility Mitigation Strategy (hidden)
A1: VMO’s Risk Management Playbook—Utilities
A2: Impact: Utility issues typically delay the project schedule and increase contractor cost due to idle equipment and the requirement for additional demobilization/remobilization on the site; additional ROW acquisition costs, extra grading, construction stoppages (e.g., piling); damaged utilities; and utility redesign.
A3: Primary Risks | B3: Key Questions | C3: Mitigation Strategies
A4: Relocation Delays | B4: What is the best way to reduce utility delays? | C4: • Establish an appropriate schedule prior to construction. Use phased contract approach if utilities will not be removed prior to construction. • Gather available information & perform preliminary field investigations. • Plan utility relocation(s) prior to construction to identify their current location with respect to new utilities to avoid obstructions or constraints. • Review relocation plans with utility owners to make sure they meet utility owner requirements. • Perform advance relocation by a utility company or by one of their pre-qualified contractors. • Avoid relocating existing utilities by redesigning or realigning a proposed structure during the design phase. • Conduct utility relocation coordination meetings on an annual basis. • Provide requirements for utility information to be included with all roadway construction plans.
A5: Encroachment with New Construction | B5: Are utilities too close to new construction? | C5: • Ensure adequate easement allowance considering temporary work zones, including traffic shifts, temporary bridges, signage, etc. • Evaluate alternatives for the project and utilities to reduce impacts.
A6: Utilities Shown in Different Plan Location | B6: Are utilities shown correctly in the plans? | C6: • Review Existing Records & Information. • Perform Subsurface Utility Investigation to map utility locations. • Use contract surveying to map utilities, if necessary. • Survey & Plot Above Ground Features and connecting points. • Create a 3D Utility model.
A7: Unforeseen Utilities | B7: Is there a possibility of discovering unanticipated utilities on this project? | C7: • Identify unique constraints: close by high voltage lines, specialized equipment or permits, power transmission easements, transcontinental gas lines, complex or phased installation of wet utilities, prior grading work necessary, high water table, and contaminated soil. • Excavate, if necessary, to expose & survey utility.
A8: Tie-in Delays Due to Existing Utilities | B8: Are there any tie-ins to existing "wet" utilities? | C8: • Identify any possible tie-ins to existing "wet" utilities in advance and make sure adequate coordination with all appropriate stakeholders (e.g., cities and municipalities)
A9: Special Utility Requirements | B9: Are there any special requirements when dealing with utilities? | C9: • Provide utility coordinator throughout the project lifecycle. • Make sure correct utility boxes are identified in the contract. • Locate any underground utilities that are present inside the “tolerance zone.”
A10: Damage of New Utilities by Others | B10: What is the best way to reduce damaging new utilities by others? | C10: • Identify potential utility conflicts using the utility conflicts matrix (Clash Detections). • Conduct utility impact analysis. • Avoid sensitive environmental areas in the design stage of a project.

Sheet Structures Mitigation Strategy (hidden)
A1: VMO’s Risk Management Playbook—Structures
A2: Impact: Project schedule delays and cost increases
A3: Primary Risks | B3: Key Questions | C3: Mitigation Strategies
A4: Bridge Structure Design Errors | B4: Are lift bents properly designed? | C4: • Review and check the plans for completeness and accuracy with regard to the lift bents.
A5: Deck and Guardrail Omissions and Design Errors | B5: Have plans been reviewed to verify deck steel and dowel bars? Are expansion/contraction joints shown in the plans? Is additional epoxy coated rebar required in the design that is not currently shown? Is all guardrail included in the design? | C5: • Review and check the plans for completeness and accuracy with regard to deck steel and dowel bars, expansion/contraction joints, epoxy coated rebar, and guardrail. • Provide a detailed plan view and standard drawings for various design elements of the bridge that includes all the important information. • Bridge designer should work with the Road Design Section to ensure compatibility between the guardrail-to-bridge-rail transition and the site.
A6: Foundation Obstructions and Unsuitable Soil | B6: Have pile cut-off elevations been checked? Does the piling design meet sufficient bearing loads? Have possible natural and manmade objects been investigated as they can interfere with the drilled shaft or piling operations? Are there a sufficient number of soil nails in the design? | C6: • Understand the environmental, thermal, and loading conditions expected during the life of the proposed bridge. • Require close coordination between Geotechnical Design Section (GDS) and the design team. • Ask GDS to develop a soil exploration program and prepare a Preliminary Geotechnical Report (PGR) and a Bridge Geotechnical Report (BGR). • Perform a detailed subsurface soil exploration based on the bridge bent locations and anticipated foundation type after conducting a Design Field Review. • Show the estimated and minimum pile tip elevations on the drawing of the structural element. • Examine individual boring logs and plots of the profiles of various subsurface materials.
A7: Temporary Construction | B7: Has sufficient easement been acquired for avoiding utility encroachments and addressing temporary construction? Has traffic bearing shoring been considered in the contract? | C7: • Review and check the plans for completeness and accuracy with regard to traffic bearing shoring and adequate easement for temporary construction.
A8: Permit Issues | B8: Have all required permits been acquired for the continual progress of the project? If a stream is impacted during construction, has a permit been considered? | C8: • Ensure that all necessary permit applications are filed with appropriate enforcing agencies.
A9: Surveying Errors | B9: Has survey data been verified as it pertains to the location of retaining walls? | C9: • Review and check the plans for completeness and accuracy with regard to survey data and the location of structures.

Sheet ROW Mitigation Strategy (hidden)
A1: VMO’s Risk Management Playbook—Right-of-Way
A3: Primary Risks | B3: Key Questions | C3: Mitigation Strategies
A4: Land Purchase Delays | B4: How much will ultimately be paid for land? How many properties will need to be condemned? Rule of thumb: 1/3 of properties will experience a claim (settle for a higher cost or condemnation). | C4: • Early ROW unit involvement is beneficial— "pre-STIP preferred." • Consider Right of way cost carefully in the risk strategy. • Use utility lead to provide early coordination with utility owners. Consider 2–4-year lead time for utilities. • Need to "right-size" resource assignment (e.g., bigger projects require larger, more experienced consulting firms to assist with ROW analysis). • Implement Early Acquisition Program. • Early involvement and relationship building with property owners is key (i.e., use an adequate number of public hearings).
A5: Insufficient ROW Leading to Possible Utility Relocation Delays, Redesign for Accommodating Existing Easement, and Purchase of Additional Easement | B5: Is ROW too close to a structure or construction? Is there sufficient ROW for temporary work zones, bridges, signage, and detours? Is there adequate ROW for avoiding utility encroachments? | C5: • Show correct existing right-of-way widths on the plans for right-of-way acquisition. • Confirm existing right-of-way widths along with the entire project. • Consider changing design to avoid sensitive location(s). • Acquire ROW with future considerations for widening, improvements, and re-construction to add additional lanes.
A6: Using Land Cost only for Entire ROW Cost | B6: Have all costs been considered in the ROW estimate? | C6: • Update ROW costs throughout preconstruction stages, including all possible costs (e.g., land acquisition or easement rights, relocation, asbestos abatement and demolition, consultant fees, and condemnation)
A7: Complex Relocations | B7: How many gas stations, parking lots, septic systems, and utilities (e.g., power and telecom) are to be considered in the ROW? | C7: • Conduct project inspections with notes taken to identify issues such as a “utility pole in the parking lot.” • Ensure adequate easement allowance (consider temporary work zones, including traffic shifts, temporary bridges, signage, and utilities). • Consider making minor design changes in the grade or alignment to accommodate the relocation. • Hold utility relocation coordination meetings on an annual basis. • Provide notice and request utility company to relocate as soon as the need is determined.
A8: Contamination within ROW | B8: Is there contamination in the ROW (soil, asbestos, water, etc.) that will need to be remediated? | C8: • Clearly understand the nature of contaminants to be remediated. • Provide cap protection by interrupting an exposure pathway or by exerting control of contaminant movement. • Allow contractors to inspect buildings for asbestos and perform remediation work.
A9: Unforeseen Risks | B9: Is there the possibility of a gravesite or other unknown in the ROW that will need to be addressed? | C9: • Consider possible public concerns and possible litigation in the estimate due to unforeseen ROW risks. • Ensure coordination between DOT and utilities regarding control of ROW. • Have the contractor communicate all changes in the original construction schedule to the local government and all other affected parties. • Road authorities should develop a plan of action if unforeseen circumstances occur.
A10: Other Considerations | B10: How many parcels of land will be purchased? What is the project delivery approach (DBB or DB)? | C10: • Increase cost estimate contingency for larger projects (>40 parcels) since estimating accuracy decreases for larger projects. Estimating ROW costs for small and medium-sized projects (10-40 parcels) is less of an issue.

Sheet Roadway Mitigation Strategy (hidden)
A1: VMO’s Risk Management Playbook—Roadway
A2: Impact: Project schedule delays and cost increases
A3: Primary Risks | B3: Key Questions | C3: Mitigation Strategies
A4: Regulatory and Safety Requirements for Borrow and Waste Pits | B4: Is extra work required for the Corps of Engineers to provide technical data? Has the land quality of pits been approved? Have land costs been considered properly in the estimates? Are there high voltage lines in the borrow pit area requiring the possibility of a less efficient hauling of unclassified excavation? Is sufficient time scheduled to establish vegetation for the waste pit to avoid final acceptance delays by NCDNR? Will the contractor need to perform an environmental impact study as a requirement for reimbursement? | C4: • Preconstruction: Obtain a written approval for the use of the proposed site from local authorities. • Preconstruction: Undertake a preliminary site assessment prior to undertaking excavation works. • Preconstruction: Confirm the extent and quality of the materials within the proposed site by drilling boreholes and/or excavating test pits. • Preconstruction: Ensure that high voltage lines will not interfere with hauling operations. • Preconstruction: Decommission test pits and boreholes unless used as a borrow site.
A5: Substandard Subgrade Quality | B5: Are subgrade properties adequately understood that can impact future pavement performance? | C5: • Preconstruction: Understand soil properties, proper grading practices, and quality control testing requirements to achieve a high-quality subgrade. • Preconstruction: Determine nonuniform geotechnical conditions along the pavement that can contribute to local, permanent deformations in the pavement. • Preconstruction: Geotechnical study to evaluate specific issues (e.g., excessive subgrade rutting, aggregate contamination or degeneration, subgrade pumping, poor drainage, frost action, and swelling soils) and recommend procedures to mitigate potential problems. • Preconstruction: Test soil to obtain bearing capacity related to the moisture and density information since pavement and base course thickness design depend on the completed subgrade strength. • Construction: Provide quality control and quality assurance testing and compare actual performance with predicted performance.
A6: Indadequate Understanding of Site Hydraulic Characteristics | B6: Have frames, pipes, and boxes been properly designed? Have appropriate grates been considered for the intended use of the roadway (e.g., bicycle traffic) | C6: • Preconstruction: Make sure pipe ends, culvert wing walls, and headwalls adjacent to the roadway do not top the surrounding ground. • Preconstruction: Construct an open pipe grate across the potential path of the vehicle to make the large opening of pipe and culvert ends traversable. • Preconstruction: Use a grated inlet to prevent water ponding at access points. • Preconstruction: Use concrete lining for ditches with heavy runoff. • Preconstruction: Use safe bicycle grates when expecting bicycle traffic. • Construction: Clean the ditches regularly to prevent them from silting up and forcing water back onto the travel way surface or into the subbase of the pavement. • Construction: Restore the eroded and silted areas around barrier posts, breakaway sign supports, and highway light supports to the desired ground level and seeded. If the area continues to erode, carry out the bituminous overlays.
A7: Surveying Errors and Omissions | B7: Have probable sources of error been considered while surveying? Is the equipment maintained and adjusted properly? | C7: • Use a Terrestrial Laser Scanner (TLS). • Use routine care of equipment. • Acclimatize the survey instruments to outside conditions for an adequate time before final setup adjustments in cold or hot weather when using vehicle climate control. • Use mapping grade receivers to export the collected data to an external database such as Geographical Information System (GIS). • Before commencing a GPS project, ensure to obtain the latest versions of all software, adjust all tribrachs, and visually check all the cables and connections. • Use Electronic Distance Measuring (EDM) Instruments such as Total Stations. • Use hand levels for quick location of turn and instrument points and elevation check during grading operations. • Use digital levels for all surveys that require elevations. • Analyze traverse closure error (reveals the types of errors and aid in their elimination). • Use sight distances that best fit the terrain and are most comfortable for the instrument operator. Site distance should not exceed 200 Ft (60m). • Set benchmarks prior to or during leveling. Check all the found monuments that are to be incorporated in the level line for stability.
A8: Driveway Issues | B8: Have all driveways been identified and accounted for? Has possible driveway flooding been considered? | C8: • Using Eco-friendly, permeable pavers like the kind produced by TRUEGRID help solve flooded driveway problems. • Implement sealcoating since it is a cost-saving preventive maintenance process that can slow the natural degradation process. • Prevent future root intrusion by installing a root barrier between the planted area and the asphalt surface. • Use Transition mill and asphalt overlay. • Use modified concrete base where high-water table affects the surface or inadequate installation results in base failure.
A9: Poorly Timed Installation of Pavement and Markings | B9: Does the schedule consider the properly timed installation for paving and markings? | C9: • Preconstruction: ensure that activities such as paving and installing thermal markings are scheduled during appropriate times of the year. Installation of thermoplastic pavement markings requires warmer temperatures to establish proper bonding to the pavement surface.
A10: Inadequate Planning for Signage and Signalization | B10: Are there any aerial utility conflicts for the installation of overhead signs? Have signing plans been reviewed and include all the dimensions? Have power requirements for overhead sign structures and sources been identified to reduce the chance of delay? | C10: • Preconstruction: Check for all issues as it pertains to installing overhead signs (e.g., conflicts, power availability, and dimensions) • Construction: Install lighting along horizontal curves or segments with a history of lane-departure crashes for a high-speed rural roadway with narrow lane or shoulder widths. • Construction: Install roadside delineators to help drivers see changes in roadway geometry. • Construction: Use signs to warn drivers in advance of a change in lane width.
A11: Slope and Embankment Issues | B11: Has the quantity of required embankment materials been checked? Is additional work required to control erosion on existing channels, greenway trails, slopes, and base ditches? | C11: • Verify the estimated quantity of embankment materials. • Check additional erosion control requirements as a result of this project.
A12: Inadequate Vegetation/Revegetation Plans | B12: Has a suitable vegetation/revegetation plan been developed? Is the schedule favorable to achieve permanent vegetation (considering the time of year and weather conditions)? Is there any plan to solve issues with establishing permanent vegetation along shoulders? | C12: • Enlist experts from other natural resource disciplines to help with revegetation planning (e.g., botany, plant genetics, horticultural practices, etc.) • Incorporate revegetation planning very early on in road project development to benefit project coordination, schedule, and budget. • Define appropriate roles to help the designer coordinate with the proper people, follow protocols, and avoid duplicating efforts. • Make sure the designer is the coordinator of the technical and organizational aspects of the revegetation project to enhance project quality and efficiency. • Before vegetation design, understand new road alignments or major road widenings, which often involve extensive study of functional, cultural, environmental, and aesthetic issues.
A13: Deficient Traffic Control | B13: Does high traffic volume result in the suspension of the work? Is additional work required for lane closure installation and movement of movable concrete barriers? Is temporary shoring required for the maintenance of traffic? Is it urgent to work extra on traffic shifts? | C13: • Reduce the impact on motorists and improve safety for all by efficient and effective project phasing, construction sequencing, and maintenance of traffic through a work zone. • Develop a traffic control plan (TCP) to minimize traffic disruption and eliminate safety hazards involved with work zones. • Select pavement treatments, traffic management approaches, and contracting methods that will accelerate the work and minimize traffic disruption. • Select MRR strategies in high volume traffic conditions which require construction knowledge and experience input to ensure that each strategy is constructible, cost-effective, minimizes traffic delays, and provides a safe environment for workers and the traveling public. • Use a process modeling technique to formalize and structure MRR strategy selection. • Use Quick Zone, the first tool being developed under the SWAT (Strategic Work Zone Analysis Tools) Program at the Turner-Fairbanks Highway Research Center at the Federal Highway Administration. Quick Zone is a traffic impact analysis spreadsheet-based tool that can be used for work zone delay estimation. • Install ITS (intelligent traffic systems) with changeable message signs (CMS) to provide real-time information to traffic. • Use television, radio, and newspaper media to inform the public about the project. • Analyze traffic alternatives and perform constructability reviews, while two distinct sub-steps should be iterative and include a collaborative effort between disciplines. The disciplines include traffic engineers, construction engineers, constructability experts, project engineers, pavement engineers, and, as necessary, public information staff. • Coordinate tools - integration of construction staging and maintenance of traffic using multidisciplinary reviews. • Use Closure techniques - directional closures, crossovers, reduction of lane width, and temporary widening within the existing right-of-way. • Segment full closures (of 4.8 - 8km in length) of one direction from one major ramp to another off-ramp during weekends and late weeknight hours. • Care has to be taken not to "set" the design basis too early in project development as this may lead to sub-optimal solutions for handling traffic.

Sheet Railroad Mitigation Strategy (hidden)
A1: VMO’s Risk Management Playbook—Railroad
A2: Impact: Project schedule delays increase the cost to carry RR insurance
A3: Primary Risks | B3: Key Questions | C3: Mitigation Strategies
A4: Railroad Agreement Delays | B4: What can be done to reduce the time it takes to establish a railroad agreement? | C4: • Ensure early involvement and coordination between the DOT and Railroads. • Conduct periodic meetings between DOT and Railroads. • Consider partnering with the railroad to streamline the entire process. • Develop a master agreement. • Identify one DOT and one railroad individual as the central point of contact, empowered to coordinate highway and railroad project issues. • Establish a website with ROW requirements that are specific to each railroad.
A5: Right – of – Entry Delays | B5: Are there any reasons for encroachment delays (e.g., RR crossing not finished on time, need to construct detour tracks to relocate train operations, or removing existing tracks where a new bridge is to be located? | C5: • Consider design changes to avoid sensitive locations. • Ensure adequate easement allowance when working near railroad property. • Develop a list of non-invasive projects and share them with the railroads before the project start date. • Use third-party consultants to provide design reviews on plan submittals. • Update standard bid specifications as it pertains to contractors working in a railroad right-of-way. • Investigate railroad insurance requirements.
A6: Railroad Bridge Clearance Issues | B6: Have minimum height requirements been considered for structures and overhead utilities?
A7: Railroad Requirements more stringent than NCDOT Resulting in Extra Work | B7: Does the Railroad have more stringent requirements that may impact the project? | C7: • Allow additional time for setting girders for structure over railroad tracks. • Check with Railroad on suitable embankment materials (e.g., broken pavement might not meet their requirements)
A8: Unforeseen Site Conditions in Railway Easement | B8: Is there contaminated soil or other site conditions (e.g., an underground storage tank) that can delay construction? | C8: • Collect site information from the Railroad to help identify possible unforeseen site conditions. • Conduct subsurface investigation during the design phase.
A9: Flagger Availability Delays | B9: Will there be flagger issues that can possibly delay construction? | C9: • Make sure to have right-of-entry permits filed and RR flaggers present during encroachment. • Issue a scope of the worksheet to document flagging needs and reimbursement methods. • Identify one point of contact within the railroad who is responsible for flagging coordination.

Sheet Others Mitigation Strategy (hidden)
A1: VMO’s Risk Management Playbook—Others
A2: Impact: varies
A3: Primary Risks | B3: Key Questions | C3: Mitigation Strategies
A4: Suspension of work due to funding issues | B4: Are the cost estimations based on proper assumptions? What can be done to deal with cash flow and cash reserve problems? | C4: • Oversee mid-project changes beforehand and provide detailed change-order processes before the project begins. • Avoid late invoicing. • Hire a part-time bookkeeper or financial controller to help balance the workload. • Gather detailed financial data to make more informed and strategic business decisions. • Include Price adjustment clauses in the contract. • Contractors can make a change by requiring a 25-50% security deposit on a project to avoid insufficient Cash Reserves. • Consider renegotiating vendor contracts to extend billing cycles or pay some or all the costs after the project is complete. • Ensure the fees charged in the early phases of a project correlate to the value of the work performed. • Deal with suppliers in order to supply materials to the contractor and obtain direct payment from the client. • Apply payment bond with bank and client. • Provide end-financing to most projects to solve most of the client’s cash flow problems.
A5: Conflicts with nearby projects | B5: What is the best way to settle conflicts with nearby projects? | C5: • Compromise, so that each party gets their interests satisfied to a degree. • Solve the underlying problem, not the symptom. • Accept the risks if they cannot be avoided, transferred, insured, eliminated, controlled, or mitigated.
A6: Local tourism changes schedules | B6: Has tourist season been considered in the project schedule? | C6: • Consider tourist season while preparing the construction schedule.
A7: Unexpected Risks | B7: How to identify unexpected risks timely? | C7: • Use the Monte Carlo simulation to review all the possible outcomes and probabilities of any given action upon an unexpected situation. • Assess risk factors beyond the boundaries of conventional methods. • Try to identify the conditions most conducive to detecting risk factors early in the project life cycle.

Sheet Claims (All Project Types) (hidden)
A1: Close
B2: All Projects (Based on Generic Cause) | J2: All Projects (Based on Generic Cause) | O2: Based on Project Type | P2: Appalachian Regional Commission | Q2: Bicycle and Pedestrian | R2: Bridge Replacement | S2: Ferry | T2: Highway Safety | U2: Interstate | V2: Other | W2: Rail | X2: Railroad - Highway Crossings | Y2: Rest Area | Z2: Rural | AA2: Safe Routes to School | AB2: Urban
B3: 135 | C3: =B3/$G$3 -> 0.9440559441 | D3: natural disaster (hurricane) | E3: Contractor's work was suspended due to Hurricane Florence. | F3: Natural Disasters (All types of natural disasters that can affect budget and schedule) | G3: =SUM(B3:B9) -> 143 | H3: =G3/$G$134 -> 0.07717215326 | J3: Natural Disasters | K3: 0.07717215326 | O3: Administrative/Paperwork Issues | P3: 0 | Q3: 0 | R3: 0.02137767221 | S3: 0 | T3: 0.02702702703 | U3: 0.01111111111 | V3: 0.05660377358 | W3: 0.01449275362 | X3: 0 | Y3: 0.08333333333 | Z3: 0.0487804878 | AA3: 0.1333333333 | AB3: 0.04201680672
B4: 2 | C4: =B4/$G$3 -> 0.01398601399 | D4: natural disaster (drought condition) | E4: Department initiated claim for time due to drought conditions. | J4: Design/Plan Issues | K4: 0.1640582839 | O4: Constructability Issues (Except for underground conflicts) | P4: 0 | Q4: 0 | R4: 0.004750593824 | S4: 0 | T4: 0 | U4: 0 | V4: 0 | W4: 0.01449275362 | X4: 0 | Y4: 0 | Z4: 0.006097560976 | AA4: 0 | AB4: 0
B5: 2 | C5: 0.01398601399 | D5: natural disaster (slide) | E5: Contractor seeks addtional time for the removal of two slides. | J5: Planning Issues (Except Start of Work and/or projecy closeout) | K5: 0.05126821371 | O5: Contract Issues | P5: 0 | Q5: 0 | R5: 0.004750593824 | S5: 0 | T5: 0 | U5: 0.01111111111 | V5: 0.01886792453 | W5: 0.04347826087 | X5: 0 | Y5: 0 | Z5: 0 | AA5: 0.1333333333 | AB5: 0
B6: 1 | C6: 0.006993006993 | D6: natural disaster (flood) | E6: Per P.P. Eason for sod that did not survive due to flooding | J6: Project Closeout Issues | K6: 0.06475984889 | O6: Corrective Work | P6: 0 | Q6: 0 | R6: 0.01425178147 | S6: 0 | T6: 0 | U6: 0 | V6: 0 | W6: 0 | X6: 0 | Y6: 0 | Z6: 0.009146341463 | AA6: 0 | AB6: 0
B7: 1 | C7: 0.006993006993 | D7: natural disaster (sinkhole) | E7: Extension of I.C.T. No. 3 due to temporary suspension of work due to investigation and repair of sinkhole. | J7: Constructability Issues (Except for underground conflicts) | K7: 0.002698327037 | O7: Delay in Start of Work | P7: 0.05263157895 | Q7: 0.05714285714 | R7: 0.02137767221 | S7: 0 | T7: 0.01351351351 | U7: 0.01666666667 | V7: 0.1132075472 | W7: 0 | X7: 0 | Y7: 0.08333333333 | Z7: 0.01524390244 | AA7: 0 | AB7: 0
B8: 1 | C8: 0.006993006993 | D8: natural disaster (thunderstorm) | E8: Dept. is reimbursing contractor for concrete that was lost during a mass pour that was interrupted by a thunderstorm. The contractor will be responsible for other costs (i.e. ice, crane and labor). | J8: Corrective Work | K8: 0.004856988667 | O8: Design Approval Waiting Period/Indecision/Negotiation | P8: 0.05263157895 | Q8: 0.1428571429 | R8: 0.04275534442 | S8: 0.07142857143 | T8: 0.01351351351 | U8: 0.03333333333 | V8: 0.05660377358 | W8: 0.01449275362 | X8: 0 | Y8: 0.02777777778 | Z8: 0.0243902439 | AA8: 0 | AB8: 0.04621848739
B9: 1 | C9: 0.006993006993 | D9: natural disaster (tropical depression) | E9: Tropical Depression #10 Project Preparations | J9: Delay in Start of Work | K9: 0.01726929304 | O9: Design/Plan Issues | P9: 0.4736842105 | Q9: 0.2285714286 | R9: 0.1472684086 | S9: 0.2142857143 | T9: 0.1621621622 | U9: 0.1611111111 | V9: 0.1320754717 | W9: 0.1014492754 | X9: 0 | Y9: 0.25 | Z9: 0.2164634146 | AA9: 0.06666666667 | AB9: 0.2647058824
B10: 135 | C10: =B10/$G$10 -> 0.4440789474 | D10: Design/plan change | E10: The Contractor has requested $4512.30 additional compensation for the work required to regrade and recompact ABC, caused by the alternation of plans switching 48 expressway gutter to 30" curb and gutter." | F10: Design/Plan Issues (Change or error in roadway, structure, geotechnical, hydraulics, traffic, utility, and environmental design) | G10: =SUM(B10:B21) -> 304 | H10: =G10/$G$134 -> 0.1640582839 | J10: Design Approval Waiting Period/Indecision/Negotiation | K10: 0.03291958985 | O10: Differing Site Conditions/Discoveries (Except Utilities) | P10: 0 | Q10: 0 | R10: 0.04513064133 | S10: 0.07142857143 | T10: 0.006756756757 | U10: 0 | V10: 0.01886792453 | W10: 0 | X10: 0 | Y10: 0 | Z10: 0.003048780488 | AA10: 0 | AB10: 0.02941176471
B11: 8 | C11: =B11/$G$10 -> 0.02631578947 | D11: Elimination of contract line item | E11: ICT #7 was eliminated by the Department, not allowing the Contractor to close the intersection for 45 days as described in this ICT. Therefore causing the Contractor to change the way he had planned to construct this portion of the work. | J11: Differing Site Conditions/Discoveries (Except Utilities) | K11: 0.01726929304 | O11: Discovery of Unsuitable Materials (Geotechnical) | P11: 0 | Q11: 0.02857142857 | R11: 0.007125890736 | S11: 0 | T11: 0.01351351351 | U11: 0.02222222222 | V11: 0.01886792453 | W11: 0 | X11: 0 | Y11: 0 | Z11: 0.01524390244 | AA11: 0 | AB11: 0
B12: 1 | C12: 0.003289473684 | D12: Design change due to safety concerns | E12: Contract time extension for ICT#2 and overall contract due to the need for a unexpected temp. soil nail wall to safe up work area that would required a SA and lining up a new subcontractor. Contractor request 30 days extension. | J12: Environmental Concerns | K12: 0.007015650297 | O12: Environmental Concerns | P12: 0.05263157895 | Q12: 0 | R12: 0.007125890736 | S12: 0 | T12: 0 | U12: 0.01111111111 | V12: 0 | W12: 0 | X12: 0 | Y12: 0.02777777778 | Z12: 0.009146341463 | AA12: 0 | AB12: 0.008403361345
B13: 24 | C13: 0.07894736842 | D13: Change requests | E13: Claim for compensation for the removal of concrete median barrier and temporary crash cushions along existing Macy Grove Road. | J13: Contract Issues | K13: 0.005396654074 | O13: Funding Issues | P13: 0 | Q13: 0 | R13: 0 | S13: 0 | T13: 0 | U13: 0.005555555556 | V13: 0 | W13: 0.01449275362 | X13: 0 | Y13: 0 | Z13: 0 | AA13: 0 | AB13: 0.008403361345
B14: 81 | C14: 0.2664473684 | D14: Design/plan error | E14: Contractor requested 7 days and $15019.05 due to repair of failing frame and grates. After reviewing records, RE recommends $13,550.03 and 7 days. | J14: Funding Issues | K14: 0.003777657852 | O14: Incomplete Vegetation Establishment | P14: 0 | Q14: 0 | R14: 0.06650831354 | S14: 0 | T14: 0.02702702703 | U14: 0.005555555556 | V14: 0.05660377358 | W14: 0 | X14: 0 | Y14: 0 | Z14: 0.03048780488 | AA14: 0.06666666667 | AB14: 0.01260504202
B15: 1 | C15: 0.003289473684 | D15: Design modifications impact utility relocation | E15: Claim 3 should have granted 104 days to CT 01 in addition to CT 00 | J15: Incomplete Vegetation Establishment | K15: 0.02752293578 | O15: Maintenance/Replacement Required | P15: 0 | Q15: 0.05714285714 | R15: 0.02137767221 | S15: 0.07142857143 | T15: 0.04054054054 | U15: 0.08888888889 | V15: 0.03773584906 | W15: 0.02898550725 | X15: 0 | Y15: 0.02777777778 | Z15: 0.06097560976 | AA15: 0 | AB15: 0.03361344538
B16: 28 | C16: 0.09210526316 | D16: Design/plan revision | E16: The contractor requested 130 days due to a plan revision for signs. The revision was received on Dec. 8, 2002 and verbal approval for submittals was given May 1, 2003. | J16: Maintenance/Replacement Required | K16: 0.03885590934 | O16: Natural Disasters | P16: 0.1052631579 | Q16: 0.02857142857 | R16: 0.09501187648 | S16: 0.2857142857 | T16: 0.1216216216 | U16: 0.1166666667 | V16: 0.05660377358 | W16: 0 | X16: 0 | Y16: 0.1111111111 | Z16: 0.09146341463 | AA16: 0.06666666667 | AB16: 0.07142857143
B17: 11 | C17: 0.03618421053 | D17: Design/plan omission | E17: Change of Conditions - Additional costs associated with pipe system discoveries at the adjacent property | J17: Administrative/Paperwork Issues | K17: 0.02698327037 | O17: Other | P17: 0 | Q17: 0.02857142857 | R17: 0.01187648456 | S17: 0 | T17: 0 | U17: 0.01666666667 | V17: 0.01886792453 | W17: 0 | X17: 0 | Y17: 0 | Z17: 0.01524390244 | AA17: 0 | AB17: 0.01260504202
B18: 2 | C18: 0.006578947368 | D18: Sight distance concerns | E18: Contractor granted extra time due to requested additional work on guardrail. | J18: Permit Issues | K18: 0.009174311927 | O18: Permit Issues | P18: 0 | Q18: 0 | R18: 0.02375296912 | S18: 0 | T18: 0 | U18: 0.005555555556 | V18: 0 | W18: 0 | X18: 0 | Y18: 0.02777777778 | Z18: 0.01219512195 | AA18: 0 | AB18: 0.004201680672
B19: 1 | C19: 0.003289473684 | D19: Surveys late and/or surveys in error | E19: Request for time due to delay in sign installtion due to plan and surveying errors. | J19: Procurement Issues | K19: 0.02698327037 | O19: Planning Issues (Except Start of Work and/or projecy closeout) | P19: 0 | Q19: 0.08571428571 | R19: 0.04750593824 | S19: 0.1428571429 | T19: 0.03378378378 | U19: 0.07777777778 | V19: 0.01886792453 | W19: 0.04347826087 | X19: 0.1428571429 | Y19: 0.08333333333 | Z19: 0.07012195122 | AA19: 0 | AB19: 0.07142857143
B20: 10 | C20: 0.03289473684 | D20: Compliance with special technical specifications | E20: Contractor's work for construction of track detour was delayed due to added provision for obtaining requirements described under Protection of Railway Interest and ARRA specifications. Requirement was confirmed at the RxR preconstruction. | J20: Quantities Overrun/Underrun | K20: 0.04155423637 | O20: Procurement Issues | P20: 0 | Q20: 0.02857142857 | R20: 0.02375296912 | S20: 0.07142857143 | T20: 0.02027027027 | U20: 0.03888888889 | V20: 0.05660377358 | W20: 0.01449275362 | X20: 0 | Y20: 0.1111111111 | Z20: 0.03658536585 | AA20: 0 | AB20: 0.02100840336
B21: 2 | C21: 0.006578947368 | D21: Misinterpretation of plans | E21: Contractors work was canceled by NCDOT due to a misinterpretation of the plans and specifications. | J21: ROW/Easement Issues | K21: 0.02374527793 | O21: Project Closeout Issues | P21: 0 | Q21: 0.02857142857 | R21: 0.09026128266 | S21: 0 | T21: 0.1486486486 | U21: 0.07777777778 | V21: 0.1320754717 | W21: 0.01449275362 | X21: 0.1428571429 | Y21: 0.08333333333 | Z21: 0.04573170732 | AA21: 0.06666666667 | AB21: 0.04621848739
B22: 13 | C22: =B22/$G$22 -> 0.1368421053 | D22: Pressure to deliver project on an accelerated schedule | E22: This claim request is for extra work that needed due to the 96 pipe being installed out of phase. Because the 96" began out of phase, pumps had to be installed to direct the water that was coming through the area." | F22: Planning Issues (Except Start of Work and/or projecy closeout) (Delays to schedule due to insufficient planning and coordination within project team, and between project team and other stakeholders) | G22: =SUM(B22:B29) -> 95 | H22: 0.05126821371 | J22: Seasonal Limitations (Weather) | K22: 0.05450620615 | O22: Quantities Overrun/Underrun | P22: 0.05263157895 | Q22: 0 | R22: 0.01662707838 | S22: 0 | T22: 0.07432432432 | U22: 0.08888888889 | V22: 0 | W22: 0.115942029 | X22: 0 | Y22: 0 | Z22: 0.03353658537 | AA22: 0.06666666667 | AB22: 0.05882352941
B23: 42 | C23: =B23/$G$22 -> 0.4421052632 | D23: Purposeful limited work schedule | E23: Purposeful Limited Work Schedule- Contractor proposed to limit work schedule to 40 hours per week and the Department has agreed to grant two (2) additional days of over Contract Time per 40 hour or less work week performed by prime and sub (Oct4-Nov8 2020 | J23: Survey Issues | K23: 0.01025364274 | O23: ROW/Easement Issues | P23: 0 | Q23: 0.02857142857 | R23: 0.01187648456 | S23: 0 | T23: 0.02702702703 | U23: 0.02222222222 | V23: 0 | W23: 0.1014492754 | X23: 0 | Y23: 0 | Z23: 0.0243902439 | AA23: 0.06666666667 | AB23: 0.01680672269
B24: 20 | C24: 0.2105263158 | D24: Waiting for other entities/projects to perform work | E24: Delay to controlling operation because of City of Asheboro making repairs to city sewer facilities. | J24: Unavailability of Workforce/Personnel | K24: 0.005936319482 | O24: Seasonal Limitations (Weather) | P24: 0.05263157895 | Q24: 0.02857142857 | R24: 0.06413301663 | S24: 0 | T24: 0.05405405405 | U24: 0.07222222222 | V24: 0.03773584906 | W24: 0.05797101449 | X24: 0 | Y24: 0.02777777778 | Z24: 0.05487804878 | AA24: 0.06666666667 | AB24: 0.02941176471
B25: 1 | C25: 0.01052631579 | D25: Project Schedule - delays to project delivery | E25: Contract let with 90 days to complete. It was actually supposed to be let with 120 days to complete. This was discussed and agreed to by all parties during the pre-con on 10-11-10. | J25: Discovery of Unsuitable Materials (Geotechnical) | K25: 0.009174311927 | O25: Stakeholders Request Late Changes | P25: 0 | Q25: 0 | R25: 0.01425178147 | S25: 0 | T25: 0 | U25: 0.005555555556 | V25: 0 | W25: 0.02898550725 | X25: 0 | Y25: 0 | Z25: 0.006097560976 | AA25: 0 | AB25: 0.004201680672
B26: 12 | C26: 0.1263157895 | D26: Consistency and coordination with adjacent projects required | E26: During final inspection it was discovered that large amounts of runoff water from adjacent properties was bypassing ditch structures. An additional curb and grading was added in addition to the contract to connect off site drainage with NCDOT drainage. | J26: Utility Conflict | K26: 0.1813275769 | O26: Survey Issues | P26: 0 | Q26: 0 | R26: 0.0190023753 | S26: 0 | T26: 0.006756756757 | U26: 0.01111111111 | V26: 0 | W26: 0 | X26: 0 | Y26: 0 | Z26: 0.01524390244 | AA26: 0 | AB26: 0.01260504202
B27: 4 | C27: 0.04210526316 | D27: Lack of coordination/communication with project team | E27: CONTRACTOR IS REQUESTING ADDITIONAL COMPENSATION FOR EXTRA WORK PERFORMED AT DRILLED PIER 60-6. THE EXTRA WORK CONSIST OF MAKING A 4 CORE , DUE TO MISCOMMUNICATUONS BETWEEN DOT PERSONNEL TO GROUT CSL TUBES." | J27: Utility Relocation Issues | K27: 0.03885590934 | O27: Unavailability of Workforce/Personnel | P27: 0 | Q27: 0 | R27: 0.01425178147 | S27: 0 | T27: 0.006756756757 | U27: 0 | V27: 0.01886792453 | W27: 0.02898550725 | X27: 0 | Y27: 0 | Z27: 0 | AA27: 0 | AB27: 0.004201680672
B28: 2 | C28: 0.02105263158 | D28: Scheduling conflicts - late inspection | E28: 9 Days for Signal Loop Check by Div Traffic 4/27/17-5/6/2017 | J28: Work Restriction | K28: 0.03939557474 | O28: Utility Conflict | P28: 0 | Q28: 0.1714285714 | R28: 0.08076009501 | S28: 0 | T28: 0.1216216216 | U28: 0.01666666667 | V28: 0.1320754717 | W28: 0.3043478261 | X28: 0.2857142857 | Y28: 0.02777777778 | Z28: 0.08536585366 | AA28: 0.2 | AB28: 0.1470588235
B29: 1 | C29: 0.01052631579 | D29: Limited availability of specialized staff | E29: Delay in Availability of Project Beyond the Control of the Contractor. | J29: Stakeholders Request Late Changes | K29: 0.006475984889 | O29: Utility Relocation Issues | P29: 0.05263157895 | Q29: 0.02857142857 | R29: 0.05700712589 | S29: 0.07142857143 | T29: 0.05405405405 | U29: 0.01111111111 | V29: 0 | W29: 0.05797101449 | X29: 0.1428571429 | Y29: 0 | Z29: 0.0487804878 | AA29: 0.06666666667 | AB29: 0.04621848739
B30: 5 | C30: =B30/$G$30 -> 0.04166666667 | D30: Extra work required after final inspection | E30: Project was substantially completed on 2-10-06. Tim Boland waived liquidated damages from 2-10-06 to 12-1-06 (actual completion date.) | F30: Project Closeout Issues (Problems during project closeout) | G30: =SUM(B30:B32) -> 120 | H30: 0.06475984889 | J30: Other | K30: 0.01079330815 | O30: Work Restriction | P30: 0.1052631579 | Q30: 0.02857142857 | R30: 0.02612826603 | S30: 0 | T30: 0.02702702703 | U30: 0.07222222222 | V30: 0.01886792453 | W30: 0 | X30: 0.2857142857 | Y30: 0.02777777778 | Z30: 0.02134146341 | AA30: 0 | AB30: 0.008403361345
B31: 114 | C31: =B31/$G$30 -> 0.95 | D31: Scheduling conflicts - late final inspection | E31: Issues A,B&C. A] Delay of Final Inspection B] Delay for remanufacturing of Sidewalk Cover Plates C] Delay for Thermoplastic Pavement Marking seasonal limitations.
B32: 1 | C32: 0.008333333333 | D32: Delay in receipt of final punchlist items | E32: Department Initiated Claim for Sign Installation Delay | J32: All Projects (Based on Design/Plan Issues)
B33: 1 | C33: =B33/$G$33 -> 0.2 | D33: Conflict with existing structures | E33: 6th Street Sewer Delay | F33: Constructability Issues (Except for underground conflicts) (Conflicts and clashes with surface objects that makes the design be unconstructable) | G33: =SUM(B33:B35) -> 5 | H33: 0.002698327037
B34: 2 | C34: =B34/$G$33 -> 0.4 | D34: Conflict with surface objects | E34: Clearing and grubbing debris moved for grading progress. Burn ban, no way of getting ride of debris. Huge piles on project are geting in the way of grading. Price for moving. | J34: Roadway Design (Vertical/horizontal alignment, earthwork, pavement, grade, etc.) | K34: 0.2218430034
B35: 2 | C35: 0.4 | D35: Constructability issues | E35: Pump and Haul for installation of new forcemain (FM1, FM2, FM6 and FM7). | J35: Structure Design (Bridge superstructure, retaining walls, etc.) | K35: 0.1501706485
B36: 7 | C36: =B36/$G$36 -> 0.7777777778 | D36: Corrective work required | E36: Additional Ramps and Sidewalk | F36: Corrective Work (Corrective work or re-work as a result of problems in construction, poor quality of construction, or incorrect instructions that were gave to contractor) | G36: =SUM(B36:B38) -> 9 | H36: 0.004856988667 | J36: Geotechnical Design (Foundations, ground improvements, unsuitable materials, pile driving, etc.) | K36: 0.05802047782
B37: 1 | C37: =B37/$G$36 -> 0.1111111111 | D37: Incorrect instruction by DOT personnel required corrective work | E37: Claim for additional time due to delays caused by contractor instructed to get wrong grate and frame, which delayed placing concrete fo shoulder berm gutter, which delayed paving operations. | J37: Hydraulic Design (drainage, irrigation, lines, etc.) | K37: 0.1843003413
B38: 1 | C38: 0.1111111111 | D38: Delay in critical decision making on required corrective actions | E38: Delay to paving of final asphalt surface course due to the Department's investigation of the first asphalt surface course. | J38: Traffic Design (ITS, signals, intersections, signs, guardrail, safety) | K38: 0.1638225256
B39: 4 | C39: =B39/$G$39 -> 0.125 | D39: Scheduling conflicts - late preconstruction meeting | E39: Precon Delay - The Contractor was delayed from 2/1/16 - 2/7/16 (7 Days) due to the Preconstruction Conference being held after the Contract Date of Availability. The start of construction and initial grading were the controlling operation. | F39: Delay in Start of Work (Planning, scheduling, or administrative problems that delayed start of work) | G39: =SUM(B39:B45) -> 32 | H39: 0.01726929304 | J39: Other (NCDOT/RE initiated change, maintenance/replacement, special provisions, etc) | K39: 0.2218430034
B40: 19 | C40: =B40/$G$39 -> 0.59375 | D40: Delay in execution of contract | E40: The date of availabiliity was September 6, 2016 but the preconstruction conference was not held until September 20, 2016 because the contract was not executed until after the date of availability.
B41: 2 | C41: 0.0625 | D41: Delay in availability of project and/or start date | E41: Dept. Initiated for delay in availability of the project.
B42: 1 | C42: 0.03125 | D42: Administrative review of low bid packages | E42: Department Initiated Time Extension Due to Delay in Execution and Availability of Contract.
B43: 1 | C43: 0.03125 | D43: Late receipt of contrcat information | E43: Contract Delay: The Contractor was allowed 28 days extension during Pre-construction conference.
B44: 2 | C44: 0.0625 | D44: Delay in project award | E44: Claim for time for two different issues. 1. delay in letting 2. delays due to weather
B45: 3 | C45: 0.09375 | D45: Unavailability of Funds | E45: The contract was not awarded until after the contract availability date. As a reslut, the Pre-construction conference was also delayed. A Department initiated claim will grant the full number of contact days.
B46: 18 | C46: =B46/$G$46 -> 0.2950819672 | D46: Untimely review and return of submittals | E46: CSX/AECOM Delay to the Critical activity of the design of the two railroad bridges by prolonging the submittal review duration for the allowed 30 days to 58 days. Submittals F-033,- F-040 were submitted on 7/24/13 coments due 8/23/13 received 9/18/13. Su | F46: Design Approval Waiting Period/Indecision/Negotiation (Time spent waiting for approval of submittals, critical decisions from NCDOT, and reaching agreement with stakeholders) | G46: =SUM(B46:B56) -> 61 | H46: 0.03291958985
B47: 29 | C47: =B47/$G$46 -> 0.4754098361 | D47: Delay in critical decision making | E47: Controlling operation delayed due to the Department trying to decide whether or not to uninstall a planned pedestrian signal. This was caused by a request from ASU to modify an existing intersection to the college in the same area.
B48: 2 | C48: 0.03278688525 | D48: Negotiation delays | E48: Time for requested SA to widen and strengthen shoulders.
B49: 1 | C49: 0.01639344262 | D49: Delays in reaching agreement with property owners | E49: Contract Time extension of 99 days are initiated by the Department due to Supplemental Agreement #15 requiring permanent closure of driveway on Parcel 29 (University Commons) @ 44+75 L RT. Decision delayed pending property owner agreement. (10/15/15 -1/21
B50: 1 | C50: 0.01639344262 | D50: Delays in reaching agreement with stakeholders | E50: Project Closeout: Fred Smith Company completed reclamation on Adams Pit. Attempted to have property owner sign off on reclamation plan. Property owner refused and planted trees on property months later.
B51: 2 | C51: 0.03278688525 | D51: Delays in reaching utility agreement | E51: Department initiated claim for contract time extension. The time extension was a result of the utility agreement between the NCDOT and City of Lumberton not being signed until 53 days after the date of availability.
B52: 1 | C52: 0.01639344262 | D52: Delay in critical decision making on required corrective actions | E52: Delay to paving of final asphalt surface course due to the Department's investigation of the first asphalt surface course.
B53: 3 | C53: 0.04918032787 | D53: Untimelty receipt of design/plan | E53: Claim for time for delays in approving fencing anchoring system and final inspection punch items
B54: 1 | C54: 0.01639344262 | D54: Delays in reaching agreement with other entities | E54: The City of Durham delayed the contractors completion of the final punch list
B55: 1 | C55: 0.01639344262 | D55: Delays in reaching agreement with railroad | E55: Contract time extension due to utility delays and railroad encroachment approval.
B56: 2 | C56: 0.03278688525 | D56: Delay in receipt of (land) quality control approvals | E56: Delay in acceptance of Furlough Pit by Land Quality
B57: 11 | C57: =B57/$G$57 -> 0.34375 | D57: Conflict with unknown underground obstructions/structures | E57: Sign Footer Removal | F57: Differing Site Conditions/Discoveries (Except Utilities) (Subsurface situations that were different than anticipated) | G57: =SUM(B57:B64) -> 32 | H57: 0.01726929304
B58: 2 | C58: =B58/$G$57 -> 0.0625 | D58: Discovery of underground water flow | E58: Extra Work to remove and install C&G in Williamston and delay due to placing stone for wet subgrade
B59: 7 | C59: 0.21875 | D59: Excess surface water issues | E59: Additional drainage structure and pipe.
B60: 1 | C60: 0.03125 | D60: Discovery of contaminated ground water | E60: This claim is due to the RE shutting down the contractor's operation on May 27th. The contractor was not allowed to pump contaminated ground water from his bore pit which stopped his Jack & Bore operation.
B61: 1 | C61: 0.03125 | D61: Differing site conditions | E61: Initial Pile Driving Attempts Failed due to the Higher than Anticipated Elevation of Hard Rock at B-96
B62: 2 | C62: 0.0625 | D62: Wetland discovery | E62: (Permit Modification Isolated Wetland) The discovery of an isolated wetland led to a permit modification and delayed the controlling operation which was Clearing and Grubbing
B63: 3 | C63: 0.09375 | D63: Discovery of contaminated soil | E63: Time request to contract due to contaminated soil on site. Contactor had to stop work for the soil to be removed from site.
B64: 5 | C64: 0.15625 | D64: Discovery of hazardous underground materials | E64: #3-The inspection of asbestos in buildings to be demolished by the contractor was required. Asbestos was found and had to be removed. Typically NCDOT performs this work, but the contractor was able to perform the work quicker and not delay the project.
B65: 6 | C65: =B65/$G$65 -> 0.4615384615 | D65: Wetland and/or endandered species survey | E65: Wetland Survey & Endandered Species Survey | F65: Environmental Concerns (Extra work of surveys and investigations due to environmental related concerns) | G65: =SUM(B65:B68) -> 13 | H65: 0.007015650297
B66: 4 | C66: =B66/$G$65 -> 0.3076923077 | D66: Erosion control issues | E66: Extra work due to Erosion Control
B67: 1 | C67: 0.07692307692 | D67: Historic site investgations | E67: The Contractor requests compensation for idle equipment and seeding and mulching operations resulting from NCDOTs suspension of work dated 11-7-05. This suspension was a result of an historic investigation of the Trading Ford Path.
B68: 2 | C68: 0.1538461538 | D68: Endangered species issues | E68: North Carolina Wildlife Resources Commission had requested as a condition of their concurrence with the Section 404 and 401 permits, an extension of the moratorium to May 15 to further avoid possible sedimentation effects on sicklefin redhorse spawning.
B69: 5 | C69: =B69/$G$69 -> 0.5 | D69: Contract error | E69: This was an SBE project and Liquidated Damages were left in the Contract by mistake. | F69: Contract Issues (Errors, omissions, and unclarity of contract clauses) | G69: =SUM(B69:B71) -> 10 | H69: =G69/$G$134 -> 0.005396654074
B70: 4 | C70: =B70/$G$69 -> 0.4 | D70: Contract omission | E70: Contract Time: In the Contract, NSR has between 16 and 26 week to remove the existing tracks before the contractor can resume with ICT#1. No time is figured into the contract for NSR’s floating date. Granting the contractor 70 days to ICT#00 and ICT#01.
B71: 1 | C71: 0.1 | D71: Unclear contract items | E71: Metal Pole Foundation Removal
B72: 3 | C72: =B72/$G$72 -> 0.4285714286 | D72: Cash flow restriction | E72: Project was awarded but then rescinded due to cash flow and then decision was made to proceed with construction after the original availability. Therefore, it was agreed by both parties to extend contract completion date by 56 days. | F72: Funding Issues (budget concerns, unavailability of funds, and cash flow restrictions) | G72: =SUM(B72:B74) -> 7 | H72: 0.003777657852
B73: 3 | C73: =B73/$G$72 -> 0.4285714286 | D73: Unavailability of Funds | E73: The contract was not awarded until after the contract availability date. As a reslut, the Pre-construction conference was also delayed. A Department initiated claim will grant the full number of contact days.
B74: 1 | C74: 0.1428571429 | D74: Budget concerns and layoffs | E74: Delays to the contractors controlling operations. Due to budget concerns and layoffs in Traffic Services office, signal inspections were not completed until 6/4/09 although the contractor requested them on 3/16/09.
B75: 50 | C75: =B75/$G$75 -> 0.9803921569 | D75: Incomplete vegetation establishment | E75: Time extension for the establishment of vegetation between the partial acceptance date and the final acceptance of the project. | F75: Incomplete Vegetation Establishment (Extra time that was required for the vegetation to fully establish (mainly 80 percent) throughout the project) | G75: =SUM(B75:B76) -> 51 | H75: 0.02752293578
B76: 1 | C76: =B76/$G$75 -> 0.01960784314 | D76: Incomplete planting establishment | E76: Granting time waiting for plants to bud out and there was additional work requested.
B77: 67 | C77: =B77/$G$77 -> 0.9305555556 | D77: Maintenance/replacement required | E77: Retainage Released from Flatiron for Monies Paid to Subcontractor | F77: Maintenance/Replacement Required (Maintanance or replacement request to constructed or existing parts as a result of damages during construction or failure) | G77: =SUM(B77:B79) -> 72 | H77: 0.03885590934
B78: 4 | C78: =B78/$G$77 -> 0.05555555556 | D78: Maintenance/replacement required (damaged objects) | E78: Damage to Fiber Optic Cable at various locations and times due to squirrels from 9/16/2008 to 12/31/2008
B79: 1 | C79: 0.01388888889 | D79: Maintenance/replacement required (existing parts failure) | E79: Delay to controlling operation due to Contractor having to retrieve embankment material from stream because of the existing valve on the existing 16 water line failing."
B80: 49 | C80: =B80/$G$80 -> 0.98 | D80: Error in entering previous claim time extension/compensation in HiCAMS | E80: Additional Time to ICT#1 for Locating, Uncovering, Extending and Adjustment of an Unknown Water Valve Manhole on -Y5A-. | F80: Administrative/Paperwork Issues (Administrative or paperwork issues during construction) | G80: =SUM(B80:B81) -> 50 | H80: 0.02698327037
B81: 1 | C81: =B81/$G$80 -> 0.02 | D81: Document misplacement | E81: The Contractor submitted the requested railroad insurance to NS on 5/22/17 via FedEx. After follow-up it was determined that NS had misplaced the submittal thus requiring the contractor to resend the insurance package on 5/31/17 via US Mail.
B82: 8 | C82: =B82/$G$82 -> 0.4705882353 | D82: Permit acquisition waiting period | E82: Zoning grading permit delay to controlling operation of construction grading on project. | F82: Permit Issues (Environmental, construction, and all other type of permit issues) | G82: =SUM(B82:B87) -> 17 | H82: 0.009174311927
B83: 4 | C83: =B83/$G$82 -> 0.2352941176 | D83: Permit modification waiting period | E83: Dept. requested that previously installed 60 CMP be extended 8' upstream in order to remove unsafe shoulder condition. The Dept. filed for a permit modification which took 46 days to receive clearance to perform this work."
B84: 2 | C84: 0.1176470588 | D84: Lack of required permit | E84: Time Extension for Delays while necessary permits were obtained
B85: 1 | C85: 0.05882352941 | D85: Expired permits | E85: This claim is for additional time because of the Environmental Permits expiring.
B86: 1 | C86: 0.05882352941 | D86: Permit limitations | E86: This claim is to compensate the contractor for the removal of extra rip rap from stream bank. The rip rap was in accordance with plan details, but was in excess of what was allowed in the contract permits.
B87: 1 | C87: 0.05882352941 | D87: Permit violations | E87: Claim for reimbursement for idle equipment and for time extension due to US Army Cease and Desist order.
B88: 19 | C88: =B88/$G$88 -> 0.38 | D88: Delay in power supply | E88: Utility Delay - Receiving electrical service for high mast lighting from Duke Energy. | F88: Procurement Issues (Delays to project due to problems in procuring materials and equipment) | G88: =SUM(B88:B94) -> 50 | H88: 0.02698327037
B89: 12 | C89: =B89/$G$88 -> 0.24 | D89: Procurement delays | E89: Closeout conference.
B90: 8 | C90: 0.16 | D90: Material shortage | E90: Zoysia Sod, the contractor could not take deliver of the zoysia sod because there supplier could not get in the fields to cut the sod. This delayed the contractor from placing the sod on the project.
B91: 6 | C91: 0.12 | D91: Department furnished material/equipment delays | E91: Signing Delay- Department furnished signs not ready for pick up to open the interchange to traffic by requested date
B92: 2 | C92: 0.04 | D92: Wrong order placement | E92: The contractor is requesting time and money associated with The Department choosing the wrong color for the terrazzo base. This submittal was approved and the material was ordered, but the labels on the samples were not as The Department thought.
B93: 1 | C93: 0.02 | D93: Fabrication delays | E93: Sign Fabrication Delay
B94: 2 | C94: 0.04 | D94: Material cost fluctuations | E94: Claim is for materials costs associated with the 30 steel plates (traffic bearing) which will bridge the roadway drainage under the sidewalks."
B95: 77 | C95: =B95/$G$95 -> 1 | D95: Quantities overrun/underrun | E95: Controlling operations delayed due to additional undercut and placement of stone on bridge slopes. | F95: Quantities Overrun/Underrun (Errors in budget, schedule, or items estimates) | G95: =SUM(B95) -> 77 | H95: 0.04155423637
B96: 16 | C96: =B96/$G$96 -> 0.3636363636 | D96: ROW acquisition delays | E96: Delay of controlling operation at beginning of project due to delay in right of entry as a result of unavailable right of way. | F96: ROW/Easement Issues (Problems related to Right of Way or easement) | G96: =SUM(B96:B102) -> 44 | H96: 0.02374527793
B97: 17 | C97: =B97/$G$96 -> 0.3863636364 | D97: RR right of entery issues | E97: Resubmit of Claim No. 2, Delay of entry to Parcel No. 13 delayed the contractor waiting on permission to enter the parcel from Oct 1 to Oct 10.
B98: 6 | C98: 0.1363636364 | D98: Insufficient ROW | E98: Additional Costs Due to Right of Entry and other delays and delays associated with the Coddle Creek Redesign.
B99: 1 | C99: 0.02272727273 | D99: Landowner(s) unwilling to sell, may need to condemn | E99: Biltmore Access - Agreement not in place between NCDOT and Biltmore Estate to allow access to property prior to date of availability (2/26/2018). Contractor unable to begin work on property until 3/26/18.
B100: 2 | C100: 0.04545454545 | D100: Additional work required per Right of Way agreement - relocations, grading, etc. | E100: Request for time due to delays in Removal of a light standard and dumpster enclosure from the R/W at the Pugh Oil Gas Station (DRV2 Sta. 11+52)
B101: 1 | C101: 0.02272727273 | D101: ROW approval delays (utility encroachment) | E101: Department-initiated claim for 518 days from the Contract Date of Availability of 8/24/2015 due to a conflict between the proposed project and an active utility encroachment agreement.
B102: 1 | C102: 0.02272727273 | D102: ROW approval delays (railroad encroachment) | E102: Contract time extension due to utility delays and railroad encroachment approval.
B103: 101 | C103: =B103/$G$103 -> 1 | D103: Seasonal limitations (weather) | E103: Utility and weather delays to ICT #4 | F103: Seasonal Limitations (Weather) (Adverse weather conditions like extreme temperatures and precipitation that suspend the construction) | G103: =SUM(B103) -> 101 | H103: 0.05450620615
B104: 17 | C104: =B104/$G$104 -> 0.8947368421 | D104: Survey error | E104: Delay in controlling operation(pipe installation) due to staking error- request for 1 day."" | F104: Survey Issues (Waiting for test results or errpneous surveys and tests that require corrective action) | G104: =SUM(B104:B105) -> 19 | H104: 0.01025364274
B105: 2 | C105: =B105/$G$104 -> 0.1052631579 | D105: Survery results delayed | E105: Request for additional time due to an alleged delay in test results for soil stabilization
B106: 4 | C106: =B106/$G$106 -> 0.3636363636 | D106: Unavailability of DOT personnel | E106: This claim revises the Date of Availability to July 20, 2015 to provide for adequate inspection and contractor mobilization, as the project was delayed for the purposes of personnel availability. It provides time from May 12, 2015 through July 19, 2015. | F106: Unavailability of Workforce/Personnel (Insufficient workforce or personnel that suspend or delay the construction) | G106: =SUM(B106:B109) -> 11 | H106: 0.005936319482
B107: 2 | C107: =B107/$G$106 -> 0.1818181818 | D107: Unavailability of railroad flaggers | E107: Controlling operation was delayed by the long wait experienced by the contractor in acquiring a railroad flagman.
B108: 3 | C108: 0.2727272727 | D108: Unavailability of workforce | E108: Closeout Conference
B109: 2 | C109: 0.1818181818 | D109: Unavailability of DOT specialized staff | E109: Contractor is requesting additonal time due to the delays reqarding stop-work orders,utility conflicts, and excessive undercut. Assigned SGK 6-23-03.
B110: 17 | C110: =B110/$G$110 -> 1 | D110: Discovery of unsuitable materials (geotechnical) | E110: Lime stabilization of subgrade station +/- 81+00 to +/- 179+00. Contractor elected to place lime stabilization to help dry back wet material. | F110: Discovery of Unsuitable Materials (Geotechnical) (Materials, soil in specific, that expected to be used found to be unsuitable and required removal) | G110: =SUM(B110) -> 17 | H110: 0.009174311927
B111: 165 | C111: =B111/$G$111 -> 0.4910714286 | D111: Utility conflict | E111: Delay of Mobilization | F111: Utility Conflict (Conflicts and clashed with underground and overhead utilities that require utility relocation) | G111: =SUM(B111:B113) -> 336 | H111: 0.1813275769
B112: 6 | C112: =B112/$G$111 -> 0.01785714286 | D112: Discovery of unknown underground utilities | E112: Mobilization and extra grading due to unknown water lines encountered while grading at Axel Drive. Originally submitted as an SA, resubmitted as a Claim.
B113: 165 | C113: 0.4910714286 | D113: Utility conflict | E113: Delay of Mobilization
B114: 72 | C114: =B114/$G$114 -> 1 | D114: Utility relocation not happen in time | E114: Delay to Phase I culvert construction due to a conflict with the Town of Cary's 16-inch waterline. The waterline could not be relocated per the original Utility Construction plans. | F114: Utility Relocation Issues (Utility relocation not happen in time) | G114: =SUM(B114) -> 72 | H114: 0.03885590934
B115: 19 | C115: =B115/$G$115 -> 0.2602739726 | D115: Work restrictions due to traffic | E115: As directed by the Engineer, in a letter dated October 29, 2010, Boggs Paving was not to work Saturdays on this Contract due to Traffic Conditions. This is covered under Article 108-10 (B-3) of the 2006 Standard Specifications. | F115: Work Restriction (Work restrictions due to traffic considerations, or due to public/local agencies during social events or moratoriums) | G115: =SUM(B115:B121) -> 73 | H115: 0.03939557474
B116: 23 | C116: =B116/$G$115 -> 0.3150684932 | D116: Work restriction request by public/local agencies | E116: Department Initiated claim for contract time extension. The extension was a result of the DOT to not allow the contractor to open the west bound lane to traffic on September 22, 2008 due to a Ribbon Cutting ceremony that was held on September 26, 2008.
B117: 19 | C117: 0.2602739726 | D117: Work restrictions due to traffic | E117: As directed by the Engineer, in a letter dated October 29, 2010, Boggs Paving was not to work Saturdays on this Contract due to Traffic Conditions. This is covered under Article 108-10 (B-3) of the 2006 Standard Specifications.
B118: 3 | C118: 0.04109589041 | D118: Work restriction request by school | E118: Change in contract availability & completion dates, requested by School Board, due to snow make-up days. Originally, 06/15/11, now 06/17/11, for availability, and originally 08/12/11, now 08/16/11, for completion.
B119: 5 | C119: 0.06849315068 | D119: Work restriction request by DOT | E119: Project was suspended by the Department. Contractor was delayed from completing the final inch of asphalt surface course and thermoplastic pavement markings until October 1, 2002.
B120: 1 | C120: 0.01369863014 | D120: Limited working space | E120: Removal of spoils from excavation at Bent #3 Shaft. Spoil placed in open top container barge and removed by means of sludge vaccum. Due to limited space on project.
B121: 3 | C121: 0.04109589041 | D121: Work restrictions due to traffic (road closure restrictions) | E121: Contractor advised not to install lane closures from Oct. 10, 2000 through Oct. 11, 2000 due to Presidential debate. Controlling operation Installation of Sign Foundations" could not be pursued without lane closures."
B122: 4 | C122: =B122/$G$122 -> 0.3333333333 | D122: Extra tests required | E122: The contractor is requesting compensation for core drilling concrete full depth samples from t shaft #1 Bent #1 and grouting up the core hole. This work was performed at the direction of The Department due to concerns from the CSL test and conc. issues. | F122: Stakeholders Request Late Changes (Change request or change in scope of project by stakeholders that require extra work) | G122: =SUM(B122:B124) -> 12 | H122: 0.006475984889
B123: 7 | C123: =B123/$G$122 -> 0.5833333333 | D123: Interagency issues - cities, counties, departments, etc. request change | E123: Time for building rock ladder at pipe outlet at permit site 2, which was added at the request of Polly Lespinasse of NCDENR.
B124: 1 | C124: 0.08333333333 | D124: Document preparation request by DOT | E124: Girder Erection Plan - NCDOT required Blythe Construction Inc. to submit a girder erection plan for approval by Norfolk Southern Railroad that was not required by the contract documents
B125: 2 | C125: =B125/$G$125 -> 0.1 | D125: Payment agreement issues | E125: The Contractor performed slope protection work with Class B rip rap, but disagrees with being paid at Class B prices. | F125: Other | G125: =SUM(B125:B133) -> 20 | H125: 0.01079330815
B126: 1 | C126: =B126/$G$125 -> 0.05 | D126: Completion incentive | E126: Substantial Completion Incentive per SA #5.0
B127: 1 | C127: 0.05 | D127: Termination of contract | E127: Release of Claim
B128: 1 | C128: 0.05 | D128: Lawsuit costs | E128: Legal cost for Shipman lawsuit.
B129: 4 | C129: 0.2 | D129: Covid impact | E129: COVID-19 Contractor Suspension of Operations
B130: 5 | C130: 0.25 | D130: Unforeseen problems (unexpected death) | E130: Human Remains - Temp Suspension of work
B131: 3 | C131: 0.15 | D131: Vehicle accident | E131: CLOSEOUT CONF
B132: 1 | C132: 0.05 | D132: work not in conformance with contract and directive | E132: Claim for additional Time and Compensation to remove debris hauled to USFS property
B133: 2 | C133: 0.1 | D133: Contractor/subcontractor replacement | E133: Contract Time Extension - Suspension of Unclassified Excavation
G134: =SUM(G2:G133) -> 1853

Sheet Claims (Bridge Replacement) (hidden)
A1: Close
B2: Bridge Replacement Projects (Based on Generic Cause) | I2: Bridge Replacement Projects (Based on Generic Cause)
B3: 39 | C3: =B3/$F$3 -> 0.975 | D3: natural disaster (hurricane) | E3: Natural Disasters (All types of natural disasters that can affect budget and schedule) | F3: =SUM(B3:B9) -> 40 | G3: =F3/$F$134 -> 0.08695652174 | I3: Natural Disasters | J3: =G3 -> 0.08695652174
B4: 0 | C4: =B4/$F$3 -> 0 | D4: natural disaster (drought condition) | I4: Design/Plan Issues | J4: =G10 -> 0.1347826087
B5: 0 | C5: 0 | D5: natural disaster (slide) | I5: Planning Issues (Except Start of Work and/or projecy closeout) | J5: =G22 -> 0.04347826087
B6: 0 | C6: 0 | D6: natural disaster (flood) | I6: Project Closeout Issues | J6: =G30 -> 0.08260869565
B7: 0 | C7: 0 | D7: natural disaster (sinkhole) | I7: Constructability Issues (Except for underground conflicts) | J7: =G33 -> 0.004347826087
B8: 0 | C8: 0 | D8: natural disaster (thunderstorm) | I8: Corrective Work | J8: =G36 -> 0.01304347826
B9: 1 | C9: 0.025 | D9: natural disaster (tropical depression) | I9: Delay in Start of Work | J9: =G39 -> 0.01956521739
B10: 21 | C10: =B10/$F$10 -> 0.3387096774 | D10: Design/plan change | E10: Design/Plan Issues (Change or error in roadway, structure, geotechnical, hydraulics, traffic, utility, and environmental design) | F10: =SUM(B10:B21) -> 62 | G10: =F10/$F$134 -> 0.1347826087 | I10: Design Approval Waiting Period/Indecision/Negotiation | J10: =G46 -> 0.04130434783
B11: 2 | C11: =B11/$F$10 -> 0.03225806452 | D11: Elimination of contract line item | I11: Differing Site Conditions/Discoveries (Except Utilities) | J11: =G57 -> 0.04130434783
B12: 1 | C12: 0.01612903226 | D12: Design change due to safety concerns | I12: Environmental Concerns | J12: =G65 -> 0.00652173913
B13: 5 | C13: 0.08064516129 | D13: Change requests | I13: Contract Issues | J13: =G69 -> 0.004347826087
B14: 17 | C14: 0.2741935484 | D14: Design/plan error | I14: Funding Issues | J14: =G72 -> 0
B15: 0 | C15: 0 | D15: Design modifications impact utility relocation | I15: Incomplete Vegetation Establishment | J15: =G75 -> 0.06086956522
B16: 9 | C16: 0.1451612903 | D16: Design/plan revision | I16: Maintenance/Replacement Required | J16: =G77 -> 0.01956521739
B17: 2 | C17: 0.03225806452 | D17: Design/plan omission | I17: Administrative/Paperwork Issues | J17: =G80 -> 0.01956521739
B18: 1 | C18: 0.01612903226 | D18: Sight distance concerns | I18: Permit Issues | J18: =G82 -> 0.02173913043
B19: 0 | C19: 0 | D19: Surveys late and/or surveys in error | I19: Procurement Issues | J19: =G88 -> 0.02173913043
B20: 4 | C20: 0.06451612903 | D20: Compliance with special technical specifications | I20: Quantities Overrun/Underrun | J20: =G95 -> 0.0152173913
B21: 0 | C21: 0 | D21: Misinterpretation of plans | I21: ROW/Easement Issues | J21: =G96 -> 0.01086956522
B22: 3 | C22: =B22/$F$22 -> 0.15 | D22: Pressure to deliver project on an accelerated schedule | E22: Planning Issues (Except Start of Work and/or projecy closeout) (Delays to schedule due to insufficient planning and coordination within project team, and between project team and other stakeholders) | F22: =SUM(B22:B29) -> 20 | G22: 0.04347826087 | I22: Seasonal Limitations (Weather) | J22: =G103 -> 0.05869565217
B23: 11 | C23: =B23/$F$22 -> 0.55 | D23: Purposeful limited work schedule | I23: Survey Issues | J23: =G104 -> 0.01739130435
B24: 5 | C24: 0.25 | D24: Waiting for other entities/projects to perform work | I24: Unavailability of Workforce/Personnel | J24: =G106 -> 0.01304347826
B25: 1 | C25: 0.05 | D25: Project Schedule - delays to project delivery | I25: Discovery of Unsuitable Materials (Geotechnical) | J25: =G110 -> 0.00652173913
B26: 0 | C26: 0 | D26: Consistency and coordination with adjacent projects required | I26: Utility Conflict | J26: =G111 -> 0.147826087
B27: 0 | C27: 0 | D27: Lack of coordination/communication with project team | I27: Utility Relocation Issues | J27: =G114 -> 0.05217391304
B28: 0 | C28: 0 | D28: Scheduling conflicts - late inspection | I28: Work Restriction | J28: =G115 -> 0.03260869565
B29: 0 | C29: 0 | D29: Limited availability of specialized staff | I29: Stakeholders Request Late Changes | J29: =G122 -> 0.01304347826
B30: 2 | C30: =B30/$F$30 -> 0.05263157895 | D30: Extra work required after final inspection | E30: Project Closeout Issues (Problems during project closeout) | F30: =SUM(B30:B32) -> 38 | G30: 0.08260869565 | I30: Other | J30: =G125 -> 0.01086956522
B31: 36 | C31: =B31/$F$30 -> 0.9473684211 | D31: Scheduling conflicts - late final inspection
B32: 0 | C32: 0 | D32: Delay in receipt of final punchlist items | I32: Bridge Replacement Projects (Based on Design/Plan Issues)
B33: 0 | C33: =B33/$F$33 -> 0 | D33: Conflict with existing structures | E33: Constructability Issues (Except for underground conflicts) (Conflicts and clashes with surface objects that makes the design be unconstructable) | F33: =SUM(B33:B35) -> 2 | G33: 0.004347826087
B34: 1 | C34: =B34/$F$33 -> 0.5 | D34: Conflict with surface objects | I34: Roadway Design (Vertical/horizontal alignment, earthwork, pavement, grade, etc.) | J34: 0.1641791045
B35: 1 | C35: 0.5 | D35: Constructability issues | I35: Structure Design (Bridge superstructure, retaining walls, etc.) | J35: 0.2686567164
B36: 4 | C36: =B36/$F$36 -> 0.6666666667 | D36: Corrective work required | E36: Corrective Work (Corrective work or re-work as a result of problems in construction, poor quality of construction, or incorrect instructions that were gave to contractor) | F36: =SUM(B36:B38) -> 6 | G36: 0.01304347826 | I36: Geotechnical Design (Foundations, ground improvements, unsuitable materials, pile driving, etc.) | J36: 0.05970149254
B37: 1 | C37: =B37/$F$36 -> 0.1666666667 | D37: Incorrect instruction by DOT personnel required corrective work | I37: Hydraulic Design (drainage, irrigation, lines, etc.) | J37: 0.3134328358
B38: 1 | C38: 0.1666666667 | D38: Delay in critical decision making on required corrective actions | I38: Traffic Design (ITS, signals, intersections, signs, guardrail, safety) | J38: 0.01492537313
B39: 2 | C39: =B39/$F$39 -> 0.2222222222 | D39: Scheduling conflicts - late preconstruction meeting | E39: Delay in Start of Work (Planning, scheduling, or administrative problems that delayed start of work) | F39: =SUM(B39:B45) -> 9 | G39: 0.01956521739 | I39: Other (NCDOT/RE initiated change, maintenance/replacement, special provisions, etc) | J39: 0.1791044776
B40: 4 | C40: =B40/$F$39 -> 0.4444444444 | D40: Delay in execution of contract
B41: 1 | C41: 0.1111111111 | D41: Delay in availability of project and/or start date
B42: 0 | C42: 0 | D42: Administrative review of low bid packages
B43: 1 | C43: 0.1111111111 | D43: Late receipt of contrcat information
B44: 1 | C44: 0.1111111111 | D44: Delay in project award
B45: 0 | C45: 0 | D45: Unavailability of Funds
B46: 7 | C46: =B46/$F$46 -> 0.3684210526 | D46: Untimely review and return of submittals | E46: Design Approval Waiting Period/Indecision/Negotiation (Time spent waiting for approval of submittals, critical decisions from NCDOT, and reaching agreement with stakeholders) | F46: =SUM(B46:B56) -> 19 | G46: 0.04130434783
B47: 10 | C47: =B47/$F$46 -> 0.5263157895 | D47: Delay in critical decision making
B48: 0 | C48: 0 | D48: Negotiation delays
B49: 0 | C49: 0 | D49: Delays in reaching agreement with property owners
B50: 0 | C50: 0 | D50: Delays in reaching agreement with stakeholders
B51: 0 | C51: 0 | D51: Delays in reaching utility agreement
B52: 1 | C52: 0.05263157895 | D52: Delay in critical decision making on required corrective actions
B53: 1 | C53: 0.05263157895 | D53: Untimelty receipt of design/plan
B54: 0 | C54: 0 | D54: Delays in reaching agreement with other entities
B55: 0 | C55: 0 | D55: Delays in reaching agreement with railroad
B56: 0 | C56: 0 | D56: Delay in receipt of (land) quality control approvals
B57: 8 | C57: =B57/$F$57 -> 0.4210526316 | D57: Conflict with unknown underground obstructions/structures | E57: Differing Site Conditions/Discoveries (Except Utilities) (Subsurface situations that were different than anticipated) | F57: =SUM(B57:B64) -> 19 | G57: 0.04130434783
B58: 1 | C58: =B58/$F$57 -> 0.05263157895 | D58: Discovery of underground water flow
B59: 6 | C59: 0.3157894737 | D59: Excess surface water issues
B60: 1 | C60: 0.05263157895 | D60: Discovery of contaminated ground water
B61: 1 | C61: 0.05263157895 | D61: Differing site conditions
B62: 0 | C62: 0 | D62: Wetland discovery
B63: 2 | C63: 0.1052631579 | D63: Discovery of contaminated soil
B64: 0 | C64: 0 | D64: Discovery of hazardous underground materials
B65: 1 | C65: =B65/$F$65 -> 0.3333333333 | D65: Wetland and/or endandered species survey | E65: Environmental Concerns (Extra work of surveys and investigations due to environmental related concerns) | F65: =SUM(B65:B68) -> 3 | G65: 0.00652173913
B66: 1 | C66: =B66/$F$65 -> 0.3333333333 | D66: Erosion control issues
B67: 0 | C67: 0 | D67: Historic site investgations
B68: 1 | C68: 0.3333333333 | D68: Endangered species issues
B69: 0 | C69: =B69/$F$69 -> 0 | D69: Contract error | E69: Contract Issues (Errors, omissions, and unclarity of contract clauses) | F69: =SUM(B69:B71) -> 2 | G69: =F69/$F$134 -> 0.004347826087
B70: 2 | C70: =B70/$F$69 -> 1 | D70: Contract omission
B71: 0 | C71: 0 | D71: Unclear contract items
B72: 0 | C72: 0 | D72: Cash flow restriction | E72: Funding Issues (budget concerns, unavailability of funds, and cash flow restrictions) | F72: =SUM(B72:B74) -> 0 | G72: 0
B73: 0 | C73: 0 | D73: Unavailability of Funds
B74: 0 | C74: 0 | D74: Budget concerns and layoffs
B75: 28 | C75: =B75/$F$75 -> 1 | D75: Incomplete vegetation establishment | E75: Incomplete Vegetation Establishment (Extra time that was required for the vegetation to fully establish (mainly 80 percent) throughout the project) | F75: =SUM(B75:B76) -> 28 | G75: 0.06086956522
B76: 0 | C76: =B76/$F$75 -> 0 | D76: Incomplete planting establishment
B77: 9 | C77: =B77/$F$77 -> 1 | D77: Maintenance/replacement required | E77: Maintenance/Replacement Required (Maintanance or replacement request to constructed or existing parts as a result of damages during construction or failure) | F77: =SUM(B77:B79) -> 9 | G77: 0.01956521739
B78: 0 | C78: =B78/$F$77 -> 0 | D78: Maintenance/replacement required (damaged objects)
B79: 0 | C79: 0 | D79: Maintenance/replacement required (existing parts failure)
B80: 9 | C80: =B80/$F$80 -> 1 | D80: Error in entering previous claim time extension/compensation in HiCAMS | E80: Administrative/Paperwork Issues (Administrative or paperwork issues during construction) | F80: =SUM(B80:B81) -> 9 | G80: 0.01956521739
B81: 0 | C81: =B81/$F$80 -> 0 | D81: Document misplacement
B82: 5 | C82: =B82/$F$82 -> 0.5 | D82: Permit acquisition waiting period | E82: Permit Issues (Environmental, construction, and all other type of permit issues) | F82: =SUM(B82:B87) -> 10 | G82: 0.02173913043
B83: 4 | C83: =B83/$F$82 -> 0.4 | D83: Permit modification waiting period
B84: 0 | C84: 0 | D84: Lack of required permit
B85: 0 | C85: 0 | D85: Expired permits
B86: 1 | C86: 0.1 | D86: Permit limitations
B87: 0 | C87: 0 | D87: Permit violations
B88: 1 | C88: =B88/$F$88 -> 0.1 | D88: Delay in power supply | E88: Procurement Issues (Delays to project due to problems in procuring materials and equipment) | F88: =SUM(B88:B94) -> 10 | G88: 0.02173913043
B89: 4 | C89: =B89/$F$88 -> 0.4 | D89: Procurement delays
B90: 2 | C90: 0.2 | D90: Material shortage
B91: 2 | C91: 0.2 | D91: Department furnished material/equipment delays
B92: 1 | C92: 0.1 | D92: Wrong order placement
B93: 0 | C93: 0 | D93: Fabrication delays
B94: 0 | C94: 0 | D94: Material cost fluctuations
B95: 7 | C95: =B95/$F$95 -> 1 | D95: Quantities overrun/underrun | E95: Quantities Overrun/Underrun (Errors in budget, schedule, or items estimates) | F95: =SUM(B95) -> 7 | G95: 0.0152173913
B96: 1 | C96: =B96/$F$96 -> 0.2 | D96: ROW acquisition delays | E96: ROW/Easement Issues (Problems related to Right of Way or easement) | F96: =SUM(B96:B102) -> 5 | G96: 0.01086956522
B97: 0 | C97: =B97/$F$96 -> 0 | D97: RR right of entery issues
B98: 3 | C98: 0.6 | D98: Insufficient ROW
B99: 0 | C99: 0 | D99: Landowner(s) unwilling to sell, may need to condemn
B100: 1 | C100: 0.2 | D100: Additional work required per Right of Way agreement - relocations, grading, etc.
B101: 0 | C101: 0 | D101: ROW approval delays (utility encroachment)
B102: 0 | C102: 0 | D102: ROW approval delays (railroad encroachment)
B103: 27 | C103: =B103/$F$103 -> 1 | D103: Seasonal limitations (weather) | E103: Seasonal Limitations (Weather) (Adverse weather conditions like extreme temperatures and precipitation that suspend the construction) | F103: =SUM(B103) -> 27 | G103: 0.05869565217
B104: 7 | C104: =B104/$F$104 -> 0.875 | D104: Survey error | E104: Survey Issues (Waiting for test results or errpneous surveys and tests that require corrective action) | F104: =SUM(B104:B105) -> 8 | G104: 0.01739130435
B105: 1 | C105: =B105/$F$104 -> 0.125 | D105: Survery results delayed
B106: 3 | C106: =B106/$F$106 -> 0.5 | D106: Unavailability of DOT personnel | E106: Unavailability of Workforce/Personnel (Insufficient workforce or personnel that suspend or delay the construction) | F106: =SUM(B106:B109) -> 6 | G106: 0.01304347826
B107: 2 | C107: =B107/$F$106 -> 0.3333333333 | D107: Unavailability of railroad flaggers
B108: 1 | C108: 0.1666666667 | D108: Unavailability of workforce
B109: 0 | C109: 0 | D109: Unavailability of DOT specialized staff
B110: 3 | C110: =B110/$F$110 -> 1 | D110: Discovery of unsuitable materials (geotechnical) | E110: Discovery of Unsuitable Materials (Geotechnical) (Materials, soil in specific, that expected to be used found to be unsuitable and required removal) | F110: =SUM(B110) -> 3 | G110: 0.00652173913
B111: 34 | C111: =B111/$F$111 -> 0.5 | D111: Utility conflict | E111: Utility Conflict (Conflicts and clashed with underground and overhead utilities that require utility relocation) | F111: =SUM(B111:B113) -> 68 | G111: 0.147826087
B112: 0 | C112: =B112/$F$111 -> 0 | D112: Discovery of unknown underground utilities
B113: 34 | C113: 0.5 | D113: Utility conflict
B114: 24 | C114: =B114/$F$114 -> 1 | D114: Utility relocation not happen in time | E114: Utility Relocation Issues (Utility relocation not happen in time) | F114: =SUM(B114) -> 24 | G114: 0.05217391304
B115: 4 | C115: =B115/$F$115 -> 0.2666666667 | D115: Work restrictions due to traffic | E115: Work Restriction (Work restrictions due to traffic considerations, or due to public/local agencies during social events or moratoriums) | F115: =SUM(B115:B121) -> 15 | G115: 0.03260869565
B116: 3 | C116: =B116/$F$115 -> 0.2 | D116: Work restriction request by public/local agencies
B117: 4 | C117: 0.2666666667 | D117: Work restrictions due to traffic
B118: 1 | C118: 0.06666666667 | D118: Work restriction request by school
B119: 1 | C119: 0.06666666667 | D119: Work restriction request by DOT
B120: 1 | C120: 0.06666666667 | D120: Limited working space
B121: 1 | C121: 0.06666666667 | D121: Work restrictions due to traffic (road closure restrictions)
B122: 4 | C122: =B122/$F$122 -> 0.6666666667 | D122: Extra tests required | E122: Stakeholders Request Late Changes (Change request or change in scope of project by stakeholders that require extra work) | F122: =SUM(B122:B124) -> 6 | G122: 0.01304347826
B123: 1 | C123: =B123/$F$122 -> 0.1666666667 | D123: Interagency issues - cities, counties, departments, etc. request change
B124: 1 | C124: 0.1666666667 | D124: Document preparation request by DOT
B125: 1 | C125: =B125/$F$125 -> 0.2 | D125: Payment agreement issues | E125: Other | F125: =SUM(B125:B133) -> 5 | G125: 0.01086956522
B126: 0 | C126: =B126/$F$125 -> 0 | D126: Completion incentive
B127: 1 | C127: 0.2 | D127: Termination of contract
B128: 0 | C128: 0 | D128: Lawsuit costs
B129: 1 | C129: 0.2 | D129: Covid impact
B130: 1 | C130: 0.2 | D130: Unforeseen problems (unexpected death)
B131: 0 | C131: 0 | D131: Vehicle accident
B132: 0 | C132: 0 | D132: work not in conformance with contract and directive
B133: 1 | C133: 0.2 | D133: Contractor/subcontractor replacement
F134: =SUM(F3:F133) -> 460
